Workbook

Sheet Código CIIU (hidden)
E1: Si | F1: Fortaleza | G1: 0 | H1: Agropecuario
A2: 111 | B2: Cultivo de cereales (excepto arroz), legumbres y semillas oleaginosas | C2: 1 | D2: agricultura, ganadería, caza, silvicultura y pesca | E2: No | F2: Debilidad | G2: 1 | H2: Industrial
A3: 112 | B3: Cultivo de arroz | C3: 1 | D3: agricultura, ganadería, caza, silvicultura y pesca | G3: 2 | H3: Comercio
A4: 113 | B4: Cultivo de hortalizas, raíces y tubérculos | C4: 1 | D4: agricultura, ganadería, caza, silvicultura y pesca | G4: 3 | H4: Servicios
A5: 114 | B5: Cultivo de tabaco | C5: 1 | D5: agricultura, ganadería, caza, silvicultura y pesca
A6: 115 | B6: Cultivo de plantas textiles | C6: 1 | D6: agricultura, ganadería, caza, silvicultura y pesca
A7: 119 | B7: Otros cultivos transitorios n.c.p. | C7: 1 | D7: agricultura, ganadería, caza, silvicultura y pesca
A8: 121 | B8: Cultivo de frutas tropicales y subtropicales | C8: 1 | D8: agricultura, ganadería, caza, silvicultura y pesca
A9: 122 | B9: Cultivo de plátano y banano | C9: 1 | D9: agricultura, ganadería, caza, silvicultura y pesca
A10: 123 | B10: Cultivo de café | C10: 1 | D10: agricultura, ganadería, caza, silvicultura y pesca
A11: 124 | B11: Cultivo de caña de azúcar | C11: 1 | D11: agricultura, ganadería, caza, silvicultura y pesca
A12: 125 | B12: Cultivo de flor de corte | C12: 1 | D12: agricultura, ganadería, caza, silvicultura y pesca
A13: 126 | B13: Cultivo de palma para aceite (palma africana) y otros frutos oleaginosos | C13: 1 | D13: agricultura, ganadería, caza, silvicultura y pesca
A14: 127 | B14: Cultivo de plantas con las que se preparan bebidas | C14: 1 | D14: agricultura, ganadería, caza, silvicultura y pesca
A15: 128 | B15: Cultivo de especias y de plantas aromáticas y medicinales | C15: 1 | D15: agricultura, ganadería, caza, silvicultura y pesca
A16: 129 | B16: Otros cultivos permanentes n.c.p. | C16: 1 | D16: agricultura, ganadería, caza, silvicultura y pesca
A17: 130 | B17: Propagación de plantas (actividades de los viveros, excepto viveros forestales) | C17: 1 | D17: agricultura, ganadería, caza, silvicultura y pesca
A18: 141 | B18: Cría de ganado bovino y bufalino | C18: 1 | D18: agricultura, ganadería, caza, silvicultura y pesca
A19: 142 | B19: Cría de caballos y otros equinos | C19: 1 | D19: agricultura, ganadería, caza, silvicultura y pesca
A20: 143 | B20: Cría de ovejas y cabras | C20: 1 | D20: agricultura, ganadería, caza, silvicultura y pesca
A21: 144 | B21: Cría de ganado porcino | C21: 1 | D21: agricultura, ganadería, caza, silvicultura y pesca
A22: 145 | B22: Cría de aves de corral | C22: 1 | D22: agricultura, ganadería, caza, silvicultura y pesca
A23: 149 | B23: Cría de otros animales n.c.p. | C23: 1 | D23: agricultura, ganadería, caza, silvicultura y pesca
A24: 150 | B24: Explotación mixta (agrícola y pecuaria) | C24: 1 | D24: agricultura, ganadería, caza, silvicultura y pesca
A25: 161 | B25: Actividades de apoyo a la agricultura | C25: 1 | D25: agricultura, ganadería, caza, silvicultura y pesca
A26: 162 | B26: Actividades de apoyo a la ganadería | C26: 1 | D26: agricultura, ganadería, caza, silvicultura y pesca
A27: 163 | B27: Actividades posteriores a la cosecha | C27: 1 | D27: agricultura, ganadería, caza, silvicultura y pesca
A28: 164 | B28: Tratamiento de semillas para propagación | C28: 1 | D28: agricultura, ganadería, caza, silvicultura y pesca
A29: 170 | B29: Caza ordinaria y mediante trampas y actividades de servicios conexas | C29: 1 | D29: agricultura, ganadería, caza, silvicultura y pesca
A30: 210 | B30: Silvicultura y otras actividades forestales | C30: 1 | D30: agricultura, ganadería, caza, silvicultura y pesca
A31: 220 | B31: Extracción de madera | C31: 1 | D31: agricultura, ganadería, caza, silvicultura y pesca
A32: 230 | B32: Recolección de productos forestales diferentes a la madera | C32: 1 | D32: agricultura, ganadería, caza, silvicultura y pesca
A33: 240 | B33: Servicios de apoyo a la silvicultura | C33: 1 | D33: agricultura, ganadería, caza, silvicultura y pesca
A34: 311 | B34: Pesca marítima | C34: 1 | D34: agricultura, ganadería, caza, silvicultura y pesca
A35: 312 | B35: Pesca de agua dulce | C35: 1 | D35: agricultura, ganadería, caza, silvicultura y pesca
A36: 321 | B36: Acuicultura marítima | C36: 1 | D36: agricultura, ganadería, caza, silvicultura y pesca
A37: 322 | B37: Acuicultura de agua dulce | C37: 1 | D37: agricultura, ganadería, caza, silvicultura y pesca
A38: 510 | B38: Extracción de hulla (carbón de piedra) | C38: 2 | D38: explotación de minas y canteras
A39: 520 | B39: Extracción de carbón lignito | C39: 2 | D39: explotación de minas y canteras
A40: 610 | B40: Extracción de petróleo crudo | C40: 2 | D40: explotación de minas y canteras
A41: 620 | B41: Extracción de gas natural | C41: 2 | D41: explotación de minas y canteras
A42: 710 | B42: Extracción de minerales de hierro | C42: 2 | D42: explotación de minas y canteras
A43: 721 | B43: Extracción de minerales de uranio y de torio | C43: 2 | D43: explotación de minas y canteras
A44: 722 | B44: Extracción de oro y otros metales preciosos | C44: 2 | D44: explotación de minas y canteras
A45: 723 | B45: Extracción de minerales de níquel | C45: 2 | D45: explotación de minas y canteras
A46: 729 | B46: Extracción de otros minerales metalíferos no ferrosos n.c.p. | C46: 2 | D46: explotación de minas y canteras
A47: 811 | B47: Extracción de piedra, arena, arcillas comunes, yeso y anhidrita | C47: 2 | D47: explotación de minas y canteras
A48: 812 | B48: Extracción de arcillas de uso industrial, caliza, caolín y bentonitas | C48: 2 | D48: explotación de minas y canteras
A49: 820 | B49: Extracción de esmeraldas, piedras preciosas y semipreciosas | C49: 2 | D49: explotación de minas y canteras
A50: 891 | B50: Extracción de minerales para la fabricación de abonos y productos químicos | C50: 2 | D50: explotación de minas y canteras
A51: 892 | B51: Extracción de halita (sal) | C51: 2 | D51: explotación de minas y canteras
A52: 899 | B52: Extracción de otros minerales no metálicos n.c.p. | C52: 2 | D52: explotación de minas y canteras
A53: 910 | B53: Actividades de apoyo para la extracción de petróleo y de gas natural | C53: 2 | D53: explotación de minas y canteras
A54: 990 | B54: Actividades de apoyo para otras actividades de explotación de minas y canteras | C54: 2 | D54: explotación de minas y canteras
A55: 1011 | B55: Procesamiento y conservación de carne y productos cárnicos | C55: 3 | D55: industrias manufactureras
A56: 1012 | B56: Procesamiento y conservación de pescados, crustáceos y moluscos | C56: 3 | D56: industrias manufactureras
A57: 1020 | B57: Procesamiento y conservación de frutas, legumbres, hortalizas y tubérculos | C57: 3 | D57: industrias manufactureras
A58: 1030 | B58: Elaboración de aceites y grasas de origen vegetal y animal | C58: 3 | D58: industrias manufactureras
A59: 1040 | B59: Elaboración de productos lácteos | C59: 3 | D59: industrias manufactureras
A60: 1051 | B60: Elaboración de productos de molinería | C60: 3 | D60: industrias manufactureras
A61: 1052 | B61: Elaboración de almidones y productos derivados del almidón | C61: 3 | D61: industrias manufactureras
A62: 1061 | B62: Trilla de café | C62: 3 | D62: industrias manufactureras
A63: 1062 | B63: Descafeinado, tostión y molienda del café | C63: 3 | D63: industrias manufactureras
A64: 1063 | B64: Otros derivados del café | C64: 3 | D64: industrias manufactureras
A65: 1071 | B65: Elaboración y refinación de azúcar | C65: 3 | D65: industrias manufactureras
A66: 1072 | B66: Elaboración de panela | C66: 3 | D66: industrias manufactureras
A67: 1081 | B67: Elaboración de productos de panadería | C67: 3 | D67: industrias manufactureras
A68: 1082 | B68: Elaboración de cacao, chocolate y productos de confitería | C68: 3 | D68: industrias manufactureras
A69: 1083 | B69: Elaboración de macarrones, fideos, alcuzcuz y productos farináceos similares | C69: 3 | D69: industrias manufactureras
A70: 1084 | B70: Elaboración de comidas y platos preparados | C70: 3 | D70: industrias manufactureras
A71: 1089 | B71: Elaboración de otros productos alimenticios n.c.p. | C71: 3 | D71: industrias manufactureras
A72: 1090 | B72: Elaboración de alimentos preparados para animales | C72: 3 | D72: industrias manufactureras
A73: 1101 | B73: Destilación, rectificación y mezcla de bebidas alcohólicas | C73: 3 | D73: industrias manufactureras
A74: 1102 | B74: Elaboración de bebidas fermentadas no destiladas | C74: 3 | D74: industrias manufactureras
A75: 1103 | B75: Producción de malta, elaboración de cervezas y otras bebidas malteadas | C75: 3 | D75: industrias manufactureras
A76: 1104 | B76: Elaboración de bebidas no alcohólicas, producción de aguas minerales y de otras aguas embotelladas | C76: 3 | D76: industrias manufactureras
A77: 1200 | B77: Elaboración de productos de tabaco | C77: 3 | D77: industrias manufactureras
A78: 1311 | B78: Preparación e hilatura de fibras textiles | C78: 3 | D78: industrias manufactureras
A79: 1312 | B79: Tejeduría de productos textiles | C79: 3 | D79: industrias manufactureras
A80: 1313 | B80: Acabado de productos textiles | C80: 3 | D80: industrias manufactureras
A81: 1391 | B81: Fabricación de tejidos de punto y ganchillo | C81: 3 | D81: industrias manufactureras
A82: 1392 | B82: Confección de artículos con materiales textiles, excepto prendas de vestir | C82: 3 | D82: industrias manufactureras
A83: 1393 | B83: Fabricación de tapetes y alfombras para pisos | C83: 3 | D83: industrias manufactureras
A84: 1394 | B84: Fabricación de cuerdas, cordeles, cables, bramantes y redes | C84: 3 | D84: industrias manufactureras
A85: 1399 | B85: Fabricación de otros artículos textiles n.c.p. | C85: 3 | D85: industrias manufactureras
A86: 1410 | B86: Confección de prendas de vestir, excepto prendas de piel | C86: 3 | D86: industrias manufactureras
A87: 1420 | B87: Fabricación de artículos de piel | C87: 3 | D87: industrias manufactureras
A88: 1430 | B88: Fabricación de artículos de punto y ganchillo | C88: 3 | D88: industrias manufactureras
A89: 1511 | B89: Curtido y recurtido de cueros; recurtido y teñido de pieles | C89: 3 | D89: industrias manufactureras
A90: 1512 | B90: Fabricación de artículos de viaje, bolsos de mano y artículos similares elaborados en cuero, y fabricación de artículos de talabartería y guarnicionería | C90: 3 | D90: industrias manufactureras
A91: 1513 | B91: Fabricación de artículos de viaje, bolsos de mano y artículos similares; artículos de talabartería y guarnicionería elaborados en otros materiales | C91: 3 | D91: industrias manufactureras
A92: 1521 | B92: Fabricación de calzado de cuero y piel, con cualquier tipo de suela | C92: 3 | D92: industrias manufactureras
A93: 1522 | B93: Fabricación de otros tipos de calzado, excepto calzado de cuero y piel | C93: 3 | D93: industrias manufactureras
A94: 1523 | B94: Fabricación de partes del calzado | C94: 3 | D94: industrias manufactureras
A95: 1610 | B95: Aserrado, acepillado e impregnación de la madera | C95: 3 | D95: industrias manufactureras
A96: 1620 | B96: Fabricación de hojas de madera para enchapado; fabricación de tableros contrachapados, tableros laminados, tableros de partículas y otros tableros y paneles | C96: 3 | D96: industrias manufactureras
A97: 1630 | B97: Fabricación de partes y piezas de madera, de carpintería y ebanistería para la construcción | C97: 3 | D97: industrias manufactureras
A98: 1640 | B98: Fabricación de recipientes de madera | C98: 3 | D98: industrias manufactureras
A99: 1690 | B99: Fabricación de otros productos de madera; fabricación de artículos de corcho, cestería y espartería | C99: 3 | D99: industrias manufactureras
A100: 1701 | B100: Fabricación de pulpas (pastas) celulósicas; papel y cartón | C100: 3 | D100: industrias manufactureras
A101: 1702 | B101: Fabricación de papel y cartón ondulado (corrugado); fabricación de envases, empaques y de embalajes de papel y cartón. | C101: 3 | D101: industrias manufactureras
A102: 1709 | B102: Fabricación de otros artículos de papel y cartón | C102: 3 | D102: industrias manufactureras
A103: 1811 | B103: Actividades de impresión | C103: 3 | D103: industrias manufactureras
A104: 1812 | B104: Actividades de servicios relacionados con la impresión | C104: 3 | D104: industrias manufactureras
A105: 1820 | B105: Producción de copias a partir de grabaciones originales | C105: 3 | D105: industrias manufactureras
A106: 1910 | B106: Fabricación de productos de hornos de coque | C106: 3 | D106: industrias manufactureras
A107: 1921 | B107: Fabricación de productos de la refinación del petróleo | C107: 3 | D107: industrias manufactureras
A108: 1922 | B108: Actividad de mezcla de combustibles | C108: 3 | D108: industrias manufactureras
A109: 2011 | B109: Fabricación de sustancias y productos químicos básicos | C109: 3 | D109: industrias manufactureras
A110: 2012 | B110: Fabricación de abonos y compuestos inorgánicos nitrogenados | C110: 3 | D110: industrias manufactureras
A111: 2013 | B111: Fabricación de plásticos en formas primarias | C111: 3 | D111: industrias manufactureras
A112: 2014 | B112: Fabricación de caucho sintético en formas primarias | C112: 3 | D112: industrias manufactureras
A113: 2021 | B113: Fabricación de plaguicidas y otros productos químicos de uso agropecuario | C113: 3 | D113: industrias manufactureras
A114: 2022 | B114: Fabricación de pinturas, barnices y revestimientos similares, tintas para impresión y masillas | C114: 3 | D114: industrias manufactureras
A115: 2023 | B115: Fabricación de jabones y detergentes, preparados para limpiar y pulir; perfumes y preparados de tocador | C115: 3 | D115: industrias manufactureras
A116: 2029 | B116: Fabricación de otros productos químicos n.c.p. | C116: 3 | D116: industrias manufactureras
A117: 2030 | B117: Fabricación de fibras sintéticas y artificiales | C117: 3 | D117: industrias manufactureras
A118: 2100 | B118: Fabricación de productos farmacéuticos, sustancias químicas medicinales y productos botánicos de uso farmacéutico | C118: 3 | D118: industrias manufactureras
A119: 2211 | B119: Fabricación de llantas y neumáticos de caucho | C119: 3 | D119: industrias manufactureras
A120: 2212 | B120: Reencauche de llantas usadas | C120: 3 | D120: industrias manufactureras
A121: 2219 | B121: Fabricación de formas básicas de caucho y otros productos de caucho n.c.p. | C121: 3 | D121: industrias manufactureras
A122: 2221 | B122: Fabricación de formas básicas de plástico | C122: 3 | D122: industrias manufactureras
A123: 2229 | B123: Fabricación de artículos de plástico n.c.p. | C123: 3 | D123: industrias manufactureras
A124: 2310 | B124: Fabricación de vidrio y productos de vidrio | C124: 3 | D124: industrias manufactureras
A125: 2391 | B125: Fabricación de productos refractarios | C125: 3 | D125: industrias manufactureras
A126: 2392 | B126: Fabricación de materiales de arcilla para la construcción | C126: 3 | D126: industrias manufactureras
A127: 2393 | B127: Fabricación de otros productos de cerámica y porcelana | C127: 3 | D127: industrias manufactureras
A128: 2394 | B128: Fabricación de cemento, cal y yeso | C128: 3 | D128: industrias manufactureras
A129: 2395 | B129: Fabricación de artículos de hormigón, cemento y yeso | C129: 3 | D129: industrias manufactureras
A130: 2396 | B130: Corte, tallado y acabado de la piedra | C130: 3 | D130: industrias manufactureras
A131: 2399 | B131: Fabricación de otros productos minerales no metálicos n.c.p. | C131: 3 | D131: industrias manufactureras
A132: 2410 | B132: Industrias básicas de hierro y de acero | C132: 3 | D132: industrias manufactureras
A133: 2421 | B133: Industrias básicas de metales preciosos | C133: 3 | D133: industrias manufactureras
A134: 2429 | B134: Industrias básicas de otros metales no ferrosos | C134: 3 | D134: industrias manufactureras
A135: 2431 | B135: Fundición de hierro y de acero | C135: 3 | D135: industrias manufactureras
A136: 2432 | B136: Fundición de metales no ferrosos | C136: 3 | D136: industrias manufactureras
A137: 2511 | B137: Fabricación de productos metálicos para uso estructural | C137: 3 | D137: industrias manufactureras
A138: 2512 | B138: Fabricación de tanques, depósitos y recipientes de metal, excepto los utilizados para el envase o transporte de mercancías | C138: 3 | D138: industrias manufactureras
A139: 2513 | B139: Fabricación de generadores de vapor, excepto calderas de agua caliente para calefacción central | C139: 3 | D139: industrias manufactureras
A140: 2520 | B140: Fabricación de armas y municiones | C140: 3 | D140: industrias manufactureras
A141: 2591 | B141: Forja, prensado, estampado y laminado de metal; pulvimetalurgia | C141: 3 | D141: industrias manufactureras
A142: 2592 | B142: Tratamiento y revestimiento de metales; mecanizado | C142: 3 | D142: industrias manufactureras
A143: 2593 | B143: Fabricación de artículos de cuchillería, herramientas de mano y artículos de ferretería | C143: 3 | D143: industrias manufactureras
A144: 2599 | B144: Fabricación de otros productos elaborados de metal n.c.p. | C144: 3 | D144: industrias manufactureras
A145: 2610 | B145: Fabricación de componentes y tableros electrónicos | C145: 3 | D145: industrias manufactureras
A146: 2620 | B146: Fabricación de computadoras y de equipo periférico | C146: 3 | D146: industrias manufactureras
A147: 2630 | B147: Fabricación de equipos de comunicación | C147: 3 | D147: industrias manufactureras
A148: 2640 | B148: Fabricación de aparatos electrónicos de consumo | C148: 3 | D148: industrias manufactureras
A149: 2651 | B149: Fabricación de equipo de medición, prueba, navegación y control | C149: 3 | D149: industrias manufactureras
A150: 2652 | B150: Fabricación de relojes | C150: 3 | D150: industrias manufactureras
A151: 2660 | B151: Fabricación de equipo de irradiación y equipo electrónico de uso médico y terapéutico | C151: 3 | D151: industrias manufactureras
A152: 2670 | B152: Fabricación de instrumentos ópticos y equipo fotográfico | C152: 3 | D152: industrias manufactureras
A153: 2680 | B153: Fabricación de medios magnéticos y ópticos para almacenamiento de datos | C153: 3 | D153: industrias manufactureras
A154: 2711 | B154: Fabricación de motores, generadores y transformadores eléctricos | C154: 3 | D154: industrias manufactureras
A155: 2712 | B155: Fabricación de aparatos de distribución y control de la energía eléctrica | C155: 3 | D155: industrias manufactureras
A156: 2720 | B156: Fabricación de pilas, baterías y acumuladores eléctricos | C156: 3 | D156: industrias manufactureras
A157: 2731 | B157: Fabricación de hilos y cables eléctricos y de fibra óptica | C157: 3 | D157: industrias manufactureras
A158: 2732 | B158: Fabricación de dispositivos de cableado | C158: 3 | D158: industrias manufactureras
A159: 2740 | B159: Fabricación de equipos eléctricos de iluminación | C159: 3 | D159: industrias manufactureras
A160: 2750 | B160: Fabricación de aparatos de uso doméstico | C160: 3 | D160: industrias manufactureras
A161: 2790 | B161: Fabricación de otros tipos de equipo eléctrico n.c.p. | C161: 3 | D161: industrias manufactureras
A162: 2811 | B162: Fabricación de motores, turbinas, y partes para motores de combustión interna | C162: 3 | D162: industrias manufactureras
A163: 2812 | B163: Fabricación de equipos de potencia hidráulica y neumática | C163: 3 | D163: industrias manufactureras
A164: 2813 | B164: Fabricación de otras bombas, compresores, grifos y válvulas | C164: 3 | D164: industrias manufactureras
A165: 2814 | B165: Fabricación de cojinetes, engranajes, trenes de engranajes y piezas de transmisión | C165: 3 | D165: industrias manufactureras
A166: 2815 | B166: Fabricación de hornos, hogares y quemadores industriales | C166: 3 | D166: industrias manufactureras
A167: 2816 | B167: Fabricación de equipo de elevación y manipulación | C167: 3 | D167: industrias manufactureras
A168: 2817 | B168: Fabricación de maquinaria y equipo de oficina (excepto computadoras y equipo periférico) | C168: 3 | D168: industrias manufactureras
A169: 2818 | B169: Fabricación de herramientas manuales con motor | C169: 3 | D169: industrias manufactureras
A170: 2819 | B170: Fabricación de otros tipos de maquinaria y equipo de uso general n.c.p. | C170: 3 | D170: industrias manufactureras
A171: 2821 | B171: Fabricación de maquinaria agropecuaria y forestal | C171: 3 | D171: industrias manufactureras
A172: 2822 | B172: Fabricación de máquinas formadoras de metal y de máquinas herramienta | C172: 3 | D172: industrias manufactureras
A173: 2823 | B173: Fabricación de maquinaria para la metalurgia | C173: 3 | D173: industrias manufactureras
A174: 2824 | B174: Fabricación de maquinaria para explotación de minas y canteras y para obras de construcción | C174: 3 | D174: industrias manufactureras
A175: 2825 | B175: Fabricación de maquinaria para la elaboración de alimentos, bebidas y tabaco | C175: 3 | D175: industrias manufactureras
A176: 2826 | B176: Fabricación de maquinaria para la elaboración de productos textiles, prendas de vestir y cueros | C176: 3 | D176: industrias manufactureras
A177: 2829 | B177: Fabricación de otros tipos de maquinaria y equipo de uso especial n.c.p. | C177: 3 | D177: industrias manufactureras
A178: 2910 | B178: Fabricación de vehículos automotores y sus motores | C178: 3 | D178: industrias manufactureras
A179: 2920 | B179: Fabricación de carrocerías para vehículos automotores; fabricación de remolques y semirremolques | C179: 3 | D179: industrias manufactureras
A180: 2930 | B180: Fabricación de partes, piezas (autopartes) y accesorios (lujos) para vehículos automotores | C180: 3 | D180: industrias manufactureras
A181: 3011 | B181: Construcción de barcos y de estructuras flotantes | C181: 3 | D181: industrias manufactureras
A182: 3012 | B182: Construcción de embarcaciones de recreo y deporte | C182: 3 | D182: industrias manufactureras
A183: 3020 | B183: Fabricación de locomotoras y de material rodante para ferrocarriles | C183: 3 | D183: industrias manufactureras
A184: 3030 | B184: Fabricación de aeronaves, naves espaciales y de maquinaria conexa | C184: 3 | D184: industrias manufactureras
A185: 3040 | B185: Fabricación de vehículos militares de combate | C185: 3 | D185: industrias manufactureras
A186: 3091 | B186: Fabricación de motocicletas | C186: 3 | D186: industrias manufactureras
A187: 3092 | B187: Fabricación de bicicletas y de sillas de ruedas para personas con discapacidad | C187: 3 | D187: industrias manufactureras
A188: 3099 | B188: Fabricación de otros tipos de equipo de transporte n.c.p. | C188: 3 | D188: industrias manufactureras
A189: 3110 | B189: Fabricación de muebles | C189: 3 | D189: industrias manufactureras
A190: 3120 | B190: Fabricación de colchones y somieres | C190: 3 | D190: industrias manufactureras
A191: 3210 | B191: Fabricación de joyas, bisutería y artículos conexos | C191: 3 | D191: industrias manufactureras
A192: 3220 | B192: Fabricación de instrumentos musicales | C192: 3 | D192: industrias manufactureras
A193: 3230 | B193: Fabricación de artículos y equipo para la práctica del deporte | C193: 3 | D193: industrias manufactureras
A194: 3240 | B194: Fabricación de juegos, juguetes y rompecabezas | C194: 3 | D194: industrias manufactureras
A195: 3250 | B195: Fabricación de instrumentos, aparatos y materiales médicos y odontológicos (incluido mobiliario) | C195: 3 | D195: industrias manufactureras
A196: 3290 | B196: Otras industrias manufactureras n.c.p. | C196: 3 | D196: industrias manufactureras
A197: 3311 | B197: Mantenimiento y reparación especializado de productos elaborados en metal | C197: 3 | D197: industrias manufactureras
A198: 3312 | B198: Mantenimiento y reparación especializado de maquinaria y equipo | C198: 3 | D198: industrias manufactureras
A199: 3313 | B199: Mantenimiento y reparación especializado de equipo electrónico y óptico | C199: 3 | D199: industrias manufactureras
A200: 3314 | B200: Mantenimiento y reparación especializado de equipo eléctrico | C200: 3 | D200: industrias manufactureras
... 299 more rows

Sheet Departamentos_y_municipios_de_C (hidden)
A1: DPTO | B1: DEPARTAMENTO | C1: MUNICIPIO
A2: Amazonas | B2: Amazonas | C2: El Encanto
A3: Antioquia | B3: Amazonas | C3: La Chorrera
A4: Arauca | B4: Amazonas | C4: La Pedrera
A5: San_Andrés | B5: Amazonas | C5: La Victoria
A6: Atlántico | B6: Amazonas | C6: Leticia
A7: Bogotá | B7: Amazonas | C7: Miriti Paraná
A8: Bolívar | B8: Amazonas | C8: Puerto Alegría
A9: Boyacá | B9: Amazonas | C9: Puerto Arica
A10: Caldas | B10: Amazonas | C10: Puerto Nariño
A11: Caquetá | B11: Amazonas | C11: Puerto Santander
A12: Casanare | B12: Amazonas | C12: Tarapacá
A13: Cauca | B13: Antioquia | C13: Abejorral
A14: Cesar | B14: Antioquia | C14: Abriaquí
A15: Chocó | B15: Antioquia | C15: Alejandría
A16: Córdoba | B16: Antioquia | C16: Amagá
A17: Cundinamarca | B17: Antioquia | C17: Amalfi
A18: Guainía | B18: Antioquia | C18: Andes
A19: Guaviare | B19: Antioquia | C19: Angelópolis
A20: Huila | B20: Antioquia | C20: Angostura
A21: La_Guajira | B21: Antioquia | C21: Anorí
A22: Magdalena | B22: Antioquia | C22: Anza
A23: Meta | B23: Antioquia | C23: Apartadó
A24: Nariño | B24: Antioquia | C24: Arboletes
A25: Norte_de_Santander | B25: Antioquia | C25: Argelia
A26: Putumayo | B26: Antioquia | C26: Armenia
A27: Quindío | B27: Antioquia | C27: Barbosa
A28: Risaralda | B28: Antioquia | C28: Bello
A29: Santander | B29: Antioquia | C29: Belmira
A30: Sucre | B30: Antioquia | C30: Betania
A31: Tolima | B31: Antioquia | C31: Betulia
A32: Valle_del_Cauca | B32: Antioquia | C32: Briceño
A33: Vaupés | B33: Antioquia | C33: Buriticá
A34: Vichada | B34: Antioquia | C34: Cáceres
A35: Otro | B35: Antioquia | C35: Caicedo
B36: Antioquia | C36: Caldas
B37: Antioquia | C37: Campamento
B38: Antioquia | C38: Cañasgordas
B39: Antioquia | C39: Caracolí
B40: Antioquia | C40: Caramanta
B41: Antioquia | C41: Carepa
B42: Antioquia | C42: Carolina
B43: Antioquia | C43: Caucasia
B44: Antioquia | C44: Chigorodó
B45: Antioquia | C45: Cisneros
B46: Antioquia | C46: Ciudad Bolívar
B47: Antioquia | C47: Cocorná
B48: Antioquia | C48: Concepción
B49: Antioquia | C49: Concordia
B50: Antioquia | C50: Copacabana
B51: Antioquia | C51: Dabeiba
B52: Antioquia | C52: Don Matías
B53: Antioquia | C53: Ebéjico
B54: Antioquia | C54: El Bagre
B55: Antioquia | C55: El Carmen de Viboral
B56: Antioquia | C56: El Santuario
B57: Antioquia | C57: Entrerrios
B58: Antioquia | C58: Envigado
B59: Antioquia | C59: Fredonia
B60: Antioquia | C60: Frontino
B61: Antioquia | C61: Giraldo
B62: Antioquia | C62: Girardota
B63: Antioquia | C63: Gómez Plata
B64: Antioquia | C64: Granada
B65: Antioquia | C65: Guadalupe
B66: Antioquia | C66: Guarne
B67: Antioquia | C67: Guatapé
B68: Antioquia | C68: Heliconia
B69: Antioquia | C69: Hispania
B70: Antioquia | C70: Itagui
B71: Antioquia | C71: Ituango
B72: Antioquia | C72: Jardín
B73: Antioquia | C73: Jericó
B74: Antioquia | C74: La Ceja
B75: Antioquia | C75: La Estrella
B76: Antioquia | C76: La Pintada
B77: Antioquia | C77: La Unión
B78: Antioquia | C78: Liborina
B79: Antioquia | C79: Maceo
B80: Antioquia | C80: Marinilla
B81: Antioquia | C81: Medellín
B82: Antioquia | C82: Montebello
B83: Antioquia | C83: Murindó
B84: Antioquia | C84: Mutatá
B85: Antioquia | C85: Nariño
B86: Antioquia | C86: Nechí
B87: Antioquia | C87: Necoclí
B88: Antioquia | C88: Olaya
B89: Antioquia | C89: Peñol
B90: Antioquia | C90: Peque
B91: Antioquia | C91: Pueblorrico
B92: Antioquia | C92: Puerto Berrío
B93: Antioquia | C93: Puerto Nare
B94: Antioquia | C94: Puerto Triunfo
B95: Antioquia | C95: Remedios
B96: Antioquia | C96: Retiro
B97: Antioquia | C97: Rionegro
B98: Antioquia | C98: Sabanalarga
B99: Antioquia | C99: Sabaneta
B100: Antioquia | C100: Salgar
B101: Antioquia | C101: San Andrés de Cuerquía
B102: Antioquia | C102: San Carlos
B103: Antioquia | C103: San Francisco
B104: Antioquia | C104: San Jerónimo
B105: Antioquia | C105: San José de La Montaña
B106: Antioquia | C106: San Juan de Urabá
B107: Antioquia | C107: San Luis
B108: Antioquia | C108: San Pedro
B109: Antioquia | C109: San Pedro de Uraba
B110: Antioquia | C110: San Rafael
B111: Antioquia | C111: San Roque
B112: Antioquia | C112: San Vicente
B113: Antioquia | C113: Santa Bárbara
B114: Antioquia | C114: Santa Rosa de Osos
B115: Antioquia | C115: Santafé de Antioquia
B116: Antioquia | C116: Santo Domingo
B117: Antioquia | C117: Segovia
B118: Antioquia | C118: Sonsón
B119: Antioquia | C119: Sopetrán
B120: Antioquia | C120: Támesis
B121: Antioquia | C121: Tarazá
B122: Antioquia | C122: Tarso
B123: Antioquia | C123: Titiribí
B124: Antioquia | C124: Toledo
B125: Antioquia | C125: Turbo
B126: Antioquia | C126: Uramita
B127: Antioquia | C127: Urrao
B128: Antioquia | C128: Valdivia
B129: Antioquia | C129: Valparaíso
B130: Antioquia | C130: Vegachí
B131: Antioquia | C131: Venecia
B132: Antioquia | C132: Vigía del Fuerte
B133: Antioquia | C133: Yalí
B134: Antioquia | C134: Yarumal
B135: Antioquia | C135: Yolombó
B136: Antioquia | C136: Yondó
B137: Antioquia | C137: Zaragoza
B138: Arauca | C138: Arauca
B139: Arauca | C139: Arauquita
B140: Arauca | C140: Cravo Norte
B141: Arauca | C141: Fortul
B142: Arauca | C142: Puerto Rondón
B143: Arauca | C143: Saravena
B144: Arauca | C144: Tame
B145: San_Andrés | C145: Providencia
B146: San_Andrés | C146: San Andrés
B147: Atlántico | C147: Baranoa
B148: Atlántico | C148: Barranquilla
B149: Atlántico | C149: Campo de La Cruz
B150: Atlántico | C150: Candelaria
B151: Atlántico | C151: Galapa
B152: Atlántico | C152: Juan de Acosta
B153: Atlántico | C153: Luruaco
B154: Atlántico | C154: Malambo
B155: Atlántico | C155: Manatí
B156: Atlántico | C156: Palmar de Varela
B157: Atlántico | C157: Piojó
B158: Atlántico | C158: Polonuevo
B159: Atlántico | C159: Ponedera
B160: Atlántico | C160: Puerto Colombia
B161: Atlántico | C161: Repelón
B162: Atlántico | C162: Sabanagrande
B163: Atlántico | C163: Sabanalarga
B164: Atlántico | C164: Santa Lucía
B165: Atlántico | C165: Santo Tomás
B166: Atlántico | C166: Soledad
B167: Atlántico | C167: Suan
B168: Atlántico | C168: Tubará
B169: Atlántico | C169: Usiacurí
B170: Bogotá | C170: Bogotá
B171: Bolívar | C171: Achí
B172: Bolívar | C172: Altos del Rosario
B173: Bolívar | C173: Arenal
B174: Bolívar | C174: Arjona
B175: Bolívar | C175: Arroyohondo
B176: Bolívar | C176: Barranco de Loba
B177: Bolívar | C177: Calamar
B178: Bolívar | C178: Cantagallo
B179: Bolívar | C179: Cartagena
B180: Bolívar | C180: Cicuco
B181: Bolívar | C181: Clemencia
B182: Bolívar | C182: Córdoba
B183: Bolívar | C183: El Carmen de Bolívar
B184: Bolívar | C184: El Guamo
B185: Bolívar | C185: El Peñón
B186: Bolívar | C186: Hatillo de Loba
B187: Bolívar | C187: Magangué
B188: Bolívar | C188: Mahates
B189: Bolívar | C189: Margarita
B190: Bolívar | C190: María la Baja
B191: Bolívar | C191: Mompós
B192: Bolívar | C192: Montecristo
B193: Bolívar | C193: Morales
B194: Bolívar | C194: Norosí
B195: Bolívar | C195: Pinillos
B196: Bolívar | C196: Regidor
B197: Bolívar | C197: Río Viejo
B198: Bolívar | C198: San Cristóbal
B199: Bolívar | C199: San Estanislao
B200: Bolívar | C200: San Fernando
... 924 more rows

Sheet Hoja2 (hidden)
A1: 0 | B1: Si | C1: Cliente | D1: Cedula de ciudadania | E1: Natural | F1: Manufacturero | H1: Enero | I1: 1 | K1: 2022 | M1: 0.7 | N1: 0.25 | P1: 0
A2: 1 | B2: No | C2: Proveedor | D2: NIT | E2: Juridica | F2: Servicios | H2: Febrero | I2: 2 | K2: 2023 | M2: 0.75 | N2: 0.5 | P2: 0.5
A3: 2 | C3: Empleado | D3: Pasaporte | F3: Comercio | H3: Marzo | I3: 3 | K3: 2024 | M3: 0.8 | N3: 0.75 | P3: 1
A4: 3 | C4: Accionista | D4: Cedula de Extranjeria | F4: NA | H4: Abril | I4: 4 | K4: 2025 | M4: 0.85 | N4: 1 | P4: 1.5
A5: 4 | C5: Aliado de negocio | D5: Otra | H5: Mayo | I5: 5 | K5: 2026 | M5: 0.9 | N5: 1.25 | P5: 2
A6: 5 | C6: Usuario Final | H6: Junio | I6: 6 | K6: 2027 | M6: 0.95 | N6: 1.5 | P6: 2.5
H7: Julio | I7: 7 | K7: 2028 | N7: 1.75 | P7: 3
H8: Agosto | I8: 8 | K8: 2029 | N8: 2 | P8: 3.5
D9: Manufacturero | E9: Servicios | F9: Comercio | H9: Septiembre | I9: 9 | K9: 2030 | P9: 4
C10: Microempresa | D10: =23563*MatrizSegmentación!$D$2/1000 -> 855525.404 | E10: =32988*MatrizSegmentación!$D$2/1000 -> 1197728.304 | F10: =44769*MatrizSegmentación!$D$2/1000 -> 1625472.852 | G10: =+IF(MatrizSegmentación!X5<=Hoja2!D10,Hoja2!C10,"") ->  | H10: Octubre | I10: 10 | K10: 2031 | P10: 4.5
C11: Pequeña | D11: =204995*MatrizSegmentación!$D$2/1000 -> 7442958.46 | E11: =131951*MatrizSegmentación!$D$2/1000 -> 4790876.908 | F11: =431196*MatrizSegmentación!$D$2/1000 -> 15655864.37 | H11: Noviembre | I11: 11 | K11: 2032 | P11: 5
C12: Mediana | D12: =1736565*MatrizSegmentación!$D$2/1000 -> 63051202.02 | E12: =483034*MatrizSegmentación!$D$2/1000 -> 17537998.47 | F12: =2160692*MatrizSegmentación!$D$2/1000 -> 78450405.14 | H12: Diciembre | I12: 12 | K12: 2033
C13: Grande | D13: 10000000000 | E13: 10000000000 | F13: 10000000000 | K13: 2034
K14: 2035
K15: 2036
K16: 2037
C17: AFGANISTAN | K17: 2038
C18: ALBANIA | K18: 2039
C19: ALEMANIA | K19: 2040
C20: ANDORRA
C21: ANGOLA
C22: ANGUILLA
C23: ANTIGUA Y BARBUDA
C24: ANTILLAS HOLANDESAS
C25: ARABIA SAUDI
C26: ARGELIA
C27: ARGENTINA
C28: ARMENIA
C29: ARUBA
C30: AUSTRALIA
C31: AUSTRIA
C32: AZERBAIYAN
C33: BAHAMAS
C34: BAHREIN
C35: BANGLADESH
C36: BARBADOS
C37: BELARUS
C38: BELGICA
C39: BELICE
C40: BENIN
C41: BERMUDAS
C42: BHUTÁN
C43: BOLIVIA
C44: BOSNIA Y HERZEGOVINA
C45: BOTSWANA
C46: BRASIL
C47: BRUNEI
C48: BULGARIA
C49: BURKINA FASO
C50: BURUNDI
C51: CABO VERDE
C52: CAMBOYA
C53: CAMERUN
C54: CANADA
C55: CHAD
C56: CHILE
C57: CHINA
C58: CHIPRE
C59: COLOMBIA
C60: COMORES
C61: CONGO
C62: COREA
C63: COREA DEL NORTE
C64: COSTA DE MARFIL
C65: COSTA RICA
C66: CROACIA
C67: CUBA
C68: DINAMARCA
C69: DJIBOUTI
C70: DOMINICA
C71: ECUADOR
C72: EGIPTO
C73: EL SALVADOR
C74: EMIRATOS ARABES UNIDOS
C75: ERITREA
C76: ESLOVENIA
C77: ESPAÑA
C78: ESTADOS UNIDOS DE AMERICA
C79: ESTONIA
C80: ETIOPIA
C81: FIJI
C82: FILIPINAS
C83: FINLANDIA
C84: FRANCIA
C85: GABON
C86: GAMBIA
C87: GEORGIA
C88: GHANA
C89: GIBRALTAR
C90: GRANADA
C91: GRECIA
C92: GROENLANDIA
C93: GUADALUPE
C94: GUAM
C95: GUATEMALA
C96: GUAYANA FRANCESA
C97: GUERNESEY
C98: GUINEA
C99: GUINEA ECUATORIAL
C100: GUINEA-BISSAU
C101: GUYANA
C102: HAITI
C103: HONDURAS
C104: HONG KONG
C105: HUNGRIA
C106: INDIA
C107: INDONESIA
C108: IRAN
C109: IRAQ
C110: IRLANDA
C111: ISLA DE MAN
C112: ISLA NORFOLK
C113: ISLANDIA
C114: ISLAS ALAND
C115: ISLAS CAIMÁN
C116: ISLAS COOK
C117: ISLAS DEL CANAL
C118: ISLAS FEROE
C119: ISLAS MALVINAS
C120: ISLAS MARIANAS DEL NORTE
C121: ISLAS MARSHALL
C122: ISLAS PITCAIRN
C123: ISLAS SALOMON
C124: ISLAS TURCAS Y CAICOS
C125: ISLAS VIRGENES BRITANICAS
C126: ISLAS VÍRGENES DE LOS ESTADOS UNIDOS
C127: ISRAEL
C128: ITALIA
C129: JAMAICA
C130: JAPON
C131: JERSEY
C132: JORDANIA
C133: KAZAJSTAN
C134: KENIA
C135: KIRGUISTAN
C136: KIRIBATI
C137: KUWAIT
C138: LAOS
C139: LESOTHO
C140: LETONIA
C141: LIBANO
C142: LIBERIA
C143: LIBIA
C144: LIECHTENSTEIN
C145: LITUANIA
C146: LUXEMBURGO
C147: MACAO
C148: MACEDONIA
C149: MADAGASCAR
C150: MALASIA
C151: MALAWI
C152: MALDIVAS
C153: MALI
C154: MALTA
C155: MARRUECOS
C156: MARTINICA
C157: MAURICIO
C158: MAURITANIA
C159: MAYOTTE
C160: MEXICO
C161: MICRONESIA
C162: MOLDAVIA
C163: MONACO
C164: MONGOLIA
C165: MONTENEGRO
C166: MONTSERRAT
C167: MOZAMBIQUE
C168: MYANMAR
C169: NAMIBIA
C170: NAURU
C171: NEPAL
C172: NICARAGUA
C173: NIGER
C174: NIGERIA
C175: NIUE
C176: NORUEGA
C177: NUEVA CALEDONIA
C178: NUEVA ZELANDA
C179: OMAN
C180: OTROS PAISES O TERRITORIOS DE AMERICA DEL NORTE
C181: OTROS PAISES O TERRITORIOS DE SUDAMERICA
C182: OTROS PAISES O TERRITORIOS DE AFRICA
C183: OTROS PAISES O TERRITORIOS DE ASIA
C184: OTROS PAISES O TERRITORIOS DE LA UNION EUROPEA
C185: OTROS PAISES O TERRITORIOS DE OCEANIA
C186: OTROS PAISES O TERRITORIOS DEL CARIBE Y AMERICA CENTRAL
C187: OTROS PAISES O TERRITORIOS DEL RESTO DE EUROPA
C188: PAISES BAJOS
C189: PAKISTAN
C190: PALAOS
C191: PALESTINA
C192: PANAMA
C193: PAPUA NUEVA GUINEA
C194: PARAGUAY
C195: PERU
C196: POLINESIA FRANCESA
C197: POLONIA
C198: PORTUGAL
C199: PUERTO RICO
C200: QATAR
... 61 more rows

Sheet MatrizSegmentación
B2: VALOR DEL UVT ULTIMO AÑO | D2: 36308
B4: Tipo de contraparte | C4: Tipo de Persona | D4: Tipo de Identificación | E4: Numero de Identificación | F4: Nombre | G4: Verificado en Listas Restrictivas | H4: PEP | I4: Pais | J4: Pais Cooperante | K4: Departamento | L4: Municipio | M4: Nivel de Riesgo Jurisdicción | N4: Sector | O4: Actividad economica principal (Codigo CIIU) | P4: Actividad económica principal | Q4: Actividad económica secundaria (Codigo CIIU) | R4: Actividad económica secundaría | S4: Nivel de utilización insumos que pueden ser usados en actividades ilegales | T4: Nivel de riesgo asociado a la actividad económica | U4: Es un PEP o tiene relación con PEPs | V4: Nivel de realizacion de actividades en efectivo por montos elevados | W4: Nivel de Riesgo Actividad Económica | X4: Ingresos del ultimo año(miles de pesos) | Y4: Tipo de empresa
B5: Cliente | C5: Natural | D5: Cedula de ciudadania | E5: 79951201 | F5: PEDRO PEREZ | G5: Si | H5: Si | I5: COLOMBIA | J5: Si | K5: Quindío | L5: Circasia | M5: 3.5 | N5: NA | O5: 10 | P5: =IFERROR(_xlfn.XLOOKUP(O5,'Código CIIU'!$A$2:$A$499,'Código CIIU'!$B$2:$B$499),"") -> Empleado | R5: =IFERROR(_xlfn.XLOOKUP(MatrizSegmentación!Q5,'Código CIIU'!$A$2:$A$499,'Código CIIU'!$B$2:$B$499),"") ->  | S5: 0 | T5: 0 | U5: 5 | V5: 0 | W5: =IFERROR(AVERAGE(S5:V5),"") -> 1.25 | X5: 200000000 | Y5: =IFERROR(IF(N5="Manufacturero",_xlfn.XLOOKUP(X5,Hoja2!$D$10:$D$13,Hoja2!$C$10:$C$13,,1),IF(N5="Servicios",_xlfn.XLOOKUP(X5,Hoja2!$E$10:$E$13,Hoja2!$C$10:$C$13,,1),IF(N5="Comercio",_xlfn.XLOOKUP(X5,Hoja2!$F$10:$F$13,Hoja2!$C$10:$C$13,,1),"P. Natural"))),"") -> P. Natural
B6: Proveedor | C6: Juridica | D6: NIT | E6: 900.111.222-2 | F6: FABRICA XYZ | G6: Si | H6: No | I6: COLOMBIA | J6: Si | K6: Cauca | L6: Cajibío | M6: 5 | N6: Manufacturero | O6: 3210 | P6: =IFERROR(_xlfn.XLOOKUP(O6,'Código CIIU'!$A$2:$A$499,'Código CIIU'!$B$2:$B$499),"") -> Fabricación de joyas, bisutería y artículos conexos | R6: =IFERROR(_xlfn.XLOOKUP(MatrizSegmentación!Q6,'Código CIIU'!$A$2:$A$499,'Código CIIU'!$B$2:$B$499),"") ->  | S6: 0 | T6: 3.5 | U6: 0 | V6: 3.5 | W6: =IFERROR(AVERAGE(S6:V6),"") -> 1.75 | X6: 100000000 | Y6: =IFERROR(IF(N6="Manufacturero",_xlfn.XLOOKUP(X6,Hoja2!$D$10:$D$13,Hoja2!$C$10:$C$13,,1),IF(N6="Servicios",_xlfn.XLOOKUP(X6,Hoja2!$E$10:$E$13,Hoja2!$C$10:$C$13,,1),IF(N6="Comercio",_xlfn.XLOOKUP(X6,Hoja2!$F$10:$F$13,Hoja2!$C$10:$C$13,,1),"P. Natural"))),"") -> Grande
B7: Aliado de negocio | C7: Juridica | D7: NIT | E7: 860.333.111-3 | F7: XLM CONSULTORES | G7: Si | H7: No | I7: PANAMA | J7: No | K7: Otro | M7: 5 | N7: Manufacturero | O7: 2819 | P7: =IFERROR(_xlfn.XLOOKUP(O7,'Código CIIU'!$A$2:$A$499,'Código CIIU'!$B$2:$B$499),"") -> Fabricación de otros tipos de maquinaria y equipo de uso general n.c.p. | R7: =IFERROR(_xlfn.XLOOKUP(MatrizSegmentación!Q7,'Código CIIU'!$A$2:$A$499,'Código CIIU'!$B$2:$B$499),"") ->  | S7: 0 | T7: 1 | U7: 0 | V7: 0 | W7: 0.25 | X7: 50000000 | Y7: =IFERROR(IF(N7="Manufacturero",_xlfn.XLOOKUP(X7,Hoja2!$D$10:$D$13,Hoja2!$C$10:$C$13,,1),IF(N7="Servicios",_xlfn.XLOOKUP(X7,Hoja2!$E$10:$E$13,Hoja2!$C$10:$C$13,,1),IF(N7="Comercio",_xlfn.XLOOKUP(X7,Hoja2!$F$10:$F$13,Hoja2!$C$10:$C$13,,1),"P. Natural"))),"") -> Mediana
B8: Empleado | C8: Natural | D8: Cedula de ciudadania | E8: 1010110112 | F8: MIGUEL HERNANDEZ | G8: Si | H8: No | I8: COLOMBIA | J8: Si | K8: Bogotá | L8: Bogotá | M8: 0 | N8: NA | O8: 10 | P8: =IFERROR(_xlfn.XLOOKUP(O8,'Código CIIU'!$A$2:$A$499,'Código CIIU'!$B$2:$B$499),"") -> Empleado | R8: =IFERROR(_xlfn.XLOOKUP(MatrizSegmentación!Q8,'Código CIIU'!$A$2:$A$499,'Código CIIU'!$B$2:$B$499),"") ->  | S8: 0 | T8: 0 | U8: 0 | V8: 0 | W8: 0 | X8: 60000000 | Y8: =IFERROR(IF(N8="Manufacturero",_xlfn.XLOOKUP(X8,Hoja2!$D$10:$D$13,Hoja2!$C$10:$C$13,,1),IF(N8="Servicios",_xlfn.XLOOKUP(X8,Hoja2!$E$10:$E$13,Hoja2!$C$10:$C$13,,1),IF(N8="Comercio",_xlfn.XLOOKUP(X8,Hoja2!$F$10:$F$13,Hoja2!$C$10:$C$13,,1),"P. Natural"))),"") -> P. Natural
B9: Usuario Final | C9: Natural | D9: Cedula de Extranjeria | E9: 10101010 | F9: LINA GOMEZ | G9: Si | H9: Si | I9: PANAMA | J9: No | K9: Otro | M9: 5 | N9: NA | O9: 90 | P9: =IFERROR(_xlfn.XLOOKUP(O9,'Código CIIU'!$A$2:$A$499,'Código CIIU'!$B$2:$B$499),"") -> Rentista de capital | R9: =IFERROR(_xlfn.XLOOKUP(MatrizSegmentación!Q9,'Código CIIU'!$A$2:$A$499,'Código CIIU'!$B$2:$B$499),"") ->  | S9: 0 | T9: 0 | U9: 5 | V9: 0 | W9: 1.25 | X9: 2000000000 | Y9: =IFERROR(IF(N9="Manufacturero",_xlfn.XLOOKUP(X9,Hoja2!$D$10:$D$13,Hoja2!$C$10:$C$13,,1),IF(N9="Servicios",_xlfn.XLOOKUP(X9,Hoja2!$E$10:$E$13,Hoja2!$C$10:$C$13,,1),IF(N9="Comercio",_xlfn.XLOOKUP(X9,Hoja2!$F$10:$F$13,Hoja2!$C$10:$C$13,,1),"P. Natural"))),"") -> P. Natural
P10: =IFERROR(_xlfn.XLOOKUP(O10,'Código CIIU'!$A$2:$A$499,'Código CIIU'!$B$2:$B$499),"") ->  | R10: =IFERROR(_xlfn.XLOOKUP(MatrizSegmentación!Q10,'Código CIIU'!$A$2:$A$499,'Código CIIU'!$B$2:$B$499),"") ->  | Y10: =IFERROR(IF(N10="Manufacturero",_xlfn.XLOOKUP(X10,Hoja2!$D$10:$D$13,Hoja2!$C$10:$C$13,,1),IF(N10="Servicios",_xlfn.XLOOKUP(X10,Hoja2!$E$10:$E$13,Hoja2!$C$10:$C$13,,1),IF(N10="Comercio",_xlfn.XLOOKUP(X10,Hoja2!$F$10:$F$13,Hoja2!$C$10:$C$13,,1),"P. Natural"))),"") -> P. Natural
P11: =IFERROR(_xlfn.XLOOKUP(O11,'Código CIIU'!$A$2:$A$499,'Código CIIU'!$B$2:$B$499),"") ->  | R11: =IFERROR(_xlfn.XLOOKUP(MatrizSegmentación!Q11,'Código CIIU'!$A$2:$A$499,'Código CIIU'!$B$2:$B$499),"") ->  | Y11: =IFERROR(IF(N11="Manufacturero",_xlfn.XLOOKUP(X11,Hoja2!$D$10:$D$13,Hoja2!$C$10:$C$13,,1),IF(N11="Servicios",_xlfn.XLOOKUP(X11,Hoja2!$E$10:$E$13,Hoja2!$C$10:$C$13,,1),IF(N11="Comercio",_xlfn.XLOOKUP(X11,Hoja2!$F$10:$F$13,Hoja2!$C$10:$C$13,,1),"P. Natural"))),"") -> P. Natural
P12: =IFERROR(_xlfn.XLOOKUP(O12,'Código CIIU'!$A$2:$A$499,'Código CIIU'!$B$2:$B$499),"") ->  | R12: =IFERROR(_xlfn.XLOOKUP(MatrizSegmentación!Q12,'Código CIIU'!$A$2:$A$499,'Código CIIU'!$B$2:$B$499),"") ->  | Y12: =IFERROR(IF(N12="Manufacturero",_xlfn.XLOOKUP(X12,Hoja2!$D$10:$D$13,Hoja2!$C$10:$C$13,,1),IF(N12="Servicios",_xlfn.XLOOKUP(X12,Hoja2!$E$10:$E$13,Hoja2!$C$10:$C$13,,1),IF(N12="Comercio",_xlfn.XLOOKUP(X12,Hoja2!$F$10:$F$13,Hoja2!$C$10:$C$13,,1),"P. Natural"))),"") -> P. Natural
P13: =IFERROR(_xlfn.XLOOKUP(O13,'Código CIIU'!$A$2:$A$499,'Código CIIU'!$B$2:$B$499),"") ->  | R13: =IFERROR(_xlfn.XLOOKUP(MatrizSegmentación!Q13,'Código CIIU'!$A$2:$A$499,'Código CIIU'!$B$2:$B$499),"") ->  | Y13: =IFERROR(IF(N13="Manufacturero",_xlfn.XLOOKUP(X13,Hoja2!$D$10:$D$13,Hoja2!$C$10:$C$13,,1),IF(N13="Servicios",_xlfn.XLOOKUP(X13,Hoja2!$E$10:$E$13,Hoja2!$C$10:$C$13,,1),IF(N13="Comercio",_xlfn.XLOOKUP(X13,Hoja2!$F$10:$F$13,Hoja2!$C$10:$C$13,,1),"P. Natural"))),"") -> P. Natural
P14: =IFERROR(_xlfn.XLOOKUP(O14,'Código CIIU'!$A$2:$A$499,'Código CIIU'!$B$2:$B$499),"") ->  | R14: =IFERROR(_xlfn.XLOOKUP(MatrizSegmentación!Q14,'Código CIIU'!$A$2:$A$499,'Código CIIU'!$B$2:$B$499),"") ->  | Y14: =IFERROR(IF(N14="Manufacturero",_xlfn.XLOOKUP(X14,Hoja2!$D$10:$D$13,Hoja2!$C$10:$C$13,,1),IF(N14="Servicios",_xlfn.XLOOKUP(X14,Hoja2!$E$10:$E$13,Hoja2!$C$10:$C$13,,1),IF(N14="Comercio",_xlfn.XLOOKUP(X14,Hoja2!$F$10:$F$13,Hoja2!$C$10:$C$13,,1),"P. Natural"))),"") -> P. Natural
P15: =IFERROR(_xlfn.XLOOKUP(O15,'Código CIIU'!$A$2:$A$499,'Código CIIU'!$B$2:$B$499),"") ->  | R15: =IFERROR(_xlfn.XLOOKUP(MatrizSegmentación!Q15,'Código CIIU'!$A$2:$A$499,'Código CIIU'!$B$2:$B$499),"") ->  | Y15: =IFERROR(IF(N15="Manufacturero",_xlfn.XLOOKUP(X15,Hoja2!$D$10:$D$13,Hoja2!$C$10:$C$13,,1),IF(N15="Servicios",_xlfn.XLOOKUP(X15,Hoja2!$E$10:$E$13,Hoja2!$C$10:$C$13,,1),IF(N15="Comercio",_xlfn.XLOOKUP(X15,Hoja2!$F$10:$F$13,Hoja2!$C$10:$C$13,,1),"P. Natural"))),"") -> P. Natural
P16: =IFERROR(_xlfn.XLOOKUP(O16,'Código CIIU'!$A$2:$A$499,'Código CIIU'!$B$2:$B$499),"") ->  | R16: =IFERROR(_xlfn.XLOOKUP(MatrizSegmentación!Q16,'Código CIIU'!$A$2:$A$499,'Código CIIU'!$B$2:$B$499),"") ->  | Y16: =IFERROR(IF(N16="Manufacturero",_xlfn.XLOOKUP(X16,Hoja2!$D$10:$D$13,Hoja2!$C$10:$C$13,,1),IF(N16="Servicios",_xlfn.XLOOKUP(X16,Hoja2!$E$10:$E$13,Hoja2!$C$10:$C$13,,1),IF(N16="Comercio",_xlfn.XLOOKUP(X16,Hoja2!$F$10:$F$13,Hoja2!$C$10:$C$13,,1),"P. Natural"))),"") -> P. Natural
P17: =IFERROR(_xlfn.XLOOKUP(O17,'Código CIIU'!$A$2:$A$499,'Código CIIU'!$B$2:$B$499),"") ->  | R17: =IFERROR(_xlfn.XLOOKUP(MatrizSegmentación!Q17,'Código CIIU'!$A$2:$A$499,'Código CIIU'!$B$2:$B$499),"") ->  | Y17: =IFERROR(IF(N17="Manufacturero",_xlfn.XLOOKUP(X17,Hoja2!$D$10:$D$13,Hoja2!$C$10:$C$13,,1),IF(N17="Servicios",_xlfn.XLOOKUP(X17,Hoja2!$E$10:$E$13,Hoja2!$C$10:$C$13,,1),IF(N17="Comercio",_xlfn.XLOOKUP(X17,Hoja2!$F$10:$F$13,Hoja2!$C$10:$C$13,,1),"P. Natural"))),"") -> P. Natural
P18: =IFERROR(_xlfn.XLOOKUP(O18,'Código CIIU'!$A$2:$A$499,'Código CIIU'!$B$2:$B$499),"") ->  | R18: =IFERROR(_xlfn.XLOOKUP(MatrizSegmentación!Q18,'Código CIIU'!$A$2:$A$499,'Código CIIU'!$B$2:$B$499),"") ->  | Y18: =IFERROR(IF(N18="Manufacturero",_xlfn.XLOOKUP(X18,Hoja2!$D$10:$D$13,Hoja2!$C$10:$C$13,,1),IF(N18="Servicios",_xlfn.XLOOKUP(X18,Hoja2!$E$10:$E$13,Hoja2!$C$10:$C$13,,1),IF(N18="Comercio",_xlfn.XLOOKUP(X18,Hoja2!$F$10:$F$13,Hoja2!$C$10:$C$13,,1),"P. Natural"))),"") -> P. Natural
P19: =IFERROR(_xlfn.XLOOKUP(O19,'Código CIIU'!$A$2:$A$499,'Código CIIU'!$B$2:$B$499),"") ->  | R19: =IFERROR(_xlfn.XLOOKUP(MatrizSegmentación!Q19,'Código CIIU'!$A$2:$A$499,'Código CIIU'!$B$2:$B$499),"") ->  | Y19: =IFERROR(IF(N19="Manufacturero",_xlfn.XLOOKUP(X19,Hoja2!$D$10:$D$13,Hoja2!$C$10:$C$13,,1),IF(N19="Servicios",_xlfn.XLOOKUP(X19,Hoja2!$E$10:$E$13,Hoja2!$C$10:$C$13,,1),IF(N19="Comercio",_xlfn.XLOOKUP(X19,Hoja2!$F$10:$F$13,Hoja2!$C$10:$C$13,,1),"P. Natural"))),"") -> P. Natural
P20: =IFERROR(_xlfn.XLOOKUP(O20,'Código CIIU'!$A$2:$A$499,'Código CIIU'!$B$2:$B$499),"") ->  | R20: =IFERROR(_xlfn.XLOOKUP(MatrizSegmentación!Q20,'Código CIIU'!$A$2:$A$499,'Código CIIU'!$B$2:$B$499),"") ->  | Y20: =IFERROR(IF(N20="Manufacturero",_xlfn.XLOOKUP(X20,Hoja2!$D$10:$D$13,Hoja2!$C$10:$C$13,,1),IF(N20="Servicios",_xlfn.XLOOKUP(X20,Hoja2!$E$10:$E$13,Hoja2!$C$10:$C$13,,1),IF(N20="Comercio",_xlfn.XLOOKUP(X20,Hoja2!$F$10:$F$13,Hoja2!$C$10:$C$13,,1),"P. Natural"))),"") -> P. Natural
P21: =IFERROR(_xlfn.XLOOKUP(O21,'Código CIIU'!$A$2:$A$499,'Código CIIU'!$B$2:$B$499),"") ->  | R21: =IFERROR(_xlfn.XLOOKUP(MatrizSegmentación!Q21,'Código CIIU'!$A$2:$A$499,'Código CIIU'!$B$2:$B$499),"") ->  | Y21: =IFERROR(IF(N21="Manufacturero",_xlfn.XLOOKUP(X21,Hoja2!$D$10:$D$13,Hoja2!$C$10:$C$13,,1),IF(N21="Servicios",_xlfn.XLOOKUP(X21,Hoja2!$E$10:$E$13,Hoja2!$C$10:$C$13,,1),IF(N21="Comercio",_xlfn.XLOOKUP(X21,Hoja2!$F$10:$F$13,Hoja2!$C$10:$C$13,,1),"P. Natural"))),"") -> P. Natural
P22: =IFERROR(_xlfn.XLOOKUP(O22,'Código CIIU'!$A$2:$A$499,'Código CIIU'!$B$2:$B$499),"") ->  | R22: =IFERROR(_xlfn.XLOOKUP(MatrizSegmentación!Q22,'Código CIIU'!$A$2:$A$499,'Código CIIU'!$B$2:$B$499),"") ->  | Y22: =IFERROR(IF(N22="Manufacturero",_xlfn.XLOOKUP(X22,Hoja2!$D$10:$D$13,Hoja2!$C$10:$C$13,,1),IF(N22="Servicios",_xlfn.XLOOKUP(X22,Hoja2!$E$10:$E$13,Hoja2!$C$10:$C$13,,1),IF(N22="Comercio",_xlfn.XLOOKUP(X22,Hoja2!$F$10:$F$13,Hoja2!$C$10:$C$13,,1),"P. Natural"))),"") -> P. Natural
P23: =IFERROR(_xlfn.XLOOKUP(O23,'Código CIIU'!$A$2:$A$499,'Código CIIU'!$B$2:$B$499),"") ->  | R23: =IFERROR(_xlfn.XLOOKUP(MatrizSegmentación!Q23,'Código CIIU'!$A$2:$A$499,'Código CIIU'!$B$2:$B$499),"") ->  | Y23: =IFERROR(IF(N23="Manufacturero",_xlfn.XLOOKUP(X23,Hoja2!$D$10:$D$13,Hoja2!$C$10:$C$13,,1),IF(N23="Servicios",_xlfn.XLOOKUP(X23,Hoja2!$E$10:$E$13,Hoja2!$C$10:$C$13,,1),IF(N23="Comercio",_xlfn.XLOOKUP(X23,Hoja2!$F$10:$F$13,Hoja2!$C$10:$C$13,,1),"P. Natural"))),"") -> P. Natural
P24: =IFERROR(_xlfn.XLOOKUP(O24,'Código CIIU'!$A$2:$A$499,'Código CIIU'!$B$2:$B$499),"") ->  | R24: =IFERROR(_xlfn.XLOOKUP(MatrizSegmentación!Q24,'Código CIIU'!$A$2:$A$499,'Código CIIU'!$B$2:$B$499),"") ->  | Y24: =IFERROR(IF(N24="Manufacturero",_xlfn.XLOOKUP(X24,Hoja2!$D$10:$D$13,Hoja2!$C$10:$C$13,,1),IF(N24="Servicios",_xlfn.XLOOKUP(X24,Hoja2!$E$10:$E$13,Hoja2!$C$10:$C$13,,1),IF(N24="Comercio",_xlfn.XLOOKUP(X24,Hoja2!$F$10:$F$13,Hoja2!$C$10:$C$13,,1),"P. Natural"))),"") -> P. Natural
P25: =IFERROR(_xlfn.XLOOKUP(O25,'Código CIIU'!$A$2:$A$499,'Código CIIU'!$B$2:$B$499),"") ->  | R25: =IFERROR(_xlfn.XLOOKUP(MatrizSegmentación!Q25,'Código CIIU'!$A$2:$A$499,'Código CIIU'!$B$2:$B$499),"") ->  | Y25: =IFERROR(IF(N25="Manufacturero",_xlfn.XLOOKUP(X25,Hoja2!$D$10:$D$13,Hoja2!$C$10:$C$13,,1),IF(N25="Servicios",_xlfn.XLOOKUP(X25,Hoja2!$E$10:$E$13,Hoja2!$C$10:$C$13,,1),IF(N25="Comercio",_xlfn.XLOOKUP(X25,Hoja2!$F$10:$F$13,Hoja2!$C$10:$C$13,,1),"P. Natural"))),"") -> P. Natural
P26: =IFERROR(_xlfn.XLOOKUP(O26,'Código CIIU'!$A$2:$A$499,'Código CIIU'!$B$2:$B$499),"") ->  | R26: =IFERROR(_xlfn.XLOOKUP(MatrizSegmentación!Q26,'Código CIIU'!$A$2:$A$499,'Código CIIU'!$B$2:$B$499),"") ->  | Y26: =IFERROR(IF(N26="Manufacturero",_xlfn.XLOOKUP(X26,Hoja2!$D$10:$D$13,Hoja2!$C$10:$C$13,,1),IF(N26="Servicios",_xlfn.XLOOKUP(X26,Hoja2!$E$10:$E$13,Hoja2!$C$10:$C$13,,1),IF(N26="Comercio",_xlfn.XLOOKUP(X26,Hoja2!$F$10:$F$13,Hoja2!$C$10:$C$13,,1),"P. Natural"))),"") -> P. Natural
P27: =IFERROR(_xlfn.XLOOKUP(O27,'Código CIIU'!$A$2:$A$499,'Código CIIU'!$B$2:$B$499),"") ->  | R27: =IFERROR(_xlfn.XLOOKUP(MatrizSegmentación!Q27,'Código CIIU'!$A$2:$A$499,'Código CIIU'!$B$2:$B$499),"") ->  | Y27: =IFERROR(IF(N27="Manufacturero",_xlfn.XLOOKUP(X27,Hoja2!$D$10:$D$13,Hoja2!$C$10:$C$13,,1),IF(N27="Servicios",_xlfn.XLOOKUP(X27,Hoja2!$E$10:$E$13,Hoja2!$C$10:$C$13,,1),IF(N27="Comercio",_xlfn.XLOOKUP(X27,Hoja2!$F$10:$F$13,Hoja2!$C$10:$C$13,,1),"P. Natural"))),"") -> P. Natural
P28: =IFERROR(_xlfn.XLOOKUP(O28,'Código CIIU'!$A$2:$A$499,'Código CIIU'!$B$2:$B$499),"") ->  | R28: =IFERROR(_xlfn.XLOOKUP(MatrizSegmentación!Q28,'Código CIIU'!$A$2:$A$499,'Código CIIU'!$B$2:$B$499),"") ->  | Y28: =IFERROR(IF(N28="Manufacturero",_xlfn.XLOOKUP(X28,Hoja2!$D$10:$D$13,Hoja2!$C$10:$C$13,,1),IF(N28="Servicios",_xlfn.XLOOKUP(X28,Hoja2!$E$10:$E$13,Hoja2!$C$10:$C$13,,1),IF(N28="Comercio",_xlfn.XLOOKUP(X28,Hoja2!$F$10:$F$13,Hoja2!$C$10:$C$13,,1),"P. Natural"))),"") -> P. Natural
P29: =IFERROR(_xlfn.XLOOKUP(O29,'Código CIIU'!$A$2:$A$499,'Código CIIU'!$B$2:$B$499),"") ->  | R29: =IFERROR(_xlfn.XLOOKUP(MatrizSegmentación!Q29,'Código CIIU'!$A$2:$A$499,'Código CIIU'!$B$2:$B$499),"") ->  | Y29: =IFERROR(IF(N29="Manufacturero",_xlfn.XLOOKUP(X29,Hoja2!$D$10:$D$13,Hoja2!$C$10:$C$13,,1),IF(N29="Servicios",_xlfn.XLOOKUP(X29,Hoja2!$E$10:$E$13,Hoja2!$C$10:$C$13,,1),IF(N29="Comercio",_xlfn.XLOOKUP(X29,Hoja2!$F$10:$F$13,Hoja2!$C$10:$C$13,,1),"P. Natural"))),"") -> P. Natural
P30: =IFERROR(_xlfn.XLOOKUP(O30,'Código CIIU'!$A$2:$A$499,'Código CIIU'!$B$2:$B$499),"") ->  | R30: =IFERROR(_xlfn.XLOOKUP(MatrizSegmentación!Q30,'Código CIIU'!$A$2:$A$499,'Código CIIU'!$B$2:$B$499),"") ->  | Y30: =IFERROR(IF(N30="Manufacturero",_xlfn.XLOOKUP(X30,Hoja2!$D$10:$D$13,Hoja2!$C$10:$C$13,,1),IF(N30="Servicios",_xlfn.XLOOKUP(X30,Hoja2!$E$10:$E$13,Hoja2!$C$10:$C$13,,1),IF(N30="Comercio",_xlfn.XLOOKUP(X30,Hoja2!$F$10:$F$13,Hoja2!$C$10:$C$13,,1),"P. Natural"))),"") -> P. Natural
P31: =IFERROR(_xlfn.XLOOKUP(O31,'Código CIIU'!$A$2:$A$499,'Código CIIU'!$B$2:$B$499),"") ->  | R31: =IFERROR(_xlfn.XLOOKUP(MatrizSegmentación!Q31,'Código CIIU'!$A$2:$A$499,'Código CIIU'!$B$2:$B$499),"") ->  | Y31: =IFERROR(IF(N31="Manufacturero",_xlfn.XLOOKUP(X31,Hoja2!$D$10:$D$13,Hoja2!$C$10:$C$13,,1),IF(N31="Servicios",_xlfn.XLOOKUP(X31,Hoja2!$E$10:$E$13,Hoja2!$C$10:$C$13,,1),IF(N31="Comercio",_xlfn.XLOOKUP(X31,Hoja2!$F$10:$F$13,Hoja2!$C$10:$C$13,,1),"P. Natural"))),"") -> P. Natural
P32: =IFERROR(_xlfn.XLOOKUP(O32,'Código CIIU'!$A$2:$A$499,'Código CIIU'!$B$2:$B$499),"") ->  | R32: =IFERROR(_xlfn.XLOOKUP(MatrizSegmentación!Q32,'Código CIIU'!$A$2:$A$499,'Código CIIU'!$B$2:$B$499),"") ->  | Y32: =IFERROR(IF(N32="Manufacturero",_xlfn.XLOOKUP(X32,Hoja2!$D$10:$D$13,Hoja2!$C$10:$C$13,,1),IF(N32="Servicios",_xlfn.XLOOKUP(X32,Hoja2!$E$10:$E$13,Hoja2!$C$10:$C$13,,1),IF(N32="Comercio",_xlfn.XLOOKUP(X32,Hoja2!$F$10:$F$13,Hoja2!$C$10:$C$13,,1),"P. Natural"))),"") -> P. Natural
P33: =IFERROR(_xlfn.XLOOKUP(O33,'Código CIIU'!$A$2:$A$499,'Código CIIU'!$B$2:$B$499),"") ->  | R33: =IFERROR(_xlfn.XLOOKUP(MatrizSegmentación!Q33,'Código CIIU'!$A$2:$A$499,'Código CIIU'!$B$2:$B$499),"") ->  | Y33: =IFERROR(IF(N33="Manufacturero",_xlfn.XLOOKUP(X33,Hoja2!$D$10:$D$13,Hoja2!$C$10:$C$13,,1),IF(N33="Servicios",_xlfn.XLOOKUP(X33,Hoja2!$E$10:$E$13,Hoja2!$C$10:$C$13,,1),IF(N33="Comercio",_xlfn.XLOOKUP(X33,Hoja2!$F$10:$F$13,Hoja2!$C$10:$C$13,,1),"P. Natural"))),"") -> P. Natural
P34: =IFERROR(_xlfn.XLOOKUP(O34,'Código CIIU'!$A$2:$A$499,'Código CIIU'!$B$2:$B$499),"") ->  | R34: =IFERROR(_xlfn.XLOOKUP(MatrizSegmentación!Q34,'Código CIIU'!$A$2:$A$499,'Código CIIU'!$B$2:$B$499),"") ->  | Y34: =IFERROR(IF(N34="Manufacturero",_xlfn.XLOOKUP(X34,Hoja2!$D$10:$D$13,Hoja2!$C$10:$C$13,,1),IF(N34="Servicios",_xlfn.XLOOKUP(X34,Hoja2!$E$10:$E$13,Hoja2!$C$10:$C$13,,1),IF(N34="Comercio",_xlfn.XLOOKUP(X34,Hoja2!$F$10:$F$13,Hoja2!$C$10:$C$13,,1),"P. Natural"))),"") -> P. Natural
P35: =IFERROR(_xlfn.XLOOKUP(O35,'Código CIIU'!$A$2:$A$499,'Código CIIU'!$B$2:$B$499),"") ->  | R35: =IFERROR(_xlfn.XLOOKUP(MatrizSegmentación!Q35,'Código CIIU'!$A$2:$A$499,'Código CIIU'!$B$2:$B$499),"") ->  | Y35: =IFERROR(IF(N35="Manufacturero",_xlfn.XLOOKUP(X35,Hoja2!$D$10:$D$13,Hoja2!$C$10:$C$13,,1),IF(N35="Servicios",_xlfn.XLOOKUP(X35,Hoja2!$E$10:$E$13,Hoja2!$C$10:$C$13,,1),IF(N35="Comercio",_xlfn.XLOOKUP(X35,Hoja2!$F$10:$F$13,Hoja2!$C$10:$C$13,,1),"P. Natural"))),"") -> P. Natural
P36: =IFERROR(_xlfn.XLOOKUP(O36,'Código CIIU'!$A$2:$A$499,'Código CIIU'!$B$2:$B$499),"") ->  | R36: =IFERROR(_xlfn.XLOOKUP(MatrizSegmentación!Q36,'Código CIIU'!$A$2:$A$499,'Código CIIU'!$B$2:$B$499),"") ->  | Y36: =IFERROR(IF(N36="Manufacturero",_xlfn.XLOOKUP(X36,Hoja2!$D$10:$D$13,Hoja2!$C$10:$C$13,,1),IF(N36="Servicios",_xlfn.XLOOKUP(X36,Hoja2!$E$10:$E$13,Hoja2!$C$10:$C$13,,1),IF(N36="Comercio",_xlfn.XLOOKUP(X36,Hoja2!$F$10:$F$13,Hoja2!$C$10:$C$13,,1),"P. Natural"))),"") -> P. Natural
P37: =IFERROR(_xlfn.XLOOKUP(O37,'Código CIIU'!$A$2:$A$499,'Código CIIU'!$B$2:$B$499),"") ->  | R37: =IFERROR(_xlfn.XLOOKUP(MatrizSegmentación!Q37,'Código CIIU'!$A$2:$A$499,'Código CIIU'!$B$2:$B$499),"") ->  | Y37: =IFERROR(IF(N37="Manufacturero",_xlfn.XLOOKUP(X37,Hoja2!$D$10:$D$13,Hoja2!$C$10:$C$13,,1),IF(N37="Servicios",_xlfn.XLOOKUP(X37,Hoja2!$E$10:$E$13,Hoja2!$C$10:$C$13,,1),IF(N37="Comercio",_xlfn.XLOOKUP(X37,Hoja2!$F$10:$F$13,Hoja2!$C$10:$C$13,,1),"P. Natural"))),"") -> P. Natural
P38: =IFERROR(_xlfn.XLOOKUP(O38,'Código CIIU'!$A$2:$A$499,'Código CIIU'!$B$2:$B$499),"") ->  | R38: =IFERROR(_xlfn.XLOOKUP(MatrizSegmentación!Q38,'Código CIIU'!$A$2:$A$499,'Código CIIU'!$B$2:$B$499),"") ->  | Y38: =IFERROR(IF(N38="Manufacturero",_xlfn.XLOOKUP(X38,Hoja2!$D$10:$D$13,Hoja2!$C$10:$C$13,,1),IF(N38="Servicios",_xlfn.XLOOKUP(X38,Hoja2!$E$10:$E$13,Hoja2!$C$10:$C$13,,1),IF(N38="Comercio",_xlfn.XLOOKUP(X38,Hoja2!$F$10:$F$13,Hoja2!$C$10:$C$13,,1),"P. Natural"))),"") -> P. Natural
P39: =IFERROR(_xlfn.XLOOKUP(O39,'Código CIIU'!$A$2:$A$499,'Código CIIU'!$B$2:$B$499),"") ->  | R39: =IFERROR(_xlfn.XLOOKUP(MatrizSegmentación!Q39,'Código CIIU'!$A$2:$A$499,'Código CIIU'!$B$2:$B$499),"") ->  | Y39: =IFERROR(IF(N39="Manufacturero",_xlfn.XLOOKUP(X39,Hoja2!$D$10:$D$13,Hoja2!$C$10:$C$13,,1),IF(N39="Servicios",_xlfn.XLOOKUP(X39,Hoja2!$E$10:$E$13,Hoja2!$C$10:$C$13,,1),IF(N39="Comercio",_xlfn.XLOOKUP(X39,Hoja2!$F$10:$F$13,Hoja2!$C$10:$C$13,,1),"P. Natural"))),"") -> P. Natural
P40: =IFERROR(_xlfn.XLOOKUP(O40,'Código CIIU'!$A$2:$A$499,'Código CIIU'!$B$2:$B$499),"") ->  | R40: =IFERROR(_xlfn.XLOOKUP(MatrizSegmentación!Q40,'Código CIIU'!$A$2:$A$499,'Código CIIU'!$B$2:$B$499),"") ->  | Y40: =IFERROR(IF(N40="Manufacturero",_xlfn.XLOOKUP(X40,Hoja2!$D$10:$D$13,Hoja2!$C$10:$C$13,,1),IF(N40="Servicios",_xlfn.XLOOKUP(X40,Hoja2!$E$10:$E$13,Hoja2!$C$10:$C$13,,1),IF(N40="Comercio",_xlfn.XLOOKUP(X40,Hoja2!$F$10:$F$13,Hoja2!$C$10:$C$13,,1),"P. Natural"))),"") -> P. Natural
P41: =IFERROR(_xlfn.XLOOKUP(O41,'Código CIIU'!$A$2:$A$499,'Código CIIU'!$B$2:$B$499),"") ->  | R41: =IFERROR(_xlfn.XLOOKUP(MatrizSegmentación!Q41,'Código CIIU'!$A$2:$A$499,'Código CIIU'!$B$2:$B$499),"") ->  | Y41: =IFERROR(IF(N41="Manufacturero",_xlfn.XLOOKUP(X41,Hoja2!$D$10:$D$13,Hoja2!$C$10:$C$13,,1),IF(N41="Servicios",_xlfn.XLOOKUP(X41,Hoja2!$E$10:$E$13,Hoja2!$C$10:$C$13,,1),IF(N41="Comercio",_xlfn.XLOOKUP(X41,Hoja2!$F$10:$F$13,Hoja2!$C$10:$C$13,,1),"P. Natural"))),"") -> P. Natural
P42: =IFERROR(_xlfn.XLOOKUP(O42,'Código CIIU'!$A$2:$A$499,'Código CIIU'!$B$2:$B$499),"") ->  | R42: =IFERROR(_xlfn.XLOOKUP(MatrizSegmentación!Q42,'Código CIIU'!$A$2:$A$499,'Código CIIU'!$B$2:$B$499),"") ->  | Y42: =IFERROR(IF(N42="Manufacturero",_xlfn.XLOOKUP(X42,Hoja2!$D$10:$D$13,Hoja2!$C$10:$C$13,,1),IF(N42="Servicios",_xlfn.XLOOKUP(X42,Hoja2!$E$10:$E$13,Hoja2!$C$10:$C$13,,1),IF(N42="Comercio",_xlfn.XLOOKUP(X42,Hoja2!$F$10:$F$13,Hoja2!$C$10:$C$13,,1),"P. Natural"))),"") -> P. Natural
P43: =IFERROR(_xlfn.XLOOKUP(O43,'Código CIIU'!$A$2:$A$499,'Código CIIU'!$B$2:$B$499),"") ->  | R43: =IFERROR(_xlfn.XLOOKUP(MatrizSegmentación!Q43,'Código CIIU'!$A$2:$A$499,'Código CIIU'!$B$2:$B$499),"") ->  | Y43: =IFERROR(IF(N43="Manufacturero",_xlfn.XLOOKUP(X43,Hoja2!$D$10:$D$13,Hoja2!$C$10:$C$13,,1),IF(N43="Servicios",_xlfn.XLOOKUP(X43,Hoja2!$E$10:$E$13,Hoja2!$C$10:$C$13,,1),IF(N43="Comercio",_xlfn.XLOOKUP(X43,Hoja2!$F$10:$F$13,Hoja2!$C$10:$C$13,,1),"P. Natural"))),"") -> P. Natural
P44: =IFERROR(_xlfn.XLOOKUP(O44,'Código CIIU'!$A$2:$A$499,'Código CIIU'!$B$2:$B$499),"") ->  | R44: =IFERROR(_xlfn.XLOOKUP(MatrizSegmentación!Q44,'Código CIIU'!$A$2:$A$499,'Código CIIU'!$B$2:$B$499),"") ->  | Y44: =IFERROR(IF(N44="Manufacturero",_xlfn.XLOOKUP(X44,Hoja2!$D$10:$D$13,Hoja2!$C$10:$C$13,,1),IF(N44="Servicios",_xlfn.XLOOKUP(X44,Hoja2!$E$10:$E$13,Hoja2!$C$10:$C$13,,1),IF(N44="Comercio",_xlfn.XLOOKUP(X44,Hoja2!$F$10:$F$13,Hoja2!$C$10:$C$13,,1),"P. Natural"))),"") -> P. Natural
P45: =IFERROR(_xlfn.XLOOKUP(O45,'Código CIIU'!$A$2:$A$499,'Código CIIU'!$B$2:$B$499),"") ->  | R45: =IFERROR(_xlfn.XLOOKUP(MatrizSegmentación!Q45,'Código CIIU'!$A$2:$A$499,'Código CIIU'!$B$2:$B$499),"") ->  | Y45: =IFERROR(IF(N45="Manufacturero",_xlfn.XLOOKUP(X45,Hoja2!$D$10:$D$13,Hoja2!$C$10:$C$13,,1),IF(N45="Servicios",_xlfn.XLOOKUP(X45,Hoja2!$E$10:$E$13,Hoja2!$C$10:$C$13,,1),IF(N45="Comercio",_xlfn.XLOOKUP(X45,Hoja2!$F$10:$F$13,Hoja2!$C$10:$C$13,,1),"P. Natural"))),"") -> P. Natural
P46: =IFERROR(_xlfn.XLOOKUP(O46,'Código CIIU'!$A$2:$A$499,'Código CIIU'!$B$2:$B$499),"") ->  | R46: =IFERROR(_xlfn.XLOOKUP(MatrizSegmentación!Q46,'Código CIIU'!$A$2:$A$499,'Código CIIU'!$B$2:$B$499),"") ->  | Y46: =IFERROR(IF(N46="Manufacturero",_xlfn.XLOOKUP(X46,Hoja2!$D$10:$D$13,Hoja2!$C$10:$C$13,,1),IF(N46="Servicios",_xlfn.XLOOKUP(X46,Hoja2!$E$10:$E$13,Hoja2!$C$10:$C$13,,1),IF(N46="Comercio",_xlfn.XLOOKUP(X46,Hoja2!$F$10:$F$13,Hoja2!$C$10:$C$13,,1),"P. Natural"))),"") -> P. Natural
P47: =IFERROR(_xlfn.XLOOKUP(O47,'Código CIIU'!$A$2:$A$499,'Código CIIU'!$B$2:$B$499),"") ->  | R47: =IFERROR(_xlfn.XLOOKUP(MatrizSegmentación!Q47,'Código CIIU'!$A$2:$A$499,'Código CIIU'!$B$2:$B$499),"") ->  | Y47: =IFERROR(IF(N47="Manufacturero",_xlfn.XLOOKUP(X47,Hoja2!$D$10:$D$13,Hoja2!$C$10:$C$13,,1),IF(N47="Servicios",_xlfn.XLOOKUP(X47,Hoja2!$E$10:$E$13,Hoja2!$C$10:$C$13,,1),IF(N47="Comercio",_xlfn.XLOOKUP(X47,Hoja2!$F$10:$F$13,Hoja2!$C$10:$C$13,,1),"P. Natural"))),"") -> P. Natural
P48: =IFERROR(_xlfn.XLOOKUP(O48,'Código CIIU'!$A$2:$A$499,'Código CIIU'!$B$2:$B$499),"") ->  | R48: =IFERROR(_xlfn.XLOOKUP(MatrizSegmentación!Q48,'Código CIIU'!$A$2:$A$499,'Código CIIU'!$B$2:$B$499),"") ->  | Y48: =IFERROR(IF(N48="Manufacturero",_xlfn.XLOOKUP(X48,Hoja2!$D$10:$D$13,Hoja2!$C$10:$C$13,,1),IF(N48="Servicios",_xlfn.XLOOKUP(X48,Hoja2!$E$10:$E$13,Hoja2!$C$10:$C$13,,1),IF(N48="Comercio",_xlfn.XLOOKUP(X48,Hoja2!$F$10:$F$13,Hoja2!$C$10:$C$13,,1),"P. Natural"))),"") -> P. Natural
P49: =IFERROR(_xlfn.XLOOKUP(O49,'Código CIIU'!$A$2:$A$499,'Código CIIU'!$B$2:$B$499),"") ->  | R49: =IFERROR(_xlfn.XLOOKUP(MatrizSegmentación!Q49,'Código CIIU'!$A$2:$A$499,'Código CIIU'!$B$2:$B$499),"") ->  | Y49: =IFERROR(IF(N49="Manufacturero",_xlfn.XLOOKUP(X49,Hoja2!$D$10:$D$13,Hoja2!$C$10:$C$13,,1),IF(N49="Servicios",_xlfn.XLOOKUP(X49,Hoja2!$E$10:$E$13,Hoja2!$C$10:$C$13,,1),IF(N49="Comercio",_xlfn.XLOOKUP(X49,Hoja2!$F$10:$F$13,Hoja2!$C$10:$C$13,,1),"P. Natural"))),"") -> P. Natural
P50: =IFERROR(_xlfn.XLOOKUP(O50,'Código CIIU'!$A$2:$A$499,'Código CIIU'!$B$2:$B$499),"") ->  | R50: =IFERROR(_xlfn.XLOOKUP(MatrizSegmentación!Q50,'Código CIIU'!$A$2:$A$499,'Código CIIU'!$B$2:$B$499),"") ->  | Y50: =IFERROR(IF(N50="Manufacturero",_xlfn.XLOOKUP(X50,Hoja2!$D$10:$D$13,Hoja2!$C$10:$C$13,,1),IF(N50="Servicios",_xlfn.XLOOKUP(X50,Hoja2!$E$10:$E$13,Hoja2!$C$10:$C$13,,1),IF(N50="Comercio",_xlfn.XLOOKUP(X50,Hoja2!$F$10:$F$13,Hoja2!$C$10:$C$13,,1),"P. Natural"))),"") -> P. Natural
P51: =IFERROR(_xlfn.XLOOKUP(O51,'Código CIIU'!$A$2:$A$499,'Código CIIU'!$B$2:$B$499),"") ->  | R51: =IFERROR(_xlfn.XLOOKUP(MatrizSegmentación!Q51,'Código CIIU'!$A$2:$A$499,'Código CIIU'!$B$2:$B$499),"") ->  | Y51: =IFERROR(IF(N51="Manufacturero",_xlfn.XLOOKUP(X51,Hoja2!$D$10:$D$13,Hoja2!$C$10:$C$13,,1),IF(N51="Servicios",_xlfn.XLOOKUP(X51,Hoja2!$E$10:$E$13,Hoja2!$C$10:$C$13,,1),IF(N51="Comercio",_xlfn.XLOOKUP(X51,Hoja2!$F$10:$F$13,Hoja2!$C$10:$C$13,,1),"P. Natural"))),"") -> P. Natural
P52: =IFERROR(_xlfn.XLOOKUP(O52,'Código CIIU'!$A$2:$A$499,'Código CIIU'!$B$2:$B$499),"") ->  | R52: =IFERROR(_xlfn.XLOOKUP(MatrizSegmentación!Q52,'Código CIIU'!$A$2:$A$499,'Código CIIU'!$B$2:$B$499),"") ->  | Y52: =IFERROR(IF(N52="Manufacturero",_xlfn.XLOOKUP(X52,Hoja2!$D$10:$D$13,Hoja2!$C$10:$C$13,,1),IF(N52="Servicios",_xlfn.XLOOKUP(X52,Hoja2!$E$10:$E$13,Hoja2!$C$10:$C$13,,1),IF(N52="Comercio",_xlfn.XLOOKUP(X52,Hoja2!$F$10:$F$13,Hoja2!$C$10:$C$13,,1),"P. Natural"))),"") -> P. Natural
P53: =IFERROR(_xlfn.XLOOKUP(O53,'Código CIIU'!$A$2:$A$499,'Código CIIU'!$B$2:$B$499),"") ->  | R53: =IFERROR(_xlfn.XLOOKUP(MatrizSegmentación!Q53,'Código CIIU'!$A$2:$A$499,'Código CIIU'!$B$2:$B$499),"") ->  | Y53: =IFERROR(IF(N53="Manufacturero",_xlfn.XLOOKUP(X53,Hoja2!$D$10:$D$13,Hoja2!$C$10:$C$13,,1),IF(N53="Servicios",_xlfn.XLOOKUP(X53,Hoja2!$E$10:$E$13,Hoja2!$C$10:$C$13,,1),IF(N53="Comercio",_xlfn.XLOOKUP(X53,Hoja2!$F$10:$F$13,Hoja2!$C$10:$C$13,,1),"P. Natural"))),"") -> P. Natural
P54: =IFERROR(_xlfn.XLOOKUP(O54,'Código CIIU'!$A$2:$A$499,'Código CIIU'!$B$2:$B$499),"") ->  | R54: =IFERROR(_xlfn.XLOOKUP(MatrizSegmentación!Q54,'Código CIIU'!$A$2:$A$499,'Código CIIU'!$B$2:$B$499),"") ->  | Y54: =IFERROR(IF(N54="Manufacturero",_xlfn.XLOOKUP(X54,Hoja2!$D$10:$D$13,Hoja2!$C$10:$C$13,,1),IF(N54="Servicios",_xlfn.XLOOKUP(X54,Hoja2!$E$10:$E$13,Hoja2!$C$10:$C$13,,1),IF(N54="Comercio",_xlfn.XLOOKUP(X54,Hoja2!$F$10:$F$13,Hoja2!$C$10:$C$13,,1),"P. Natural"))),"") -> P. Natural
P55: =IFERROR(_xlfn.XLOOKUP(O55,'Código CIIU'!$A$2:$A$499,'Código CIIU'!$B$2:$B$499),"") ->  | R55: =IFERROR(_xlfn.XLOOKUP(MatrizSegmentación!Q55,'Código CIIU'!$A$2:$A$499,'Código CIIU'!$B$2:$B$499),"") ->  | Y55: =IFERROR(IF(N55="Manufacturero",_xlfn.XLOOKUP(X55,Hoja2!$D$10:$D$13,Hoja2!$C$10:$C$13,,1),IF(N55="Servicios",_xlfn.XLOOKUP(X55,Hoja2!$E$10:$E$13,Hoja2!$C$10:$C$13,,1),IF(N55="Comercio",_xlfn.XLOOKUP(X55,Hoja2!$F$10:$F$13,Hoja2!$C$10:$C$13,,1),"P. Natural"))),"") -> P. Natural
P56: =IFERROR(_xlfn.XLOOKUP(O56,'Código CIIU'!$A$2:$A$499,'Código CIIU'!$B$2:$B$499),"") ->  | R56: =IFERROR(_xlfn.XLOOKUP(MatrizSegmentación!Q56,'Código CIIU'!$A$2:$A$499,'Código CIIU'!$B$2:$B$499),"") ->  | Y56: =IFERROR(IF(N56="Manufacturero",_xlfn.XLOOKUP(X56,Hoja2!$D$10:$D$13,Hoja2!$C$10:$C$13,,1),IF(N56="Servicios",_xlfn.XLOOKUP(X56,Hoja2!$E$10:$E$13,Hoja2!$C$10:$C$13,,1),IF(N56="Comercio",_xlfn.XLOOKUP(X56,Hoja2!$F$10:$F$13,Hoja2!$C$10:$C$13,,1),"P. Natural"))),"") -> P. Natural
P57: =IFERROR(_xlfn.XLOOKUP(O57,'Código CIIU'!$A$2:$A$499,'Código CIIU'!$B$2:$B$499),"") ->  | R57: =IFERROR(_xlfn.XLOOKUP(MatrizSegmentación!Q57,'Código CIIU'!$A$2:$A$499,'Código CIIU'!$B$2:$B$499),"") ->  | Y57: =IFERROR(IF(N57="Manufacturero",_xlfn.XLOOKUP(X57,Hoja2!$D$10:$D$13,Hoja2!$C$10:$C$13,,1),IF(N57="Servicios",_xlfn.XLOOKUP(X57,Hoja2!$E$10:$E$13,Hoja2!$C$10:$C$13,,1),IF(N57="Comercio",_xlfn.XLOOKUP(X57,Hoja2!$F$10:$F$13,Hoja2!$C$10:$C$13,,1),"P. Natural"))),"") -> P. Natural
P58: =IFERROR(_xlfn.XLOOKUP(O58,'Código CIIU'!$A$2:$A$499,'Código CIIU'!$B$2:$B$499),"") ->  | R58: =IFERROR(_xlfn.XLOOKUP(MatrizSegmentación!Q58,'Código CIIU'!$A$2:$A$499,'Código CIIU'!$B$2:$B$499),"") ->  | Y58: =IFERROR(IF(N58="Manufacturero",_xlfn.XLOOKUP(X58,Hoja2!$D$10:$D$13,Hoja2!$C$10:$C$13,,1),IF(N58="Servicios",_xlfn.XLOOKUP(X58,Hoja2!$E$10:$E$13,Hoja2!$C$10:$C$13,,1),IF(N58="Comercio",_xlfn.XLOOKUP(X58,Hoja2!$F$10:$F$13,Hoja2!$C$10:$C$13,,1),"P. Natural"))),"") -> P. Natural
P59: =IFERROR(_xlfn.XLOOKUP(O59,'Código CIIU'!$A$2:$A$499,'Código CIIU'!$B$2:$B$499),"") ->  | R59: =IFERROR(_xlfn.XLOOKUP(MatrizSegmentación!Q59,'Código CIIU'!$A$2:$A$499,'Código CIIU'!$B$2:$B$499),"") ->  | Y59: =IFERROR(IF(N59="Manufacturero",_xlfn.XLOOKUP(X59,Hoja2!$D$10:$D$13,Hoja2!$C$10:$C$13,,1),IF(N59="Servicios",_xlfn.XLOOKUP(X59,Hoja2!$E$10:$E$13,Hoja2!$C$10:$C$13,,1),IF(N59="Comercio",_xlfn.XLOOKUP(X59,Hoja2!$F$10:$F$13,Hoja2!$C$10:$C$13,,1),"P. Natural"))),"") -> P. Natural
P60: =IFERROR(_xlfn.XLOOKUP(O60,'Código CIIU'!$A$2:$A$499,'Código CIIU'!$B$2:$B$499),"") ->  | R60: =IFERROR(_xlfn.XLOOKUP(MatrizSegmentación!Q60,'Código CIIU'!$A$2:$A$499,'Código CIIU'!$B$2:$B$499),"") ->  | Y60: =IFERROR(IF(N60="Manufacturero",_xlfn.XLOOKUP(X60,Hoja2!$D$10:$D$13,Hoja2!$C$10:$C$13,,1),IF(N60="Servicios",_xlfn.XLOOKUP(X60,Hoja2!$E$10:$E$13,Hoja2!$C$10:$C$13,,1),IF(N60="Comercio",_xlfn.XLOOKUP(X60,Hoja2!$F$10:$F$13,Hoja2!$C$10:$C$13,,1),"P. Natural"))),"") -> P. Natural
P61: =IFERROR(_xlfn.XLOOKUP(O61,'Código CIIU'!$A$2:$A$499,'Código CIIU'!$B$2:$B$499),"") ->  | R61: =IFERROR(_xlfn.XLOOKUP(MatrizSegmentación!Q61,'Código CIIU'!$A$2:$A$499,'Código CIIU'!$B$2:$B$499),"") ->  | Y61: =IFERROR(IF(N61="Manufacturero",_xlfn.XLOOKUP(X61,Hoja2!$D$10:$D$13,Hoja2!$C$10:$C$13,,1),IF(N61="Servicios",_xlfn.XLOOKUP(X61,Hoja2!$E$10:$E$13,Hoja2!$C$10:$C$13,,1),IF(N61="Comercio",_xlfn.XLOOKUP(X61,Hoja2!$F$10:$F$13,Hoja2!$C$10:$C$13,,1),"P. Natural"))),"") -> P. Natural
P62: =IFERROR(_xlfn.XLOOKUP(O62,'Código CIIU'!$A$2:$A$499,'Código CIIU'!$B$2:$B$499),"") ->  | R62: =IFERROR(_xlfn.XLOOKUP(MatrizSegmentación!Q62,'Código CIIU'!$A$2:$A$499,'Código CIIU'!$B$2:$B$499),"") ->  | Y62: =IFERROR(IF(N62="Manufacturero",_xlfn.XLOOKUP(X62,Hoja2!$D$10:$D$13,Hoja2!$C$10:$C$13,,1),IF(N62="Servicios",_xlfn.XLOOKUP(X62,Hoja2!$E$10:$E$13,Hoja2!$C$10:$C$13,,1),IF(N62="Comercio",_xlfn.XLOOKUP(X62,Hoja2!$F$10:$F$13,Hoja2!$C$10:$C$13,,1),"P. Natural"))),"") -> P. Natural
P63: =IFERROR(_xlfn.XLOOKUP(O63,'Código CIIU'!$A$2:$A$499,'Código CIIU'!$B$2:$B$499),"") ->  | R63: =IFERROR(_xlfn.XLOOKUP(MatrizSegmentación!Q63,'Código CIIU'!$A$2:$A$499,'Código CIIU'!$B$2:$B$499),"") ->  | Y63: =IFERROR(IF(N63="Manufacturero",_xlfn.XLOOKUP(X63,Hoja2!$D$10:$D$13,Hoja2!$C$10:$C$13,,1),IF(N63="Servicios",_xlfn.XLOOKUP(X63,Hoja2!$E$10:$E$13,Hoja2!$C$10:$C$13,,1),IF(N63="Comercio",_xlfn.XLOOKUP(X63,Hoja2!$F$10:$F$13,Hoja2!$C$10:$C$13,,1),"P. Natural"))),"") -> P. Natural
P64: =IFERROR(_xlfn.XLOOKUP(O64,'Código CIIU'!$A$2:$A$499,'Código CIIU'!$B$2:$B$499),"") ->  | R64: =IFERROR(_xlfn.XLOOKUP(MatrizSegmentación!Q64,'Código CIIU'!$A$2:$A$499,'Código CIIU'!$B$2:$B$499),"") ->  | Y64: =IFERROR(IF(N64="Manufacturero",_xlfn.XLOOKUP(X64,Hoja2!$D$10:$D$13,Hoja2!$C$10:$C$13,,1),IF(N64="Servicios",_xlfn.XLOOKUP(X64,Hoja2!$E$10:$E$13,Hoja2!$C$10:$C$13,,1),IF(N64="Comercio",_xlfn.XLOOKUP(X64,Hoja2!$F$10:$F$13,Hoja2!$C$10:$C$13,,1),"P. Natural"))),"") -> P. Natural
P65: =IFERROR(_xlfn.XLOOKUP(O65,'Código CIIU'!$A$2:$A$499,'Código CIIU'!$B$2:$B$499),"") ->  | R65: =IFERROR(_xlfn.XLOOKUP(MatrizSegmentación!Q65,'Código CIIU'!$A$2:$A$499,'Código CIIU'!$B$2:$B$499),"") ->  | Y65: =IFERROR(IF(N65="Manufacturero",_xlfn.XLOOKUP(X65,Hoja2!$D$10:$D$13,Hoja2!$C$10:$C$13,,1),IF(N65="Servicios",_xlfn.XLOOKUP(X65,Hoja2!$E$10:$E$13,Hoja2!$C$10:$C$13,,1),IF(N65="Comercio",_xlfn.XLOOKUP(X65,Hoja2!$F$10:$F$13,Hoja2!$C$10:$C$13,,1),"P. Natural"))),"") -> P. Natural
P66: =IFERROR(_xlfn.XLOOKUP(O66,'Código CIIU'!$A$2:$A$499,'Código CIIU'!$B$2:$B$499),"") ->  | R66: =IFERROR(_xlfn.XLOOKUP(MatrizSegmentación!Q66,'Código CIIU'!$A$2:$A$499,'Código CIIU'!$B$2:$B$499),"") ->  | Y66: =IFERROR(IF(N66="Manufacturero",_xlfn.XLOOKUP(X66,Hoja2!$D$10:$D$13,Hoja2!$C$10:$C$13,,1),IF(N66="Servicios",_xlfn.XLOOKUP(X66,Hoja2!$E$10:$E$13,Hoja2!$C$10:$C$13,,1),IF(N66="Comercio",_xlfn.XLOOKUP(X66,Hoja2!$F$10:$F$13,Hoja2!$C$10:$C$13,,1),"P. Natural"))),"") -> P. Natural
P67: =IFERROR(_xlfn.XLOOKUP(O67,'Código CIIU'!$A$2:$A$499,'Código CIIU'!$B$2:$B$499),"") ->  | R67: =IFERROR(_xlfn.XLOOKUP(MatrizSegmentación!Q67,'Código CIIU'!$A$2:$A$499,'Código CIIU'!$B$2:$B$499),"") ->  | Y67: =IFERROR(IF(N67="Manufacturero",_xlfn.XLOOKUP(X67,Hoja2!$D$10:$D$13,Hoja2!$C$10:$C$13,,1),IF(N67="Servicios",_xlfn.XLOOKUP(X67,Hoja2!$E$10:$E$13,Hoja2!$C$10:$C$13,,1),IF(N67="Comercio",_xlfn.XLOOKUP(X67,Hoja2!$F$10:$F$13,Hoja2!$C$10:$C$13,,1),"P. Natural"))),"") -> P. Natural
P68: =IFERROR(_xlfn.XLOOKUP(O68,'Código CIIU'!$A$2:$A$499,'Código CIIU'!$B$2:$B$499),"") ->  | R68: =IFERROR(_xlfn.XLOOKUP(MatrizSegmentación!Q68,'Código CIIU'!$A$2:$A$499,'Código CIIU'!$B$2:$B$499),"") ->  | Y68: =IFERROR(IF(N68="Manufacturero",_xlfn.XLOOKUP(X68,Hoja2!$D$10:$D$13,Hoja2!$C$10:$C$13,,1),IF(N68="Servicios",_xlfn.XLOOKUP(X68,Hoja2!$E$10:$E$13,Hoja2!$C$10:$C$13,,1),IF(N68="Comercio",_xlfn.XLOOKUP(X68,Hoja2!$F$10:$F$13,Hoja2!$C$10:$C$13,,1),"P. Natural"))),"") -> P. Natural
P69: =IFERROR(_xlfn.XLOOKUP(O69,'Código CIIU'!$A$2:$A$499,'Código CIIU'!$B$2:$B$499),"") ->  | R69: =IFERROR(_xlfn.XLOOKUP(MatrizSegmentación!Q69,'Código CIIU'!$A$2:$A$499,'Código CIIU'!$B$2:$B$499),"") ->  | Y69: =IFERROR(IF(N69="Manufacturero",_xlfn.XLOOKUP(X69,Hoja2!$D$10:$D$13,Hoja2!$C$10:$C$13,,1),IF(N69="Servicios",_xlfn.XLOOKUP(X69,Hoja2!$E$10:$E$13,Hoja2!$C$10:$C$13,,1),IF(N69="Comercio",_xlfn.XLOOKUP(X69,Hoja2!$F$10:$F$13,Hoja2!$C$10:$C$13,,1),"P. Natural"))),"") -> P. Natural
P70: =IFERROR(_xlfn.XLOOKUP(O70,'Código CIIU'!$A$2:$A$499,'Código CIIU'!$B$2:$B$499),"") ->  | R70: =IFERROR(_xlfn.XLOOKUP(MatrizSegmentación!Q70,'Código CIIU'!$A$2:$A$499,'Código CIIU'!$B$2:$B$499),"") ->  | W70: =IFERROR(AVERAGE(S70:V70),"") ->  | Y70: =IFERROR(IF(N70="Manufacturero",_xlfn.XLOOKUP(X70,Hoja2!$D$10:$D$13,Hoja2!$C$10:$C$13,,1),IF(N70="Servicios",_xlfn.XLOOKUP(X70,Hoja2!$E$10:$E$13,Hoja2!$C$10:$C$13,,1),IF(N70="Comercio",_xlfn.XLOOKUP(X70,Hoja2!$F$10:$F$13,Hoja2!$C$10:$C$13,,1),"P. Natural"))),"") -> P. Natural
P71: =IFERROR(_xlfn.XLOOKUP(O71,'Código CIIU'!$A$2:$A$499,'Código CIIU'!$B$2:$B$499),"") ->  | R71: =IFERROR(_xlfn.XLOOKUP(MatrizSegmentación!Q71,'Código CIIU'!$A$2:$A$499,'Código CIIU'!$B$2:$B$499),"") ->  | Y71: =IFERROR(IF(N71="Manufacturero",_xlfn.XLOOKUP(X71,Hoja2!$D$10:$D$13,Hoja2!$C$10:$C$13,,1),IF(N71="Servicios",_xlfn.XLOOKUP(X71,Hoja2!$E$10:$E$13,Hoja2!$C$10:$C$13,,1),IF(N71="Comercio",_xlfn.XLOOKUP(X71,Hoja2!$F$10:$F$13,Hoja2!$C$10:$C$13,,1),"P. Natural"))),"") -> P. Natural
P72: =IFERROR(_xlfn.XLOOKUP(O72,'Código CIIU'!$A$2:$A$499,'Código CIIU'!$B$2:$B$499),"") ->  | R72: =IFERROR(_xlfn.XLOOKUP(MatrizSegmentación!Q72,'Código CIIU'!$A$2:$A$499,'Código CIIU'!$B$2:$B$499),"") ->  | Y72: =IFERROR(IF(N72="Manufacturero",_xlfn.XLOOKUP(X72,Hoja2!$D$10:$D$13,Hoja2!$C$10:$C$13,,1),IF(N72="Servicios",_xlfn.XLOOKUP(X72,Hoja2!$E$10:$E$13,Hoja2!$C$10:$C$13,,1),IF(N72="Comercio",_xlfn.XLOOKUP(X72,Hoja2!$F$10:$F$13,Hoja2!$C$10:$C$13,,1),"P. Natural"))),"") -> P. Natural
P73: =IFERROR(_xlfn.XLOOKUP(O73,'Código CIIU'!$A$2:$A$499,'Código CIIU'!$B$2:$B$499),"") ->  | R73: =IFERROR(_xlfn.XLOOKUP(MatrizSegmentación!Q73,'Código CIIU'!$A$2:$A$499,'Código CIIU'!$B$2:$B$499),"") ->  | Y73: =IFERROR(IF(N73="Manufacturero",_xlfn.XLOOKUP(X73,Hoja2!$D$10:$D$13,Hoja2!$C$10:$C$13,,1),IF(N73="Servicios",_xlfn.XLOOKUP(X73,Hoja2!$E$10:$E$13,Hoja2!$C$10:$C$13,,1),IF(N73="Comercio",_xlfn.XLOOKUP(X73,Hoja2!$F$10:$F$13,Hoja2!$C$10:$C$13,,1),"P. Natural"))),"") -> P. Natural
P74: =IFERROR(_xlfn.XLOOKUP(O74,'Código CIIU'!$A$2:$A$499,'Código CIIU'!$B$2:$B$499),"") ->  | R74: =IFERROR(_xlfn.XLOOKUP(MatrizSegmentación!Q74,'Código CIIU'!$A$2:$A$499,'Código CIIU'!$B$2:$B$499),"") ->  | Y74: =IFERROR(IF(N74="Manufacturero",_xlfn.XLOOKUP(X74,Hoja2!$D$10:$D$13,Hoja2!$C$10:$C$13,,1),IF(N74="Servicios",_xlfn.XLOOKUP(X74,Hoja2!$E$10:$E$13,Hoja2!$C$10:$C$13,,1),IF(N74="Comercio",_xlfn.XLOOKUP(X74,Hoja2!$F$10:$F$13,Hoja2!$C$10:$C$13,,1),"P. Natural"))),"") -> P. Natural
P75: =IFERROR(_xlfn.XLOOKUP(O75,'Código CIIU'!$A$2:$A$499,'Código CIIU'!$B$2:$B$499),"") ->  | R75: =IFERROR(_xlfn.XLOOKUP(MatrizSegmentación!Q75,'Código CIIU'!$A$2:$A$499,'Código CIIU'!$B$2:$B$499),"") ->  | Y75: =IFERROR(IF(N75="Manufacturero",_xlfn.XLOOKUP(X75,Hoja2!$D$10:$D$13,Hoja2!$C$10:$C$13,,1),IF(N75="Servicios",_xlfn.XLOOKUP(X75,Hoja2!$E$10:$E$13,Hoja2!$C$10:$C$13,,1),IF(N75="Comercio",_xlfn.XLOOKUP(X75,Hoja2!$F$10:$F$13,Hoja2!$C$10:$C$13,,1),"P. Natural"))),"") -> P. Natural
P76: =IFERROR(_xlfn.XLOOKUP(O76,'Código CIIU'!$A$2:$A$499,'Código CIIU'!$B$2:$B$499),"") ->  | R76: =IFERROR(_xlfn.XLOOKUP(MatrizSegmentación!Q76,'Código CIIU'!$A$2:$A$499,'Código CIIU'!$B$2:$B$499),"") ->  | Y76: =IFERROR(IF(N76="Manufacturero",_xlfn.XLOOKUP(X76,Hoja2!$D$10:$D$13,Hoja2!$C$10:$C$13,,1),IF(N76="Servicios",_xlfn.XLOOKUP(X76,Hoja2!$E$10:$E$13,Hoja2!$C$10:$C$13,,1),IF(N76="Comercio",_xlfn.XLOOKUP(X76,Hoja2!$F$10:$F$13,Hoja2!$C$10:$C$13,,1),"P. Natural"))),"") -> P. Natural
P77: =IFERROR(_xlfn.XLOOKUP(O77,'Código CIIU'!$A$2:$A$499,'Código CIIU'!$B$2:$B$499),"") ->  | R77: =IFERROR(_xlfn.XLOOKUP(MatrizSegmentación!Q77,'Código CIIU'!$A$2:$A$499,'Código CIIU'!$B$2:$B$499),"") ->  | Y77: =IFERROR(IF(N77="Manufacturero",_xlfn.XLOOKUP(X77,Hoja2!$D$10:$D$13,Hoja2!$C$10:$C$13,,1),IF(N77="Servicios",_xlfn.XLOOKUP(X77,Hoja2!$E$10:$E$13,Hoja2!$C$10:$C$13,,1),IF(N77="Comercio",_xlfn.XLOOKUP(X77,Hoja2!$F$10:$F$13,Hoja2!$C$10:$C$13,,1),"P. Natural"))),"") -> P. Natural
P78: =IFERROR(_xlfn.XLOOKUP(O78,'Código CIIU'!$A$2:$A$499,'Código CIIU'!$B$2:$B$499),"") ->  | R78: =IFERROR(_xlfn.XLOOKUP(MatrizSegmentación!Q78,'Código CIIU'!$A$2:$A$499,'Código CIIU'!$B$2:$B$499),"") ->  | Y78: =IFERROR(IF(N78="Manufacturero",_xlfn.XLOOKUP(X78,Hoja2!$D$10:$D$13,Hoja2!$C$10:$C$13,,1),IF(N78="Servicios",_xlfn.XLOOKUP(X78,Hoja2!$E$10:$E$13,Hoja2!$C$10:$C$13,,1),IF(N78="Comercio",_xlfn.XLOOKUP(X78,Hoja2!$F$10:$F$13,Hoja2!$C$10:$C$13,,1),"P. Natural"))),"") -> P. Natural
P79: =IFERROR(_xlfn.XLOOKUP(O79,'Código CIIU'!$A$2:$A$499,'Código CIIU'!$B$2:$B$499),"") ->  | R79: =IFERROR(_xlfn.XLOOKUP(MatrizSegmentación!Q79,'Código CIIU'!$A$2:$A$499,'Código CIIU'!$B$2:$B$499),"") ->  | Y79: =IFERROR(IF(N79="Manufacturero",_xlfn.XLOOKUP(X79,Hoja2!$D$10:$D$13,Hoja2!$C$10:$C$13,,1),IF(N79="Servicios",_xlfn.XLOOKUP(X79,Hoja2!$E$10:$E$13,Hoja2!$C$10:$C$13,,1),IF(N79="Comercio",_xlfn.XLOOKUP(X79,Hoja2!$F$10:$F$13,Hoja2!$C$10:$C$13,,1),"P. Natural"))),"") -> P. Natural
P80: =IFERROR(_xlfn.XLOOKUP(O80,'Código CIIU'!$A$2:$A$499,'Código CIIU'!$B$2:$B$499),"") ->  | R80: =IFERROR(_xlfn.XLOOKUP(MatrizSegmentación!Q80,'Código CIIU'!$A$2:$A$499,'Código CIIU'!$B$2:$B$499),"") ->  | Y80: =IFERROR(IF(N80="Manufacturero",_xlfn.XLOOKUP(X80,Hoja2!$D$10:$D$13,Hoja2!$C$10:$C$13,,1),IF(N80="Servicios",_xlfn.XLOOKUP(X80,Hoja2!$E$10:$E$13,Hoja2!$C$10:$C$13,,1),IF(N80="Comercio",_xlfn.XLOOKUP(X80,Hoja2!$F$10:$F$13,Hoja2!$C$10:$C$13,,1),"P. Natural"))),"") -> P. Natural
P81: =IFERROR(_xlfn.XLOOKUP(O81,'Código CIIU'!$A$2:$A$499,'Código CIIU'!$B$2:$B$499),"") ->  | R81: =IFERROR(_xlfn.XLOOKUP(MatrizSegmentación!Q81,'Código CIIU'!$A$2:$A$499,'Código CIIU'!$B$2:$B$499),"") ->  | Y81: =IFERROR(IF(N81="Manufacturero",_xlfn.XLOOKUP(X81,Hoja2!$D$10:$D$13,Hoja2!$C$10:$C$13,,1),IF(N81="Servicios",_xlfn.XLOOKUP(X81,Hoja2!$E$10:$E$13,Hoja2!$C$10:$C$13,,1),IF(N81="Comercio",_xlfn.XLOOKUP(X81,Hoja2!$F$10:$F$13,Hoja2!$C$10:$C$13,,1),"P. Natural"))),"") -> P. Natural
P82: =IFERROR(_xlfn.XLOOKUP(O82,'Código CIIU'!$A$2:$A$499,'Código CIIU'!$B$2:$B$499),"") ->  | R82: =IFERROR(_xlfn.XLOOKUP(MatrizSegmentación!Q82,'Código CIIU'!$A$2:$A$499,'Código CIIU'!$B$2:$B$499),"") ->  | Y82: =IFERROR(IF(N82="Manufacturero",_xlfn.XLOOKUP(X82,Hoja2!$D$10:$D$13,Hoja2!$C$10:$C$13,,1),IF(N82="Servicios",_xlfn.XLOOKUP(X82,Hoja2!$E$10:$E$13,Hoja2!$C$10:$C$13,,1),IF(N82="Comercio",_xlfn.XLOOKUP(X82,Hoja2!$F$10:$F$13,Hoja2!$C$10:$C$13,,1),"P. Natural"))),"") -> P. Natural
P83: =IFERROR(_xlfn.XLOOKUP(O83,'Código CIIU'!$A$2:$A$499,'Código CIIU'!$B$2:$B$499),"") ->  | R83: =IFERROR(_xlfn.XLOOKUP(MatrizSegmentación!Q83,'Código CIIU'!$A$2:$A$499,'Código CIIU'!$B$2:$B$499),"") ->  | Y83: =IFERROR(IF(N83="Manufacturero",_xlfn.XLOOKUP(X83,Hoja2!$D$10:$D$13,Hoja2!$C$10:$C$13,,1),IF(N83="Servicios",_xlfn.XLOOKUP(X83,Hoja2!$E$10:$E$13,Hoja2!$C$10:$C$13,,1),IF(N83="Comercio",_xlfn.XLOOKUP(X83,Hoja2!$F$10:$F$13,Hoja2!$C$10:$C$13,,1),"P. Natural"))),"") -> P. Natural
P84: =IFERROR(_xlfn.XLOOKUP(O84,'Código CIIU'!$A$2:$A$499,'Código CIIU'!$B$2:$B$499),"") ->  | R84: =IFERROR(_xlfn.XLOOKUP(MatrizSegmentación!Q84,'Código CIIU'!$A$2:$A$499,'Código CIIU'!$B$2:$B$499),"") ->  | Y84: =IFERROR(IF(N84="Manufacturero",_xlfn.XLOOKUP(X84,Hoja2!$D$10:$D$13,Hoja2!$C$10:$C$13,,1),IF(N84="Servicios",_xlfn.XLOOKUP(X84,Hoja2!$E$10:$E$13,Hoja2!$C$10:$C$13,,1),IF(N84="Comercio",_xlfn.XLOOKUP(X84,Hoja2!$F$10:$F$13,Hoja2!$C$10:$C$13,,1),"P. Natural"))),"") -> P. Natural
P85: =IFERROR(_xlfn.XLOOKUP(O85,'Código CIIU'!$A$2:$A$499,'Código CIIU'!$B$2:$B$499),"") ->  | R85: =IFERROR(_xlfn.XLOOKUP(MatrizSegmentación!Q85,'Código CIIU'!$A$2:$A$499,'Código CIIU'!$B$2:$B$499),"") ->  | Y85: =IFERROR(IF(N85="Manufacturero",_xlfn.XLOOKUP(X85,Hoja2!$D$10:$D$13,Hoja2!$C$10:$C$13,,1),IF(N85="Servicios",_xlfn.XLOOKUP(X85,Hoja2!$E$10:$E$13,Hoja2!$C$10:$C$13,,1),IF(N85="Comercio",_xlfn.XLOOKUP(X85,Hoja2!$F$10:$F$13,Hoja2!$C$10:$C$13,,1),"P. Natural"))),"") -> P. Natural
P86: =IFERROR(_xlfn.XLOOKUP(O86,'Código CIIU'!$A$2:$A$499,'Código CIIU'!$B$2:$B$499),"") ->  | R86: =IFERROR(_xlfn.XLOOKUP(MatrizSegmentación!Q86,'Código CIIU'!$A$2:$A$499,'Código CIIU'!$B$2:$B$499),"") ->  | Y86: =IFERROR(IF(N86="Manufacturero",_xlfn.XLOOKUP(X86,Hoja2!$D$10:$D$13,Hoja2!$C$10:$C$13,,1),IF(N86="Servicios",_xlfn.XLOOKUP(X86,Hoja2!$E$10:$E$13,Hoja2!$C$10:$C$13,,1),IF(N86="Comercio",_xlfn.XLOOKUP(X86,Hoja2!$F$10:$F$13,Hoja2!$C$10:$C$13,,1),"P. Natural"))),"") -> P. Natural
P87: =IFERROR(_xlfn.XLOOKUP(O87,'Código CIIU'!$A$2:$A$499,'Código CIIU'!$B$2:$B$499),"") ->  | R87: =IFERROR(_xlfn.XLOOKUP(MatrizSegmentación!Q87,'Código CIIU'!$A$2:$A$499,'Código CIIU'!$B$2:$B$499),"") ->  | Y87: =IFERROR(IF(N87="Manufacturero",_xlfn.XLOOKUP(X87,Hoja2!$D$10:$D$13,Hoja2!$C$10:$C$13,,1),IF(N87="Servicios",_xlfn.XLOOKUP(X87,Hoja2!$E$10:$E$13,Hoja2!$C$10:$C$13,,1),IF(N87="Comercio",_xlfn.XLOOKUP(X87,Hoja2!$F$10:$F$13,Hoja2!$C$10:$C$13,,1),"P. Natural"))),"") -> P. Natural
P88: =IFERROR(_xlfn.XLOOKUP(O88,'Código CIIU'!$A$2:$A$499,'Código CIIU'!$B$2:$B$499),"") ->  | R88: =IFERROR(_xlfn.XLOOKUP(MatrizSegmentación!Q88,'Código CIIU'!$A$2:$A$499,'Código CIIU'!$B$2:$B$499),"") ->  | Y88: =IFERROR(IF(N88="Manufacturero",_xlfn.XLOOKUP(X88,Hoja2!$D$10:$D$13,Hoja2!$C$10:$C$13,,1),IF(N88="Servicios",_xlfn.XLOOKUP(X88,Hoja2!$E$10:$E$13,Hoja2!$C$10:$C$13,,1),IF(N88="Comercio",_xlfn.XLOOKUP(X88,Hoja2!$F$10:$F$13,Hoja2!$C$10:$C$13,,1),"P. Natural"))),"") -> P. Natural
P89: =IFERROR(_xlfn.XLOOKUP(O89,'Código CIIU'!$A$2:$A$499,'Código CIIU'!$B$2:$B$499),"") ->  | R89: =IFERROR(_xlfn.XLOOKUP(MatrizSegmentación!Q89,'Código CIIU'!$A$2:$A$499,'Código CIIU'!$B$2:$B$499),"") ->  | Y89: =IFERROR(IF(N89="Manufacturero",_xlfn.XLOOKUP(X89,Hoja2!$D$10:$D$13,Hoja2!$C$10:$C$13,,1),IF(N89="Servicios",_xlfn.XLOOKUP(X89,Hoja2!$E$10:$E$13,Hoja2!$C$10:$C$13,,1),IF(N89="Comercio",_xlfn.XLOOKUP(X89,Hoja2!$F$10:$F$13,Hoja2!$C$10:$C$13,,1),"P. Natural"))),"") -> P. Natural
P90: =IFERROR(_xlfn.XLOOKUP(O90,'Código CIIU'!$A$2:$A$499,'Código CIIU'!$B$2:$B$499),"") ->  | R90: =IFERROR(_xlfn.XLOOKUP(MatrizSegmentación!Q90,'Código CIIU'!$A$2:$A$499,'Código CIIU'!$B$2:$B$499),"") ->  | Y90: =IFERROR(IF(N90="Manufacturero",_xlfn.XLOOKUP(X90,Hoja2!$D$10:$D$13,Hoja2!$C$10:$C$13,,1),IF(N90="Servicios",_xlfn.XLOOKUP(X90,Hoja2!$E$10:$E$13,Hoja2!$C$10:$C$13,,1),IF(N90="Comercio",_xlfn.XLOOKUP(X90,Hoja2!$F$10:$F$13,Hoja2!$C$10:$C$13,,1),"P. Natural"))),"") -> P. Natural
P91: =IFERROR(_xlfn.XLOOKUP(O91,'Código CIIU'!$A$2:$A$499,'Código CIIU'!$B$2:$B$499),"") ->  | R91: =IFERROR(_xlfn.XLOOKUP(MatrizSegmentación!Q91,'Código CIIU'!$A$2:$A$499,'Código CIIU'!$B$2:$B$499),"") ->  | Y91: =IFERROR(IF(N91="Manufacturero",_xlfn.XLOOKUP(X91,Hoja2!$D$10:$D$13,Hoja2!$C$10:$C$13,,1),IF(N91="Servicios",_xlfn.XLOOKUP(X91,Hoja2!$E$10:$E$13,Hoja2!$C$10:$C$13,,1),IF(N91="Comercio",_xlfn.XLOOKUP(X91,Hoja2!$F$10:$F$13,Hoja2!$C$10:$C$13,,1),"P. Natural"))),"") -> P. Natural
P92: =IFERROR(_xlfn.XLOOKUP(O92,'Código CIIU'!$A$2:$A$499,'Código CIIU'!$B$2:$B$499),"") ->  | R92: =IFERROR(_xlfn.XLOOKUP(MatrizSegmentación!Q92,'Código CIIU'!$A$2:$A$499,'Código CIIU'!$B$2:$B$499),"") ->  | Y92: =IFERROR(IF(N92="Manufacturero",_xlfn.XLOOKUP(X92,Hoja2!$D$10:$D$13,Hoja2!$C$10:$C$13,,1),IF(N92="Servicios",_xlfn.XLOOKUP(X92,Hoja2!$E$10:$E$13,Hoja2!$C$10:$C$13,,1),IF(N92="Comercio",_xlfn.XLOOKUP(X92,Hoja2!$F$10:$F$13,Hoja2!$C$10:$C$13,,1),"P. Natural"))),"") -> P. Natural
P93: =IFERROR(_xlfn.XLOOKUP(O93,'Código CIIU'!$A$2:$A$499,'Código CIIU'!$B$2:$B$499),"") ->  | R93: =IFERROR(_xlfn.XLOOKUP(MatrizSegmentación!Q93,'Código CIIU'!$A$2:$A$499,'Código CIIU'!$B$2:$B$499),"") ->  | Y93: =IFERROR(IF(N93="Manufacturero",_xlfn.XLOOKUP(X93,Hoja2!$D$10:$D$13,Hoja2!$C$10:$C$13,,1),IF(N93="Servicios",_xlfn.XLOOKUP(X93,Hoja2!$E$10:$E$13,Hoja2!$C$10:$C$13,,1),IF(N93="Comercio",_xlfn.XLOOKUP(X93,Hoja2!$F$10:$F$13,Hoja2!$C$10:$C$13,,1),"P. Natural"))),"") -> P. Natural
P94: =IFERROR(_xlfn.XLOOKUP(O94,'Código CIIU'!$A$2:$A$499,'Código CIIU'!$B$2:$B$499),"") ->  | R94: =IFERROR(_xlfn.XLOOKUP(MatrizSegmentación!Q94,'Código CIIU'!$A$2:$A$499,'Código CIIU'!$B$2:$B$499),"") ->  | Y94: =IFERROR(IF(N94="Manufacturero",_xlfn.XLOOKUP(X94,Hoja2!$D$10:$D$13,Hoja2!$C$10:$C$13,,1),IF(N94="Servicios",_xlfn.XLOOKUP(X94,Hoja2!$E$10:$E$13,Hoja2!$C$10:$C$13,,1),IF(N94="Comercio",_xlfn.XLOOKUP(X94,Hoja2!$F$10:$F$13,Hoja2!$C$10:$C$13,,1),"P. Natural"))),"") -> P. Natural
P95: =IFERROR(_xlfn.XLOOKUP(O95,'Código CIIU'!$A$2:$A$499,'Código CIIU'!$B$2:$B$499),"") ->  | R95: =IFERROR(_xlfn.XLOOKUP(MatrizSegmentación!Q95,'Código CIIU'!$A$2:$A$499,'Código CIIU'!$B$2:$B$499),"") ->  | Y95: =IFERROR(IF(N95="Manufacturero",_xlfn.XLOOKUP(X95,Hoja2!$D$10:$D$13,Hoja2!$C$10:$C$13,,1),IF(N95="Servicios",_xlfn.XLOOKUP(X95,Hoja2!$E$10:$E$13,Hoja2!$C$10:$C$13,,1),IF(N95="Comercio",_xlfn.XLOOKUP(X95,Hoja2!$F$10:$F$13,Hoja2!$C$10:$C$13,,1),"P. Natural"))),"") -> P. Natural
P96: =IFERROR(_xlfn.XLOOKUP(O96,'Código CIIU'!$A$2:$A$499,'Código CIIU'!$B$2:$B$499),"") ->  | R96: =IFERROR(_xlfn.XLOOKUP(MatrizSegmentación!Q96,'Código CIIU'!$A$2:$A$499,'Código CIIU'!$B$2:$B$499),"") ->  | Y96: =IFERROR(IF(N96="Manufacturero",_xlfn.XLOOKUP(X96,Hoja2!$D$10:$D$13,Hoja2!$C$10:$C$13,,1),IF(N96="Servicios",_xlfn.XLOOKUP(X96,Hoja2!$E$10:$E$13,Hoja2!$C$10:$C$13,,1),IF(N96="Comercio",_xlfn.XLOOKUP(X96,Hoja2!$F$10:$F$13,Hoja2!$C$10:$C$13,,1),"P. Natural"))),"") -> P. Natural
P97: =IFERROR(_xlfn.XLOOKUP(O97,'Código CIIU'!$A$2:$A$499,'Código CIIU'!$B$2:$B$499),"") ->  | R97: =IFERROR(_xlfn.XLOOKUP(MatrizSegmentación!Q97,'Código CIIU'!$A$2:$A$499,'Código CIIU'!$B$2:$B$499),"") ->  | Y97: =IFERROR(IF(N97="Manufacturero",_xlfn.XLOOKUP(X97,Hoja2!$D$10:$D$13,Hoja2!$C$10:$C$13,,1),IF(N97="Servicios",_xlfn.XLOOKUP(X97,Hoja2!$E$10:$E$13,Hoja2!$C$10:$C$13,,1),IF(N97="Comercio",_xlfn.XLOOKUP(X97,Hoja2!$F$10:$F$13,Hoja2!$C$10:$C$13,,1),"P. Natural"))),"") -> P. Natural
P98: =IFERROR(_xlfn.XLOOKUP(O98,'Código CIIU'!$A$2:$A$499,'Código CIIU'!$B$2:$B$499),"") ->  | R98: =IFERROR(_xlfn.XLOOKUP(MatrizSegmentación!Q98,'Código CIIU'!$A$2:$A$499,'Código CIIU'!$B$2:$B$499),"") ->  | Y98: =IFERROR(IF(N98="Manufacturero",_xlfn.XLOOKUP(X98,Hoja2!$D$10:$D$13,Hoja2!$C$10:$C$13,,1),IF(N98="Servicios",_xlfn.XLOOKUP(X98,Hoja2!$E$10:$E$13,Hoja2!$C$10:$C$13,,1),IF(N98="Comercio",_xlfn.XLOOKUP(X98,Hoja2!$F$10:$F$13,Hoja2!$C$10:$C$13,,1),"P. Natural"))),"") -> P. Natural
P99: =IFERROR(_xlfn.XLOOKUP(O99,'Código CIIU'!$A$2:$A$499,'Código CIIU'!$B$2:$B$499),"") ->  | R99: =IFERROR(_xlfn.XLOOKUP(MatrizSegmentación!Q99,'Código CIIU'!$A$2:$A$499,'Código CIIU'!$B$2:$B$499),"") ->  | Y99: =IFERROR(IF(N99="Manufacturero",_xlfn.XLOOKUP(X99,Hoja2!$D$10:$D$13,Hoja2!$C$10:$C$13,,1),IF(N99="Servicios",_xlfn.XLOOKUP(X99,Hoja2!$E$10:$E$13,Hoja2!$C$10:$C$13,,1),IF(N99="Comercio",_xlfn.XLOOKUP(X99,Hoja2!$F$10:$F$13,Hoja2!$C$10:$C$13,,1),"P. Natural"))),"") -> P. Natural
P100: =IFERROR(_xlfn.XLOOKUP(O100,'Código CIIU'!$A$2:$A$499,'Código CIIU'!$B$2:$B$499),"") ->  | R100: =IFERROR(_xlfn.XLOOKUP(MatrizSegmentación!Q100,'Código CIIU'!$A$2:$A$499,'Código CIIU'!$B$2:$B$499),"") ->  | Y100: =IFERROR(IF(N100="Manufacturero",_xlfn.XLOOKUP(X100,Hoja2!$D$10:$D$13,Hoja2!$C$10:$C$13,,1),IF(N100="Servicios",_xlfn.XLOOKUP(X100,Hoja2!$E$10:$E$13,Hoja2!$C$10:$C$13,,1),IF(N100="Comercio",_xlfn.XLOOKUP(X100,Hoja2!$F$10:$F$13,Hoja2!$C$10:$C$13,,1),"P. Natural"))),"") -> P. Natural

Sheet PorJurisdicción
A1: NOTA: Cuando Actualice datos, haga clic en alguna de las tablas dinamicas, luego en la parte superior haga clic en analizar tabla dinamica, despues en actualizar y finalmente en actualizar todo
A3: Tipo de contraparte | B3: (Todas)
A5: Municipio | B5: Cuenta de Municipio | C5: Promedio de Nivel de Riesgo Jurisdicción | F5: Empresa | G5: Promedio de Nivel de Riesgo Jurisdicción
A6: Quindío | B6: 0.5 | C6: 3.5 | F6: Aliado de negocio | G6: 5
A7: Cauca | B7: 0.5 | C7: 5 | F7: Juridica | G7: 5
A8: Otro | B8: 0 | C8: 5 | F8: Cliente | G8: 3.5
A9: Total general | B9: 1 | C9: 4.625 | F9: Natural | G9: 3.5
F10: Empleado | G10: 0
F11: Natural | G11: 0
F12: Proveedor | G12: 5
F13: Juridica | G13: 5
F14: (en blanco)
F15: (en blanco)
F16: Usuario Final | G16: 5
F17: Natural | G17: 5
F18: Total general | G18: 3.7
A19: Tipo de contraparte | B19: (Todas) | D19: Tipo de contraparte | E19: (Todas) | G19: Pais Cooperante | H19: No
A21: Municipio | B21: Promedio de Nivel de Riesgo Jurisdicción | D21: Contraparte | E21: Promedio de Nivel de Riesgo Jurisdicción | G21: Empresa | H21: Etiquetas de columna
A22: Circasia | B22: 3.5 | D22: PEDRO PEREZ | E22: 3.5 | G22: Empresa | H22: PANAMA | I22: Total general
A23: Cajibío | B23: 5 | D23: FABRICA XYZ | E23: 5 | G23: XLM CONSULTORES | H23: 0.5 | I23: 0.5
A24: Total general | B24: 4.25 | D24: XLM CONSULTORES | E24: 5 | G24: LINA GOMEZ | H24: 0.5 | I24: 0.5
D25: Total general | E25: 4.5 | G25: Total general | H25: 1 | I25: 1

Sheet PorActividadEconómica
A1: NOTA: Cuando Actualice datos, haga clic en alguna de las tablas dinamicas, luego en la parte superior haga clic en analizar tabla dinamica, despues en actualizar y finalmente en actualizar todo
A3: Tipo de contraparte | B3: (Todas) | D3: Tipo de contraparte | E3: (Todas) | G3: Tipo de contraparte | H3: (Todas)
G4: PEP | H4: Si
A5: Sector | B5: Promedio de Nivel de Riesgo Actividad Económica | D5: Empresa | E5: Promedio de Nivel de Riesgo Actividad Económica
A6: Manufacturero | B6: 1 | D6: PEDRO PEREZ | E6: 1.25 | G6: Nombre | H6: Promedio de Nivel de Riesgo Actividad Económica | I6: Promedio de Nivel de Riesgo Jurisdicción
A7: NA | B7: 0.8333333333 | D7: FABRICA XYZ | E7: 1.75 | G7: PEDRO PEREZ | H7: 1.25 | I7: 3.5
A8: Total general | B8: 0.9 | D8: XLM CONSULTORES | E8: 0.25 | G8: LINA GOMEZ | H8: 1.25 | I8: 5
D9: Total general | E9: 1.083333333 | G9: Total general | H9: 1.25 | I9: 4.25
A13: Tipo de contraparte | B13: (Todas)
A15: Actividad Economica Principal | B15: Promedio de Nivel de Riesgo Actividad Económica
A16: Empleado | B16: 0.625
A17: Total general | B17: 0.625
D25: Nombre | E25: Promedio de Nivel de Riesgo Actividad Económica
D26: Aliado de negocio | E26: 0.25
D27: Juridica | E27: 0.25
D28: Cliente | E28: 1.25
D29: Natural | E29: 1.25
D30: Empleado | E30: 0
D31: Natural | E31: 0
D32: Proveedor | E32: 1.75
D33: Juridica | E33: 1.75
D34: (en blanco)
D35: (en blanco)
D36: Usuario Final | E36: 1.25
A37: Tipo de contraparte | B37: (Todas) | D37: Natural | E37: 1.25
D38: Total general | E38: 0.9
A39: Actividad economica Secundaria | B39: Promedio de Nivel de Riesgo Actividad Económica
B40: 0.9
A41: Total general | B41: 0.9

Sheet MatrizMonitoreo
A1: Mes inicial | B1: Enero | C1: =+_xlfn.XLOOKUP(B1,Hoja2!H1:H12,Hoja2!I1:I12) -> 1 | H1: =+C1 -> 1 | I1: =+IF(H1<12,H1+1,IF(H1=12,1)) -> 2 | J1: =+IF(I1<12,I1+1,IF(I1=12,1)) -> 3 | K1: =+IF(J1<12,J1+1,IF(J1=12,1)) -> 4 | L1: =+IF(K1<12,K1+1,IF(K1=12,1)) -> 5 | M1: =+IF(L1<12,L1+1,IF(L1=12,1)) -> 6 | N1: =+IF(M1<12,M1+1,IF(M1=12,1)) -> 7 | O1: 8 | P1: 9 | Q1: 10 | R1: 11 | S1: 12 | T1: 1 | U1: 2 | V1: 3 | W1: 4 | X1: 5 | Y1: 6 | Z1: 7 | AA1: 8 | AB1: 9 | AC1: 10 | AD1: 11 | AE1: 12 | AF1: 1 | AG1: 2 | AH1: 3 | AI1: 4 | AJ1: 5 | AK1: 6 | AL1: 7 | AM1: 8 | AN1: 9 | AO1: 10 | AP1: 11 | AQ1: 12 | AR1: 1 | AS1: 2 | AT1: 3 | AU1: 4 | AV1: 5 | AW1: 6 | AX1: 7 | AY1: 8 | AZ1: 9 | BA1: 10 | BB1: 11 | BC1: 12 | BD1: 1 | BE1: 2 | BF1: 3 | BG1: 4 | BH1: 5 | BI1: 6 | BJ1: 7 | BK1: 8 | BL1: 9 | BM1: 10 | BN1: 11 | BO1: 12 | BP1: 1 | BQ1: 2 | BR1: 3 | BS1: 4 | BT1: 5 | BU1: 6 | BV1: 7 | BW1: 8 | BX1: 9 | BY1: 10 | BZ1: =+IF(BY1<12,BY1+1,IF(BY1=12,1)) -> 11 | CA1: 12 | CB1: 1 | CC1: 2 | CD1: 3 | CE1: 4 | CF1: 5 | CG1: 6 | CH1: 7 | CI1: 8 | CJ1: 9 | CK1: 10 | CL1: 11 | CM1: 12 | CN1: 1 | CO1: 2 | CP1: 3 | CQ1: 4 | CR1: 5 | CS1: 6 | CT1: 7 | CU1: 8 | CV1: 9 | CW1: 10 | CX1: 11 | CY1: 12 | CZ1: 1 | DA1: 2 | DB1: 3 | DC1: 4 | DD1: 5 | DE1: 6 | DF1: 7 | DG1: 8 | DH1: 9 | DI1: 10 | DJ1: 11 | DK1: 12 | DL1: 1 | DM1: 2 | DN1: 3 | DO1: 4 | DP1: 5 | DQ1: 6 | DR1: 7 | DS1: 8 | DT1: 9 | DU1: 10 | DV1: 11 | DW1: 12 | DX1: 1 | DY1: 2 | DZ1: 3 | EA1: 4 | EB1: 5 | EC1: 6 | ED1: 7 | EE1: 8 | EF1: 9 | EG1: 10 | EH1: 11 | EI1: 12 | EJ1: 1 | EK1: 2 | EL1: =+IF(EK1<12,EK1+1,IF(EK1=12,1)) -> 3 | EM1: 4 | EN1: 5 | EO1: 6 | EP1: 7 | EQ1: 8 | ER1: 9 | ES1: 10 | ET1: 11 | EU1: 12 | EV1: 1 | EW1: 2 | EX1: 3 | EY1: 4 | EZ1: 5 | FA1: 6 | FB1: 7 | FC1: 8 | FD1: 9 | FE1: 10 | FF1: 11 | FG1: 12 | FH1: 1 | FI1: 2 | FJ1: 3
A2: Año | B2: 2023
A3: Porcentaje señales de alerta sobre ingresos | B3: 1
A4: Percentil Señales de Alerta sobre movimientos | B4: 0.85
A7: No de Identificación | B7: Nombre | C7: Tipo de Contraparte | D7: Ingresos del Ultimo año (Miles) | E7: Movimientos del Mes (Miles) | F7: Señal de Alerta sobre ingresos | G7: Señal de alerta sobre movimientos financieros | R7: HISTORICO DE MOVIMIENTOS FINANCIEROS (Miles de Pesos)
H8: =+_xlfn.XLOOKUP(H1,Hoja2!$I$1:$I$12,Hoja2!$H$1:$H$12) -> Enero | I8: =+_xlfn.XLOOKUP(I1,Hoja2!$I$1:$I$12,Hoja2!$H$1:$H$12) -> Febrero | J8: =+_xlfn.XLOOKUP(J1,Hoja2!$I$1:$I$12,Hoja2!$H$1:$H$12) -> Marzo | K8: =+_xlfn.XLOOKUP(K1,Hoja2!$I$1:$I$12,Hoja2!$H$1:$H$12) -> Abril | L8: =+_xlfn.XLOOKUP(L1,Hoja2!$I$1:$I$12,Hoja2!$H$1:$H$12) -> Mayo | M8: =+_xlfn.XLOOKUP(M1,Hoja2!$I$1:$I$12,Hoja2!$H$1:$H$12) -> Junio | N8: =+_xlfn.XLOOKUP(N1,Hoja2!$I$1:$I$12,Hoja2!$H$1:$H$12) -> Julio | O8: =+_xlfn.XLOOKUP(O1,Hoja2!$I$1:$I$12,Hoja2!$H$1:$H$12) -> Agosto | P8: =+_xlfn.XLOOKUP(P1,Hoja2!$I$1:$I$12,Hoja2!$H$1:$H$12) -> Septiembre | Q8: =+_xlfn.XLOOKUP(Q1,Hoja2!$I$1:$I$12,Hoja2!$H$1:$H$12) -> Octubre | R8: =+_xlfn.XLOOKUP(R1,Hoja2!$I$1:$I$12,Hoja2!$H$1:$H$12) -> Noviembre | S8: =+_xlfn.XLOOKUP(S1,Hoja2!$I$1:$I$12,Hoja2!$H$1:$H$12) -> Diciembre | T8: =+_xlfn.XLOOKUP(T1,Hoja2!$I$1:$I$12,Hoja2!$H$1:$H$12) -> Enero | U8: =+_xlfn.XLOOKUP(U1,Hoja2!$I$1:$I$12,Hoja2!$H$1:$H$12) -> Febrero | V8: =+_xlfn.XLOOKUP(V1,Hoja2!$I$1:$I$12,Hoja2!$H$1:$H$12) -> Marzo | W8: =+_xlfn.XLOOKUP(W1,Hoja2!$I$1:$I$12,Hoja2!$H$1:$H$12) -> Abril | X8: =+_xlfn.XLOOKUP(X1,Hoja2!$I$1:$I$12,Hoja2!$H$1:$H$12) -> Mayo | Y8: =+_xlfn.XLOOKUP(Y1,Hoja2!$I$1:$I$12,Hoja2!$H$1:$H$12) -> Junio | Z8: =+_xlfn.XLOOKUP(Z1,Hoja2!$I$1:$I$12,Hoja2!$H$1:$H$12) -> Julio | AA8: =+_xlfn.XLOOKUP(AA1,Hoja2!$I$1:$I$12,Hoja2!$H$1:$H$12) -> Agosto | AB8: =+_xlfn.XLOOKUP(AB1,Hoja2!$I$1:$I$12,Hoja2!$H$1:$H$12) -> Septiembre | AC8: =+_xlfn.XLOOKUP(AC1,Hoja2!$I$1:$I$12,Hoja2!$H$1:$H$12) -> Octubre | AD8: =+_xlfn.XLOOKUP(AD1,Hoja2!$I$1:$I$12,Hoja2!$H$1:$H$12) -> Noviembre | AE8: =+_xlfn.XLOOKUP(AE1,Hoja2!$I$1:$I$12,Hoja2!$H$1:$H$12) -> Diciembre
H9: =+B2 -> 2023 | I9: =+IF(I1>H1,H9,H9+1) -> 2023 | J9: =+IF(J1>I1,I9,I9+1) -> 2023 | K9: 2023 | L9: 2023 | M9: 2023 | N9: =+IF(N1>M1,M9,M9+1) -> 2023 | O9: 2023 | P9: 2023 | Q9: 2023 | R9: 2023 | S9: 2023 | T9: 2024 | U9: 2024 | V9: 2024 | W9: 2024 | X9: 2024 | Y9: 2024 | Z9: =+IF(Z1>Y1,Y9,Y9+1) -> 2024 | AA9: 2024 | AB9: 2024 | AC9: 2024 | AD9: =+IF(AD1>AC1,AC9,AC9+1) -> 2024 | AE9: 2024
A10: 79951201 | B10: =+IFERROR(_xlfn.XLOOKUP(A10,MatrizSegmentación!$E$5:$E$100,MatrizSegmentación!$F$5:$F$100),"") -> PEDRO PEREZ | C10: =IFERROR(_xlfn.XLOOKUP(A10,MatrizSegmentación!$E$5:$E$100,MatrizSegmentación!$B$5:$B$100),"") -> Cliente | D10: =IFERROR(_xlfn.XLOOKUP(A10,MatrizSegmentación!$E$5:$E$100,MatrizSegmentación!$X$5:$X$100),0) -> 200000000 | E10: 8000000 | F10: =IFERROR(IF(E10>D10/12*(1+$B$3),"Si","No"),"") -> No | G10: =IFERROR(IF(E10>PERCENTILE(H10:AE10,$B$4),"Si","No"),"") -> Si | H10: 10000000 | I10: 4210381.805 | J10: 3722299.858 | K10: 5997020.802 | L10: 1786077.354
A11: 900.111.222-2 | B11: =+IFERROR(_xlfn.XLOOKUP(A11,MatrizSegmentación!$E$5:$E$100,MatrizSegmentación!$F$5:$F$100),"") -> FABRICA XYZ | C11: =IFERROR(_xlfn.XLOOKUP(A11,MatrizSegmentación!$E$5:$E$100,MatrizSegmentación!$B$5:$B$100),"") -> Proveedor | D11: =IFERROR(_xlfn.XLOOKUP(A11,MatrizSegmentación!$E$5:$E$100,MatrizSegmentación!$X$5:$X$100),0) -> 100000000 | E11: 20000000 | F11: =IFERROR(IF(E11>D11/12*(1+$B$3),"Si","No"),"") -> Si | G11: =IFERROR(IF(E11>PERCENTILE(H11:AE11,$B$4),"Si","No"),"") -> Si | H11: 6632984.37 | I11: 4416706.264 | J11: 6905063.197 | K11: 5300736.459 | L11: 2789585.956
A12: 860.333.111-3 | B12: =+IFERROR(_xlfn.XLOOKUP(A12,MatrizSegmentación!$E$5:$E$100,MatrizSegmentación!$F$5:$F$100),"") -> XLM CONSULTORES | C12: =IFERROR(_xlfn.XLOOKUP(A12,MatrizSegmentación!$E$5:$E$100,MatrizSegmentación!$B$5:$B$100),"") -> Aliado de negocio | D12: =IFERROR(_xlfn.XLOOKUP(A12,MatrizSegmentación!$E$5:$E$100,MatrizSegmentación!$X$5:$X$100),0) -> 50000000 | E12: 10000000 | F12: Si | G12: Si | H12: 1200000 | I12: 2300000 | J12: 3500000 | K12: 2181490.043 | L12: 1133978.238
A13: 1010110112 | B13: =+IFERROR(_xlfn.XLOOKUP(A13,MatrizSegmentación!$E$5:$E$100,MatrizSegmentación!$F$5:$F$100),"") -> MIGUEL HERNANDEZ | C13: =IFERROR(_xlfn.XLOOKUP(A13,MatrizSegmentación!$E$5:$E$100,MatrizSegmentación!$B$5:$B$100),"") -> Empleado | D13: =IFERROR(_xlfn.XLOOKUP(A13,MatrizSegmentación!$E$5:$E$100,MatrizSegmentación!$X$5:$X$100),0) -> 60000000 | E13: 20000000 | F13: Si | G13: Si | H13: 10000000 | I13: 3000000 | J13: 5000000 | K13: 2000000 | L13: 1000000
A14: 10101010 | B14: =+IFERROR(_xlfn.XLOOKUP(A14,MatrizSegmentación!$E$5:$E$100,MatrizSegmentación!$F$5:$F$100),"") -> LINA GOMEZ | C14: =IFERROR(_xlfn.XLOOKUP(A14,MatrizSegmentación!$E$5:$E$100,MatrizSegmentación!$B$5:$B$100),"") -> Usuario Final | D14: =IFERROR(_xlfn.XLOOKUP(A14,MatrizSegmentación!$E$5:$E$100,MatrizSegmentación!$X$5:$X$100),0) -> 2000000000 | E14: 50000000 | F14: No | G14: No | H14: 30000000 | I14: 100000000 | J14: 35000000 | K14: 45000000 | L14: 55000000
B15: =+IFERROR(_xlfn.XLOOKUP(A15,MatrizSegmentación!$E$5:$E$100,MatrizSegmentación!$F$5:$F$100),"") -> 0 | C15: =IFERROR(_xlfn.XLOOKUP(A15,MatrizSegmentación!$E$5:$E$100,MatrizSegmentación!$B$5:$B$100),"") -> 0 | D15: =IFERROR(_xlfn.XLOOKUP(A15,MatrizSegmentación!$E$5:$E$100,MatrizSegmentación!$X$5:$X$100),0) -> 0 | F15: No
B16: =+IFERROR(_xlfn.XLOOKUP(A16,MatrizSegmentación!$E$5:$E$100,MatrizSegmentación!$F$5:$F$100),"") -> 0 | C16: =IFERROR(_xlfn.XLOOKUP(A16,MatrizSegmentación!$E$5:$E$100,MatrizSegmentación!$B$5:$B$100),"") -> 0 | D16: =IFERROR(_xlfn.XLOOKUP(A16,MatrizSegmentación!$E$5:$E$100,MatrizSegmentación!$X$5:$X$100),0) -> 0 | F16: No
B17: =+IFERROR(_xlfn.XLOOKUP(A17,MatrizSegmentación!$E$5:$E$100,MatrizSegmentación!$F$5:$F$100),"") -> 0 | C17: =IFERROR(_xlfn.XLOOKUP(A17,MatrizSegmentación!$E$5:$E$100,MatrizSegmentación!$B$5:$B$100),"") -> 0 | D17: =IFERROR(_xlfn.XLOOKUP(A17,MatrizSegmentación!$E$5:$E$100,MatrizSegmentación!$X$5:$X$100),0) -> 0 | F17: No
B18: =+IFERROR(_xlfn.XLOOKUP(A18,MatrizSegmentación!$E$5:$E$100,MatrizSegmentación!$F$5:$F$100),"") -> 0 | C18: =IFERROR(_xlfn.XLOOKUP(A18,MatrizSegmentación!$E$5:$E$100,MatrizSegmentación!$B$5:$B$100),"") -> 0 | D18: =IFERROR(_xlfn.XLOOKUP(A18,MatrizSegmentación!$E$5:$E$100,MatrizSegmentación!$X$5:$X$100),0) -> 0 | F18: No
B19: =+IFERROR(_xlfn.XLOOKUP(A19,MatrizSegmentación!$E$5:$E$100,MatrizSegmentación!$F$5:$F$100),"") -> 0 | C19: =IFERROR(_xlfn.XLOOKUP(A19,MatrizSegmentación!$E$5:$E$100,MatrizSegmentación!$B$5:$B$100),"") -> 0 | D19: =IFERROR(_xlfn.XLOOKUP(A19,MatrizSegmentación!$E$5:$E$100,MatrizSegmentación!$X$5:$X$100),0) -> 0 | F19: No
B20: =+IFERROR(_xlfn.XLOOKUP(A20,MatrizSegmentación!$E$5:$E$100,MatrizSegmentación!$F$5:$F$100),"") -> 0 | C20: =IFERROR(_xlfn.XLOOKUP(A20,MatrizSegmentación!$E$5:$E$100,MatrizSegmentación!$B$5:$B$100),"") -> 0 | D20: =IFERROR(_xlfn.XLOOKUP(A20,MatrizSegmentación!$E$5:$E$100,MatrizSegmentación!$X$5:$X$100),0) -> 0 | F20: No
B21: =+IFERROR(_xlfn.XLOOKUP(A21,MatrizSegmentación!$E$5:$E$100,MatrizSegmentación!$F$5:$F$100),"") -> 0 | C21: =IFERROR(_xlfn.XLOOKUP(A21,MatrizSegmentación!$E$5:$E$100,MatrizSegmentación!$B$5:$B$100),"") -> 0 | D21: =IFERROR(_xlfn.XLOOKUP(A21,MatrizSegmentación!$E$5:$E$100,MatrizSegmentación!$X$5:$X$100),0) -> 0 | F21: No
B22: =+IFERROR(_xlfn.XLOOKUP(A22,MatrizSegmentación!$E$5:$E$100,MatrizSegmentación!$F$5:$F$100),"") -> 0 | C22: =IFERROR(_xlfn.XLOOKUP(A22,MatrizSegmentación!$E$5:$E$100,MatrizSegmentación!$B$5:$B$100),"") -> 0 | D22: =IFERROR(_xlfn.XLOOKUP(A22,MatrizSegmentación!$E$5:$E$100,MatrizSegmentación!$X$5:$X$100),0) -> 0 | F22: No
B23: =+IFERROR(_xlfn.XLOOKUP(A23,MatrizSegmentación!$E$5:$E$100,MatrizSegmentación!$F$5:$F$100),"") -> 0 | C23: =IFERROR(_xlfn.XLOOKUP(A23,MatrizSegmentación!$E$5:$E$100,MatrizSegmentación!$B$5:$B$100),"") -> 0 | D23: =IFERROR(_xlfn.XLOOKUP(A23,MatrizSegmentación!$E$5:$E$100,MatrizSegmentación!$X$5:$X$100),0) -> 0 | F23: No
B24: =+IFERROR(_xlfn.XLOOKUP(A24,MatrizSegmentación!$E$5:$E$100,MatrizSegmentación!$F$5:$F$100),"") -> 0 | C24: =IFERROR(_xlfn.XLOOKUP(A24,MatrizSegmentación!$E$5:$E$100,MatrizSegmentación!$B$5:$B$100),"") -> 0 | D24: =IFERROR(_xlfn.XLOOKUP(A24,MatrizSegmentación!$E$5:$E$100,MatrizSegmentación!$X$5:$X$100),0) -> 0 | F24: No
B25: =+IFERROR(_xlfn.XLOOKUP(A25,MatrizSegmentación!$E$5:$E$100,MatrizSegmentación!$F$5:$F$100),"") -> 0 | C25: =IFERROR(_xlfn.XLOOKUP(A25,MatrizSegmentación!$E$5:$E$100,MatrizSegmentación!$B$5:$B$100),"") -> 0 | D25: =IFERROR(_xlfn.XLOOKUP(A25,MatrizSegmentación!$E$5:$E$100,MatrizSegmentación!$X$5:$X$100),0) -> 0 | F25: No
B26: =+IFERROR(_xlfn.XLOOKUP(A26,MatrizSegmentación!$E$5:$E$100,MatrizSegmentación!$F$5:$F$100),"") -> 0 | C26: =IFERROR(_xlfn.XLOOKUP(A26,MatrizSegmentación!$E$5:$E$100,MatrizSegmentación!$B$5:$B$100),"") -> 0 | D26: =IFERROR(_xlfn.XLOOKUP(A26,MatrizSegmentación!$E$5:$E$100,MatrizSegmentación!$X$5:$X$100),0) -> 0 | F26: No
B27: =+IFERROR(_xlfn.XLOOKUP(A27,MatrizSegmentación!$E$5:$E$100,MatrizSegmentación!$F$5:$F$100),"") -> 0 | C27: =IFERROR(_xlfn.XLOOKUP(A27,MatrizSegmentación!$E$5:$E$100,MatrizSegmentación!$B$5:$B$100),"") -> 0 | D27: =IFERROR(_xlfn.XLOOKUP(A27,MatrizSegmentación!$E$5:$E$100,MatrizSegmentación!$X$5:$X$100),0) -> 0 | F27: No
B28: =+IFERROR(_xlfn.XLOOKUP(A28,MatrizSegmentación!$E$5:$E$100,MatrizSegmentación!$F$5:$F$100),"") -> 0 | C28: =IFERROR(_xlfn.XLOOKUP(A28,MatrizSegmentación!$E$5:$E$100,MatrizSegmentación!$B$5:$B$100),"") -> 0 | D28: =IFERROR(_xlfn.XLOOKUP(A28,MatrizSegmentación!$E$5:$E$100,MatrizSegmentación!$X$5:$X$100),0) -> 0 | F28: No
B29: =+IFERROR(_xlfn.XLOOKUP(A29,MatrizSegmentación!$E$5:$E$100,MatrizSegmentación!$F$5:$F$100),"") -> 0 | C29: =IFERROR(_xlfn.XLOOKUP(A29,MatrizSegmentación!$E$5:$E$100,MatrizSegmentación!$B$5:$B$100),"") -> 0 | D29: =IFERROR(_xlfn.XLOOKUP(A29,MatrizSegmentación!$E$5:$E$100,MatrizSegmentación!$X$5:$X$100),0) -> 0 | F29: No
B30: =+IFERROR(_xlfn.XLOOKUP(A30,MatrizSegmentación!$E$5:$E$100,MatrizSegmentación!$F$5:$F$100),"") -> 0 | C30: =IFERROR(_xlfn.XLOOKUP(A30,MatrizSegmentación!$E$5:$E$100,MatrizSegmentación!$B$5:$B$100),"") -> 0 | D30: =IFERROR(_xlfn.XLOOKUP(A30,MatrizSegmentación!$E$5:$E$100,MatrizSegmentación!$X$5:$X$100),0) -> 0 | F30: No
B31: =+IFERROR(_xlfn.XLOOKUP(A31,MatrizSegmentación!$E$5:$E$100,MatrizSegmentación!$F$5:$F$100),"") -> 0 | C31: =IFERROR(_xlfn.XLOOKUP(A31,MatrizSegmentación!$E$5:$E$100,MatrizSegmentación!$B$5:$B$100),"") -> 0 | D31: =IFERROR(_xlfn.XLOOKUP(A31,MatrizSegmentación!$E$5:$E$100,MatrizSegmentación!$X$5:$X$100),0) -> 0 | F31: No
B32: =+IFERROR(_xlfn.XLOOKUP(A32,MatrizSegmentación!$E$5:$E$100,MatrizSegmentación!$F$5:$F$100),"") -> 0 | C32: =IFERROR(_xlfn.XLOOKUP(A32,MatrizSegmentación!$E$5:$E$100,MatrizSegmentación!$B$5:$B$100),"") -> 0 | D32: =IFERROR(_xlfn.XLOOKUP(A32,MatrizSegmentación!$E$5:$E$100,MatrizSegmentación!$X$5:$X$100),0) -> 0 | F32: No
B33: =+IFERROR(_xlfn.XLOOKUP(A33,MatrizSegmentación!$E$5:$E$100,MatrizSegmentación!$F$5:$F$100),"") -> 0 | C33: =IFERROR(_xlfn.XLOOKUP(A33,MatrizSegmentación!$E$5:$E$100,MatrizSegmentación!$B$5:$B$100),"") -> 0 | D33: =IFERROR(_xlfn.XLOOKUP(A33,MatrizSegmentación!$E$5:$E$100,MatrizSegmentación!$X$5:$X$100),0) -> 0 | F33: No
B34: =+IFERROR(_xlfn.XLOOKUP(A34,MatrizSegmentación!$E$5:$E$100,MatrizSegmentación!$F$5:$F$100),"") -> 0 | C34: =IFERROR(_xlfn.XLOOKUP(A34,MatrizSegmentación!$E$5:$E$100,MatrizSegmentación!$B$5:$B$100),"") -> 0 | D34: =IFERROR(_xlfn.XLOOKUP(A34,MatrizSegmentación!$E$5:$E$100,MatrizSegmentación!$X$5:$X$100),0) -> 0 | F34: No
B35: =+IFERROR(_xlfn.XLOOKUP(A35,MatrizSegmentación!$E$5:$E$100,MatrizSegmentación!$F$5:$F$100),"") -> 0 | C35: =IFERROR(_xlfn.XLOOKUP(A35,MatrizSegmentación!$E$5:$E$100,MatrizSegmentación!$B$5:$B$100),"") -> 0 | D35: =IFERROR(_xlfn.XLOOKUP(A35,MatrizSegmentación!$E$5:$E$100,MatrizSegmentación!$X$5:$X$100),0) -> 0 | F35: No
B36: =+IFERROR(_xlfn.XLOOKUP(A36,MatrizSegmentación!$E$5:$E$100,MatrizSegmentación!$F$5:$F$100),"") -> 0 | C36: =IFERROR(_xlfn.XLOOKUP(A36,MatrizSegmentación!$E$5:$E$100,MatrizSegmentación!$B$5:$B$100),"") -> 0 | D36: =IFERROR(_xlfn.XLOOKUP(A36,MatrizSegmentación!$E$5:$E$100,MatrizSegmentación!$X$5:$X$100),0) -> 0 | F36: No
B37: =+IFERROR(_xlfn.XLOOKUP(A37,MatrizSegmentación!$E$5:$E$100,MatrizSegmentación!$F$5:$F$100),"") -> 0 | C37: =IFERROR(_xlfn.XLOOKUP(A37,MatrizSegmentación!$E$5:$E$100,MatrizSegmentación!$B$5:$B$100),"") -> 0 | D37: =IFERROR(_xlfn.XLOOKUP(A37,MatrizSegmentación!$E$5:$E$100,MatrizSegmentación!$X$5:$X$100),0) -> 0 | F37: No
B38: =+IFERROR(_xlfn.XLOOKUP(A38,MatrizSegmentación!$E$5:$E$100,MatrizSegmentación!$F$5:$F$100),"") -> 0 | C38: =IFERROR(_xlfn.XLOOKUP(A38,MatrizSegmentación!$E$5:$E$100,MatrizSegmentación!$B$5:$B$100),"") -> 0 | D38: =IFERROR(_xlfn.XLOOKUP(A38,MatrizSegmentación!$E$5:$E$100,MatrizSegmentación!$X$5:$X$100),0) -> 0 | F38: No
B39: =+IFERROR(_xlfn.XLOOKUP(A39,MatrizSegmentación!$E$5:$E$100,MatrizSegmentación!$F$5:$F$100),"") -> 0 | C39: =IFERROR(_xlfn.XLOOKUP(A39,MatrizSegmentación!$E$5:$E$100,MatrizSegmentación!$B$5:$B$100),"") -> 0 | D39: =IFERROR(_xlfn.XLOOKUP(A39,MatrizSegmentación!$E$5:$E$100,MatrizSegmentación!$X$5:$X$100),0) -> 0 | F39: No
B40: =+IFERROR(_xlfn.XLOOKUP(A40,MatrizSegmentación!$E$5:$E$100,MatrizSegmentación!$F$5:$F$100),"") -> 0 | C40: =IFERROR(_xlfn.XLOOKUP(A40,MatrizSegmentación!$E$5:$E$100,MatrizSegmentación!$B$5:$B$100),"") -> 0 | D40: =IFERROR(_xlfn.XLOOKUP(A40,MatrizSegmentación!$E$5:$E$100,MatrizSegmentación!$X$5:$X$100),0) -> 0 | F40: No
B41: =+IFERROR(_xlfn.XLOOKUP(A41,MatrizSegmentación!$E$5:$E$100,MatrizSegmentación!$F$5:$F$100),"") -> 0 | C41: =IFERROR(_xlfn.XLOOKUP(A41,MatrizSegmentación!$E$5:$E$100,MatrizSegmentación!$B$5:$B$100),"") -> 0 | D41: =IFERROR(_xlfn.XLOOKUP(A41,MatrizSegmentación!$E$5:$E$100,MatrizSegmentación!$X$5:$X$100),0) -> 0 | F41: No
B42: =+IFERROR(_xlfn.XLOOKUP(A42,MatrizSegmentación!$E$5:$E$100,MatrizSegmentación!$F$5:$F$100),"") -> 0 | C42: =IFERROR(_xlfn.XLOOKUP(A42,MatrizSegmentación!$E$5:$E$100,MatrizSegmentación!$B$5:$B$100),"") -> 0 | D42: =IFERROR(_xlfn.XLOOKUP(A42,MatrizSegmentación!$E$5:$E$100,MatrizSegmentación!$X$5:$X$100),0) -> 0 | F42: No
B43: =+IFERROR(_xlfn.XLOOKUP(A43,MatrizSegmentación!$E$5:$E$100,MatrizSegmentación!$F$5:$F$100),"") -> 0 | C43: =IFERROR(_xlfn.XLOOKUP(A43,MatrizSegmentación!$E$5:$E$100,MatrizSegmentación!$B$5:$B$100),"") -> 0 | D43: =IFERROR(_xlfn.XLOOKUP(A43,MatrizSegmentación!$E$5:$E$100,MatrizSegmentación!$X$5:$X$100),0) -> 0 | F43: No
B44: =+IFERROR(_xlfn.XLOOKUP(A44,MatrizSegmentación!$E$5:$E$100,MatrizSegmentación!$F$5:$F$100),"") -> 0 | C44: =IFERROR(_xlfn.XLOOKUP(A44,MatrizSegmentación!$E$5:$E$100,MatrizSegmentación!$B$5:$B$100),"") -> 0 | D44: =IFERROR(_xlfn.XLOOKUP(A44,MatrizSegmentación!$E$5:$E$100,MatrizSegmentación!$X$5:$X$100),0) -> 0 | F44: No
B45: =+IFERROR(_xlfn.XLOOKUP(A45,MatrizSegmentación!$E$5:$E$100,MatrizSegmentación!$F$5:$F$100),"") -> 0 | C45: =IFERROR(_xlfn.XLOOKUP(A45,MatrizSegmentación!$E$5:$E$100,MatrizSegmentación!$B$5:$B$100),"") -> 0 | D45: =IFERROR(_xlfn.XLOOKUP(A45,MatrizSegmentación!$E$5:$E$100,MatrizSegmentación!$X$5:$X$100),0) -> 0 | F45: No
B46: =+IFERROR(_xlfn.XLOOKUP(A46,MatrizSegmentación!$E$5:$E$100,MatrizSegmentación!$F$5:$F$100),"") -> 0 | C46: =IFERROR(_xlfn.XLOOKUP(A46,MatrizSegmentación!$E$5:$E$100,MatrizSegmentación!$B$5:$B$100),"") -> 0 | D46: =IFERROR(_xlfn.XLOOKUP(A46,MatrizSegmentación!$E$5:$E$100,MatrizSegmentación!$X$5:$X$100),0) -> 0 | F46: No
B47: =+IFERROR(_xlfn.XLOOKUP(A47,MatrizSegmentación!$E$5:$E$100,MatrizSegmentación!$F$5:$F$100),"") -> 0 | C47: =IFERROR(_xlfn.XLOOKUP(A47,MatrizSegmentación!$E$5:$E$100,MatrizSegmentación!$B$5:$B$100),"") -> 0 | D47: =IFERROR(_xlfn.XLOOKUP(A47,MatrizSegmentación!$E$5:$E$100,MatrizSegmentación!$X$5:$X$100),0) -> 0 | F47: No
B48: =+IFERROR(_xlfn.XLOOKUP(A48,MatrizSegmentación!$E$5:$E$100,MatrizSegmentación!$F$5:$F$100),"") -> 0 | C48: =IFERROR(_xlfn.XLOOKUP(A48,MatrizSegmentación!$E$5:$E$100,MatrizSegmentación!$B$5:$B$100),"") -> 0 | D48: =IFERROR(_xlfn.XLOOKUP(A48,MatrizSegmentación!$E$5:$E$100,MatrizSegmentación!$X$5:$X$100),0) -> 0 | F48: No
B49: =+IFERROR(_xlfn.XLOOKUP(A49,MatrizSegmentación!$E$5:$E$100,MatrizSegmentación!$F$5:$F$100),"") -> 0 | C49: =IFERROR(_xlfn.XLOOKUP(A49,MatrizSegmentación!$E$5:$E$100,MatrizSegmentación!$B$5:$B$100),"") -> 0 | D49: =IFERROR(_xlfn.XLOOKUP(A49,MatrizSegmentación!$E$5:$E$100,MatrizSegmentación!$X$5:$X$100),0) -> 0 | F49: No
B50: =+IFERROR(_xlfn.XLOOKUP(A50,MatrizSegmentación!$E$5:$E$100,MatrizSegmentación!$F$5:$F$100),"") -> 0 | C50: =IFERROR(_xlfn.XLOOKUP(A50,MatrizSegmentación!$E$5:$E$100,MatrizSegmentación!$B$5:$B$100),"") -> 0 | D50: =IFERROR(_xlfn.XLOOKUP(A50,MatrizSegmentación!$E$5:$E$100,MatrizSegmentación!$X$5:$X$100),0) -> 0 | F50: No
B51: =+IFERROR(_xlfn.XLOOKUP(A51,MatrizSegmentación!$E$5:$E$100,MatrizSegmentación!$F$5:$F$100),"") -> 0 | C51: =IFERROR(_xlfn.XLOOKUP(A51,MatrizSegmentación!$E$5:$E$100,MatrizSegmentación!$B$5:$B$100),"") -> 0 | D51: =IFERROR(_xlfn.XLOOKUP(A51,MatrizSegmentación!$E$5:$E$100,MatrizSegmentación!$X$5:$X$100),0) -> 0 | F51: No
B52: =+IFERROR(_xlfn.XLOOKUP(A52,MatrizSegmentación!$E$5:$E$100,MatrizSegmentación!$F$5:$F$100),"") -> 0 | C52: =IFERROR(_xlfn.XLOOKUP(A52,MatrizSegmentación!$E$5:$E$100,MatrizSegmentación!$B$5:$B$100),"") -> 0 | D52: =IFERROR(_xlfn.XLOOKUP(A52,MatrizSegmentación!$E$5:$E$100,MatrizSegmentación!$X$5:$X$100),0) -> 0 | F52: No
B53: =+IFERROR(_xlfn.XLOOKUP(A53,MatrizSegmentación!$E$5:$E$100,MatrizSegmentación!$F$5:$F$100),"") -> 0 | C53: =IFERROR(_xlfn.XLOOKUP(A53,MatrizSegmentación!$E$5:$E$100,MatrizSegmentación!$B$5:$B$100),"") -> 0 | D53: =IFERROR(_xlfn.XLOOKUP(A53,MatrizSegmentación!$E$5:$E$100,MatrizSegmentación!$X$5:$X$100),0) -> 0 | F53: No
B54: =+IFERROR(_xlfn.XLOOKUP(A54,MatrizSegmentación!$E$5:$E$100,MatrizSegmentación!$F$5:$F$100),"") -> 0 | C54: =IFERROR(_xlfn.XLOOKUP(A54,MatrizSegmentación!$E$5:$E$100,MatrizSegmentación!$B$5:$B$100),"") -> 0 | D54: =IFERROR(_xlfn.XLOOKUP(A54,MatrizSegmentación!$E$5:$E$100,MatrizSegmentación!$X$5:$X$100),0) -> 0 | F54: No
B55: =+IFERROR(_xlfn.XLOOKUP(A55,MatrizSegmentación!$E$5:$E$100,MatrizSegmentación!$F$5:$F$100),"") -> 0 | C55: =IFERROR(_xlfn.XLOOKUP(A55,MatrizSegmentación!$E$5:$E$100,MatrizSegmentación!$B$5:$B$100),"") -> 0 | D55: =IFERROR(_xlfn.XLOOKUP(A55,MatrizSegmentación!$E$5:$E$100,MatrizSegmentación!$X$5:$X$100),0) -> 0 | F55: No
B56: =+IFERROR(_xlfn.XLOOKUP(A56,MatrizSegmentación!$E$5:$E$100,MatrizSegmentación!$F$5:$F$100),"") -> 0 | C56: =IFERROR(_xlfn.XLOOKUP(A56,MatrizSegmentación!$E$5:$E$100,MatrizSegmentación!$B$5:$B$100),"") -> 0 | D56: =IFERROR(_xlfn.XLOOKUP(A56,MatrizSegmentación!$E$5:$E$100,MatrizSegmentación!$X$5:$X$100),0) -> 0 | F56: No
B57: =+IFERROR(_xlfn.XLOOKUP(A57,MatrizSegmentación!$E$5:$E$100,MatrizSegmentación!$F$5:$F$100),"") -> 0 | C57: =IFERROR(_xlfn.XLOOKUP(A57,MatrizSegmentación!$E$5:$E$100,MatrizSegmentación!$B$5:$B$100),"") -> 0 | D57: =IFERROR(_xlfn.XLOOKUP(A57,MatrizSegmentación!$E$5:$E$100,MatrizSegmentación!$X$5:$X$100),0) -> 0 | F57: No
B58: =+IFERROR(_xlfn.XLOOKUP(A58,MatrizSegmentación!$E$5:$E$100,MatrizSegmentación!$F$5:$F$100),"") -> 0 | C58: =IFERROR(_xlfn.XLOOKUP(A58,MatrizSegmentación!$E$5:$E$100,MatrizSegmentación!$B$5:$B$100),"") -> 0 | D58: =IFERROR(_xlfn.XLOOKUP(A58,MatrizSegmentación!$E$5:$E$100,MatrizSegmentación!$X$5:$X$100),0) -> 0 | F58: No
B59: =+IFERROR(_xlfn.XLOOKUP(A59,MatrizSegmentación!$E$5:$E$100,MatrizSegmentación!$F$5:$F$100),"") -> 0 | C59: =IFERROR(_xlfn.XLOOKUP(A59,MatrizSegmentación!$E$5:$E$100,MatrizSegmentación!$B$5:$B$100),"") -> 0 | D59: =IFERROR(_xlfn.XLOOKUP(A59,MatrizSegmentación!$E$5:$E$100,MatrizSegmentación!$X$5:$X$100),0) -> 0 | F59: No
B60: =+IFERROR(_xlfn.XLOOKUP(A60,MatrizSegmentación!$E$5:$E$100,MatrizSegmentación!$F$5:$F$100),"") -> 0 | C60: =IFERROR(_xlfn.XLOOKUP(A60,MatrizSegmentación!$E$5:$E$100,MatrizSegmentación!$B$5:$B$100),"") -> 0 | D60: =IFERROR(_xlfn.XLOOKUP(A60,MatrizSegmentación!$E$5:$E$100,MatrizSegmentación!$X$5:$X$100),0) -> 0 | F60: No
B61: =+IFERROR(_xlfn.XLOOKUP(A61,MatrizSegmentación!$E$5:$E$100,MatrizSegmentación!$F$5:$F$100),"") -> 0 | C61: =IFERROR(_xlfn.XLOOKUP(A61,MatrizSegmentación!$E$5:$E$100,MatrizSegmentación!$B$5:$B$100),"") -> 0 | D61: =IFERROR(_xlfn.XLOOKUP(A61,MatrizSegmentación!$E$5:$E$100,MatrizSegmentación!$X$5:$X$100),0) -> 0 | F61: No
B62: =+IFERROR(_xlfn.XLOOKUP(A62,MatrizSegmentación!$E$5:$E$100,MatrizSegmentación!$F$5:$F$100),"") -> 0 | C62: =IFERROR(_xlfn.XLOOKUP(A62,MatrizSegmentación!$E$5:$E$100,MatrizSegmentación!$B$5:$B$100),"") -> 0 | D62: =IFERROR(_xlfn.XLOOKUP(A62,MatrizSegmentación!$E$5:$E$100,MatrizSegmentación!$X$5:$X$100),0) -> 0 | F62: No
B63: =+IFERROR(_xlfn.XLOOKUP(A63,MatrizSegmentación!$E$5:$E$100,MatrizSegmentación!$F$5:$F$100),"") -> 0 | C63: =IFERROR(_xlfn.XLOOKUP(A63,MatrizSegmentación!$E$5:$E$100,MatrizSegmentación!$B$5:$B$100),"") -> 0 | D63: =IFERROR(_xlfn.XLOOKUP(A63,MatrizSegmentación!$E$5:$E$100,MatrizSegmentación!$X$5:$X$100),0) -> 0 | F63: No
B64: =+IFERROR(_xlfn.XLOOKUP(A64,MatrizSegmentación!$E$5:$E$100,MatrizSegmentación!$F$5:$F$100),"") -> 0 | C64: =IFERROR(_xlfn.XLOOKUP(A64,MatrizSegmentación!$E$5:$E$100,MatrizSegmentación!$B$5:$B$100),"") -> 0 | D64: =IFERROR(_xlfn.XLOOKUP(A64,MatrizSegmentación!$E$5:$E$100,MatrizSegmentación!$X$5:$X$100),0) -> 0 | F64: No
B65: =+IFERROR(_xlfn.XLOOKUP(A65,MatrizSegmentación!$E$5:$E$100,MatrizSegmentación!$F$5:$F$100),"") -> 0 | C65: =IFERROR(_xlfn.XLOOKUP(A65,MatrizSegmentación!$E$5:$E$100,MatrizSegmentación!$B$5:$B$100),"") -> 0 | D65: =IFERROR(_xlfn.XLOOKUP(A65,MatrizSegmentación!$E$5:$E$100,MatrizSegmentación!$X$5:$X$100),0) -> 0 | F65: No
B66: =+IFERROR(_xlfn.XLOOKUP(A66,MatrizSegmentación!$E$5:$E$100,MatrizSegmentación!$F$5:$F$100),"") -> 0 | C66: =IFERROR(_xlfn.XLOOKUP(A66,MatrizSegmentación!$E$5:$E$100,MatrizSegmentación!$B$5:$B$100),"") -> 0 | D66: =IFERROR(_xlfn.XLOOKUP(A66,MatrizSegmentación!$E$5:$E$100,MatrizSegmentación!$X$5:$X$100),0) -> 0 | F66: No
B67: =+IFERROR(_xlfn.XLOOKUP(A67,MatrizSegmentación!$E$5:$E$100,MatrizSegmentación!$F$5:$F$100),"") -> 0 | C67: =IFERROR(_xlfn.XLOOKUP(A67,MatrizSegmentación!$E$5:$E$100,MatrizSegmentación!$B$5:$B$100),"") -> 0 | D67: =IFERROR(_xlfn.XLOOKUP(A67,MatrizSegmentación!$E$5:$E$100,MatrizSegmentación!$X$5:$X$100),0) -> 0 | F67: No
B68: =+IFERROR(_xlfn.XLOOKUP(A68,MatrizSegmentación!$E$5:$E$100,MatrizSegmentación!$F$5:$F$100),"") -> 0 | C68: =IFERROR(_xlfn.XLOOKUP(A68,MatrizSegmentación!$E$5:$E$100,MatrizSegmentación!$B$5:$B$100),"") -> 0 | D68: =IFERROR(_xlfn.XLOOKUP(A68,MatrizSegmentación!$E$5:$E$100,MatrizSegmentación!$X$5:$X$100),0) -> 0 | F68: No
B69: =+IFERROR(_xlfn.XLOOKUP(A69,MatrizSegmentación!$E$5:$E$100,MatrizSegmentación!$F$5:$F$100),"") -> 0 | C69: =IFERROR(_xlfn.XLOOKUP(A69,MatrizSegmentación!$E$5:$E$100,MatrizSegmentación!$B$5:$B$100),"") -> 0 | D69: =IFERROR(_xlfn.XLOOKUP(A69,MatrizSegmentación!$E$5:$E$100,MatrizSegmentación!$X$5:$X$100),0) -> 0 | F69: No
B70: =+IFERROR(_xlfn.XLOOKUP(A70,MatrizSegmentación!$E$5:$E$100,MatrizSegmentación!$F$5:$F$100),"") -> 0 | C70: =IFERROR(_xlfn.XLOOKUP(A70,MatrizSegmentación!$E$5:$E$100,MatrizSegmentación!$B$5:$B$100),"") -> 0 | D70: =IFERROR(_xlfn.XLOOKUP(A70,MatrizSegmentación!$E$5:$E$100,MatrizSegmentación!$X$5:$X$100),0) -> 0 | F70: No
B71: =+IFERROR(_xlfn.XLOOKUP(A71,MatrizSegmentación!$E$5:$E$100,MatrizSegmentación!$F$5:$F$100),"") -> 0 | C71: =IFERROR(_xlfn.XLOOKUP(A71,MatrizSegmentación!$E$5:$E$100,MatrizSegmentación!$B$5:$B$100),"") -> 0 | D71: =IFERROR(_xlfn.XLOOKUP(A71,MatrizSegmentación!$E$5:$E$100,MatrizSegmentación!$X$5:$X$100),0) -> 0 | F71: No
B72: =+IFERROR(_xlfn.XLOOKUP(A72,MatrizSegmentación!$E$5:$E$100,MatrizSegmentación!$F$5:$F$100),"") -> 0 | C72: =IFERROR(_xlfn.XLOOKUP(A72,MatrizSegmentación!$E$5:$E$100,MatrizSegmentación!$B$5:$B$100),"") -> 0 | D72: =IFERROR(_xlfn.XLOOKUP(A72,MatrizSegmentación!$E$5:$E$100,MatrizSegmentación!$X$5:$X$100),0) -> 0 | F72: No
B73: =+IFERROR(_xlfn.XLOOKUP(A73,MatrizSegmentación!$E$5:$E$100,MatrizSegmentación!$F$5:$F$100),"") -> 0 | C73: =IFERROR(_xlfn.XLOOKUP(A73,MatrizSegmentación!$E$5:$E$100,MatrizSegmentación!$B$5:$B$100),"") -> 0 | D73: =IFERROR(_xlfn.XLOOKUP(A73,MatrizSegmentación!$E$5:$E$100,MatrizSegmentación!$X$5:$X$100),0) -> 0 | F73: No
B74: =+IFERROR(_xlfn.XLOOKUP(A74,MatrizSegmentación!$E$5:$E$100,MatrizSegmentación!$F$5:$F$100),"") -> 0 | C74: =IFERROR(_xlfn.XLOOKUP(A74,MatrizSegmentación!$E$5:$E$100,MatrizSegmentación!$B$5:$B$100),"") -> 0 | D74: =IFERROR(_xlfn.XLOOKUP(A74,MatrizSegmentación!$E$5:$E$100,MatrizSegmentación!$X$5:$X$100),0) -> 0 | F74: No
B75: =+IFERROR(_xlfn.XLOOKUP(A75,MatrizSegmentación!$E$5:$E$100,MatrizSegmentación!$F$5:$F$100),"") -> 0 | C75: =IFERROR(_xlfn.XLOOKUP(A75,MatrizSegmentación!$E$5:$E$100,MatrizSegmentación!$B$5:$B$100),"") -> 0 | D75: =IFERROR(_xlfn.XLOOKUP(A75,MatrizSegmentación!$E$5:$E$100,MatrizSegmentación!$X$5:$X$100),0) -> 0 | F75: =IFERROR(IF(E75>D75/12*(1+$B$3),"Si","No"),"") -> No | G75: =IFERROR(IF(E75>PERCENTILE(H75:AE75,$B$4),"Si","No"),"") -> 
B76: =+IFERROR(_xlfn.XLOOKUP(A76,MatrizSegmentación!$E$5:$E$100,MatrizSegmentación!$F$5:$F$100),"") -> 0 | C76: =IFERROR(_xlfn.XLOOKUP(A76,MatrizSegmentación!$E$5:$E$100,MatrizSegmentación!$B$5:$B$100),"") -> 0 | D76: =IFERROR(_xlfn.XLOOKUP(A76,MatrizSegmentación!$E$5:$E$100,MatrizSegmentación!$X$5:$X$100),0) -> 0 | F76: No
B77: =+IFERROR(_xlfn.XLOOKUP(A77,MatrizSegmentación!$E$5:$E$100,MatrizSegmentación!$F$5:$F$100),"") -> 0 | C77: =IFERROR(_xlfn.XLOOKUP(A77,MatrizSegmentación!$E$5:$E$100,MatrizSegmentación!$B$5:$B$100),"") -> 0 | D77: =IFERROR(_xlfn.XLOOKUP(A77,MatrizSegmentación!$E$5:$E$100,MatrizSegmentación!$X$5:$X$100),0) -> 0 | F77: No
B78: =+IFERROR(_xlfn.XLOOKUP(A78,MatrizSegmentación!$E$5:$E$100,MatrizSegmentación!$F$5:$F$100),"") -> 0 | C78: =IFERROR(_xlfn.XLOOKUP(A78,MatrizSegmentación!$E$5:$E$100,MatrizSegmentación!$B$5:$B$100),"") -> 0 | D78: =IFERROR(_xlfn.XLOOKUP(A78,MatrizSegmentación!$E$5:$E$100,MatrizSegmentación!$X$5:$X$100),0) -> 0 | F78: No
B79: =+IFERROR(_xlfn.XLOOKUP(A79,MatrizSegmentación!$E$5:$E$100,MatrizSegmentación!$F$5:$F$100),"") -> 0 | C79: =IFERROR(_xlfn.XLOOKUP(A79,MatrizSegmentación!$E$5:$E$100,MatrizSegmentación!$B$5:$B$100),"") -> 0 | D79: =IFERROR(_xlfn.XLOOKUP(A79,MatrizSegmentación!$E$5:$E$100,MatrizSegmentación!$X$5:$X$100),0) -> 0 | F79: No
B80: =+IFERROR(_xlfn.XLOOKUP(A80,MatrizSegmentación!$E$5:$E$100,MatrizSegmentación!$F$5:$F$100),"") -> 0 | C80: =IFERROR(_xlfn.XLOOKUP(A80,MatrizSegmentación!$E$5:$E$100,MatrizSegmentación!$B$5:$B$100),"") -> 0 | D80: =IFERROR(_xlfn.XLOOKUP(A80,MatrizSegmentación!$E$5:$E$100,MatrizSegmentación!$X$5:$X$100),0) -> 0 | F80: No
B81: =+IFERROR(_xlfn.XLOOKUP(A81,MatrizSegmentación!$E$5:$E$100,MatrizSegmentación!$F$5:$F$100),"") -> 0 | C81: =IFERROR(_xlfn.XLOOKUP(A81,MatrizSegmentación!$E$5:$E$100,MatrizSegmentación!$B$5:$B$100),"") -> 0 | D81: =IFERROR(_xlfn.XLOOKUP(A81,MatrizSegmentación!$E$5:$E$100,MatrizSegmentación!$X$5:$X$100),0) -> 0 | F81: No
B82: =+IFERROR(_xlfn.XLOOKUP(A82,MatrizSegmentación!$E$5:$E$100,MatrizSegmentación!$F$5:$F$100),"") -> 0 | C82: =IFERROR(_xlfn.XLOOKUP(A82,MatrizSegmentación!$E$5:$E$100,MatrizSegmentación!$B$5:$B$100),"") -> 0 | D82: =IFERROR(_xlfn.XLOOKUP(A82,MatrizSegmentación!$E$5:$E$100,MatrizSegmentación!$X$5:$X$100),0) -> 0 | F82: No
B83: =+IFERROR(_xlfn.XLOOKUP(A83,MatrizSegmentación!$E$5:$E$100,MatrizSegmentación!$F$5:$F$100),"") -> 0 | C83: =IFERROR(_xlfn.XLOOKUP(A83,MatrizSegmentación!$E$5:$E$100,MatrizSegmentación!$B$5:$B$100),"") -> 0 | D83: =IFERROR(_xlfn.XLOOKUP(A83,MatrizSegmentación!$E$5:$E$100,MatrizSegmentación!$X$5:$X$100),0) -> 0 | F83: No
B84: =+IFERROR(_xlfn.XLOOKUP(A84,MatrizSegmentación!$E$5:$E$100,MatrizSegmentación!$F$5:$F$100),"") -> 0 | C84: =IFERROR(_xlfn.XLOOKUP(A84,MatrizSegmentación!$E$5:$E$100,MatrizSegmentación!$B$5:$B$100),"") -> 0 | D84: =IFERROR(_xlfn.XLOOKUP(A84,MatrizSegmentación!$E$5:$E$100,MatrizSegmentación!$X$5:$X$100),0) -> 0 | F84: No
B85: =+IFERROR(_xlfn.XLOOKUP(A85,MatrizSegmentación!$E$5:$E$100,MatrizSegmentación!$F$5:$F$100),"") -> 0 | C85: =IFERROR(_xlfn.XLOOKUP(A85,MatrizSegmentación!$E$5:$E$100,MatrizSegmentación!$B$5:$B$100),"") -> 0 | D85: =IFERROR(_xlfn.XLOOKUP(A85,MatrizSegmentación!$E$5:$E$100,MatrizSegmentación!$X$5:$X$100),0) -> 0 | F85: No
B86: =+IFERROR(_xlfn.XLOOKUP(A86,MatrizSegmentación!$E$5:$E$100,MatrizSegmentación!$F$5:$F$100),"") -> 0 | C86: =IFERROR(_xlfn.XLOOKUP(A86,MatrizSegmentación!$E$5:$E$100,MatrizSegmentación!$B$5:$B$100),"") -> 0 | D86: =IFERROR(_xlfn.XLOOKUP(A86,MatrizSegmentación!$E$5:$E$100,MatrizSegmentación!$X$5:$X$100),0) -> 0 | F86: No
B87: =+IFERROR(_xlfn.XLOOKUP(A87,MatrizSegmentación!$E$5:$E$100,MatrizSegmentación!$F$5:$F$100),"") -> 0 | C87: =IFERROR(_xlfn.XLOOKUP(A87,MatrizSegmentación!$E$5:$E$100,MatrizSegmentación!$B$5:$B$100),"") -> 0 | D87: =IFERROR(_xlfn.XLOOKUP(A87,MatrizSegmentación!$E$5:$E$100,MatrizSegmentación!$X$5:$X$100),0) -> 0 | F87: No
B88: =+IFERROR(_xlfn.XLOOKUP(A88,MatrizSegmentación!$E$5:$E$100,MatrizSegmentación!$F$5:$F$100),"") -> 0 | C88: =IFERROR(_xlfn.XLOOKUP(A88,MatrizSegmentación!$E$5:$E$100,MatrizSegmentación!$B$5:$B$100),"") -> 0 | D88: =IFERROR(_xlfn.XLOOKUP(A88,MatrizSegmentación!$E$5:$E$100,MatrizSegmentación!$X$5:$X$100),0) -> 0 | F88: No
B89: =+IFERROR(_xlfn.XLOOKUP(A89,MatrizSegmentación!$E$5:$E$100,MatrizSegmentación!$F$5:$F$100),"") -> 0 | C89: =IFERROR(_xlfn.XLOOKUP(A89,MatrizSegmentación!$E$5:$E$100,MatrizSegmentación!$B$5:$B$100),"") -> 0 | D89: =IFERROR(_xlfn.XLOOKUP(A89,MatrizSegmentación!$E$5:$E$100,MatrizSegmentación!$X$5:$X$100),0) -> 0 | F89: No
B90: =+IFERROR(_xlfn.XLOOKUP(A90,MatrizSegmentación!$E$5:$E$100,MatrizSegmentación!$F$5:$F$100),"") -> 0 | C90: =IFERROR(_xlfn.XLOOKUP(A90,MatrizSegmentación!$E$5:$E$100,MatrizSegmentación!$B$5:$B$100),"") -> 0 | D90: =IFERROR(_xlfn.XLOOKUP(A90,MatrizSegmentación!$E$5:$E$100,MatrizSegmentación!$X$5:$X$100),0) -> 0 | F90: No
B91: =+IFERROR(_xlfn.XLOOKUP(A91,MatrizSegmentación!$E$5:$E$100,MatrizSegmentación!$F$5:$F$100),"") -> 0 | C91: =IFERROR(_xlfn.XLOOKUP(A91,MatrizSegmentación!$E$5:$E$100,MatrizSegmentación!$B$5:$B$100),"") -> 0 | D91: =IFERROR(_xlfn.XLOOKUP(A91,MatrizSegmentación!$E$5:$E$100,MatrizSegmentación!$X$5:$X$100),0) -> 0 | F91: No
B92: =+IFERROR(_xlfn.XLOOKUP(A92,MatrizSegmentación!$E$5:$E$100,MatrizSegmentación!$F$5:$F$100),"") -> 0 | C92: =IFERROR(_xlfn.XLOOKUP(A92,MatrizSegmentación!$E$5:$E$100,MatrizSegmentación!$B$5:$B$100),"") -> 0 | D92: =IFERROR(_xlfn.XLOOKUP(A92,MatrizSegmentación!$E$5:$E$100,MatrizSegmentación!$X$5:$X$100),0) -> 0 | F92: No
B93: =+IFERROR(_xlfn.XLOOKUP(A93,MatrizSegmentación!$E$5:$E$100,MatrizSegmentación!$F$5:$F$100),"") -> 0 | C93: =IFERROR(_xlfn.XLOOKUP(A93,MatrizSegmentación!$E$5:$E$100,MatrizSegmentación!$B$5:$B$100),"") -> 0 | D93: =IFERROR(_xlfn.XLOOKUP(A93,MatrizSegmentación!$E$5:$E$100,MatrizSegmentación!$X$5:$X$100),0) -> 0 | F93: No
B94: =+IFERROR(_xlfn.XLOOKUP(A94,MatrizSegmentación!$E$5:$E$100,MatrizSegmentación!$F$5:$F$100),"") -> 0 | C94: =IFERROR(_xlfn.XLOOKUP(A94,MatrizSegmentación!$E$5:$E$100,MatrizSegmentación!$B$5:$B$100),"") -> 0 | D94: =IFERROR(_xlfn.XLOOKUP(A94,MatrizSegmentación!$E$5:$E$100,MatrizSegmentación!$X$5:$X$100),0) -> 0 | F94: No
B95: =+IFERROR(_xlfn.XLOOKUP(A95,MatrizSegmentación!$E$5:$E$100,MatrizSegmentación!$F$5:$F$100),"") -> 0 | C95: =IFERROR(_xlfn.XLOOKUP(A95,MatrizSegmentación!$E$5:$E$100,MatrizSegmentación!$B$5:$B$100),"") -> 0 | D95: =IFERROR(_xlfn.XLOOKUP(A95,MatrizSegmentación!$E$5:$E$100,MatrizSegmentación!$X$5:$X$100),0) -> 0 | F95: No
B96: =+IFERROR(_xlfn.XLOOKUP(A96,MatrizSegmentación!$E$5:$E$100,MatrizSegmentación!$F$5:$F$100),"") -> 0 | C96: =IFERROR(_xlfn.XLOOKUP(A96,MatrizSegmentación!$E$5:$E$100,MatrizSegmentación!$B$5:$B$100),"") -> 0 | D96: =IFERROR(_xlfn.XLOOKUP(A96,MatrizSegmentación!$E$5:$E$100,MatrizSegmentación!$X$5:$X$100),0) -> 0 | F96: No
B97: =+IFERROR(_xlfn.XLOOKUP(A97,MatrizSegmentación!$E$5:$E$100,MatrizSegmentación!$F$5:$F$100),"") -> 0 | C97: =IFERROR(_xlfn.XLOOKUP(A97,MatrizSegmentación!$E$5:$E$100,MatrizSegmentación!$B$5:$B$100),"") -> 0 | D97: =IFERROR(_xlfn.XLOOKUP(A97,MatrizSegmentación!$E$5:$E$100,MatrizSegmentación!$X$5:$X$100),0) -> 0 | F97: No
B98: =+IFERROR(_xlfn.XLOOKUP(A98,MatrizSegmentación!$E$5:$E$100,MatrizSegmentación!$F$5:$F$100),"") -> 0 | C98: =IFERROR(_xlfn.XLOOKUP(A98,MatrizSegmentación!$E$5:$E$100,MatrizSegmentación!$B$5:$B$100),"") -> 0 | D98: =IFERROR(_xlfn.XLOOKUP(A98,MatrizSegmentación!$E$5:$E$100,MatrizSegmentación!$X$5:$X$100),0) -> 0 | F98: No
B99: =+IFERROR(_xlfn.XLOOKUP(A99,MatrizSegmentación!$E$5:$E$100,MatrizSegmentación!$F$5:$F$100),"") -> 0 | C99: =IFERROR(_xlfn.XLOOKUP(A99,MatrizSegmentación!$E$5:$E$100,MatrizSegmentación!$B$5:$B$100),"") -> 0 | D99: =IFERROR(_xlfn.XLOOKUP(A99,MatrizSegmentación!$E$5:$E$100,MatrizSegmentación!$X$5:$X$100),0) -> 0 | F99: No
B100: =+IFERROR(_xlfn.XLOOKUP(A100,MatrizSegmentación!$E$5:$E$100,MatrizSegmentación!$F$5:$F$100),"") -> 0 | C100: =IFERROR(_xlfn.XLOOKUP(A100,MatrizSegmentación!$E$5:$E$100,MatrizSegmentación!$B$5:$B$100),"") -> 0 | D100: =IFERROR(_xlfn.XLOOKUP(A100,MatrizSegmentación!$E$5:$E$100,MatrizSegmentación!$X$5:$X$100),0) -> 0 | F100: No
B101: =+IFERROR(_xlfn.XLOOKUP(A101,MatrizSegmentación!$E$5:$E$100,MatrizSegmentación!$F$5:$F$100),"") -> 0 | C101: =IFERROR(_xlfn.XLOOKUP(A101,MatrizSegmentación!$E$5:$E$100,MatrizSegmentación!$B$5:$B$100),"") -> 0 | D101: =IFERROR(_xlfn.XLOOKUP(A101,MatrizSegmentación!$E$5:$E$100,MatrizSegmentación!$X$5:$X$100),0) -> 0 | F101: No
B102: =+IFERROR(_xlfn.XLOOKUP(A102,MatrizSegmentación!$E$5:$E$100,MatrizSegmentación!$F$5:$F$100),"") -> 0 | C102: =IFERROR(_xlfn.XLOOKUP(A102,MatrizSegmentación!$E$5:$E$100,MatrizSegmentación!$B$5:$B$100),"") -> 0 | D102: =IFERROR(_xlfn.XLOOKUP(A102,MatrizSegmentación!$E$5:$E$100,MatrizSegmentación!$X$5:$X$100),0) -> 0 | F102: No
B103: =+IFERROR(_xlfn.XLOOKUP(A103,MatrizSegmentación!$E$5:$E$100,MatrizSegmentación!$F$5:$F$100),"") -> 0 | C103: =IFERROR(_xlfn.XLOOKUP(A103,MatrizSegmentación!$E$5:$E$100,MatrizSegmentación!$B$5:$B$100),"") -> 0 | D103: =IFERROR(_xlfn.XLOOKUP(A103,MatrizSegmentación!$E$5:$E$100,MatrizSegmentación!$X$5:$X$100),0) -> 0 | F103: No
B104: =+IFERROR(_xlfn.XLOOKUP(A104,MatrizSegmentación!$E$5:$E$100,MatrizSegmentación!$F$5:$F$100),"") -> 0 | C104: =IFERROR(_xlfn.XLOOKUP(A104,MatrizSegmentación!$E$5:$E$100,MatrizSegmentación!$B$5:$B$100),"") -> 0 | D104: =IFERROR(_xlfn.XLOOKUP(A104,MatrizSegmentación!$E$5:$E$100,MatrizSegmentación!$X$5:$X$100),0) -> 0 | F104: No
B105: =+IFERROR(_xlfn.XLOOKUP(A105,MatrizSegmentación!$E$5:$E$100,MatrizSegmentación!$F$5:$F$100),"") -> 0 | C105: =IFERROR(_xlfn.XLOOKUP(A105,MatrizSegmentación!$E$5:$E$100,MatrizSegmentación!$B$5:$B$100),"") -> 0 | D105: =IFERROR(_xlfn.XLOOKUP(A105,MatrizSegmentación!$E$5:$E$100,MatrizSegmentación!$X$5:$X$100),0) -> 0 | F105: No
B106: =+IFERROR(_xlfn.XLOOKUP(A106,MatrizSegmentación!$E$5:$E$100,MatrizSegmentación!$F$5:$F$100),"") -> 0 | C106: =IFERROR(_xlfn.XLOOKUP(A106,MatrizSegmentación!$E$5:$E$100,MatrizSegmentación!$B$5:$B$100),"") -> 0 | D106: =IFERROR(_xlfn.XLOOKUP(A106,MatrizSegmentación!$E$5:$E$100,MatrizSegmentación!$X$5:$X$100),0) -> 0 | F106: No
B107: =+IFERROR(_xlfn.XLOOKUP(A107,MatrizSegmentación!$E$5:$E$100,MatrizSegmentación!$F$5:$F$100),"") -> 0 | C107: =IFERROR(_xlfn.XLOOKUP(A107,MatrizSegmentación!$E$5:$E$100,MatrizSegmentación!$B$5:$B$100),"") -> 0 | D107: =IFERROR(_xlfn.XLOOKUP(A107,MatrizSegmentación!$E$5:$E$100,MatrizSegmentación!$X$5:$X$100),0) -> 0 | F107: No

Sheet S.AlertaCuantitativas
A1: NOTA: Cuando Actualice datos, haga clic en alguna de las tablas dinamicas, luego en la parte superior haga clic en analizar tabla dinamica, despues en actualizar y finalmente en actualizar todo
A3: Tipo de Contraparte | B3: (Todas) | D3: Tipo de Contraparte | E3: (Todas)
A4: Señal de Alerta sobre ingresos | B4: Si | D4: Señal de alerta sobre movimientos financieros | E4: Si
A6: Nombre de la contraparte | B6: Suma de Movimientos del Mes (Miles) | D6: Nombre de la contraparte | E6: Suma de Movimientos del Mes (Miles)
A7: FABRICA XYZ | B7: 20000000 | D7: FABRICA XYZ | E7: 20000000
A8: XLM CONSULTORES | B8: 10000000 | D8: XLM CONSULTORES | E8: 10000000
A9: MIGUEL HERNANDEZ | B9: 20000000 | D9: PEDRO PEREZ | E9: 8000000
A10: Total general | B10: 50000000 | D10: MIGUEL HERNANDEZ | E10: 20000000
D11: Total general | E11: 58000000
